Workbook

Sheet Klimarelevanzprüfung
B2: Klimarelevanzprüfung
A10: Einwohnerzahl der Gemeinde
A12: Abteilung: | I12: Thema | J12: alle Fragen einblenden
A13: Sachbearbeiter/in: | I13: Datum
A14: Projektname: | I14: Projektnr. /Geschäftszahl
A16: Projektbeschreibung:
A19: Einstieg:
C23: Bitte begründen Sie kurz, warum das Projekt bzw. das Vorhaben nicht klimarelevant ist

Sheet Prüfungsfragen
S1: Bitte auswählen
H2: Klimaschaden | L2: Klimanutzen | S2: Ja/Vielleicht
H3: Ampelwerte | K3: Kompen-sation | L3: Umsetzung | O3: Ampelwerte | S3: Nein
B4: Fragen | C4: Nr. | D4: Kriterium | E4: Ja / Nein | F4: Bearbeiten | H4: =-1 -> -1 | I4: =0 -> 0 | J4: =1 -> 1 | L4: 😐 | M4: 🙂 | N4: 😀 | O4: 1 | P4: 2 | Q4: 3
B6: =Berechnungen!A18 -> Fossile Energie | C6: 1 | D6: =Berechnungen!C18 -> Wird durch das Vorhaben zusätzlich fossile Energie (Öl, Gas, Kohle, fossiler Strom) in einem Gebäude oder einer Anlage verbraucht? | H6: =Bearbeitung!Q8 ->  | I6: =Bearbeitung!R8 ->  | J6: =Bearbeitung!S8 ->  | K6: =Bearbeitung!T8 -> 
B8: =Berechnungen!A56 -> Motorisierter Verkehr | C8: 2 | D8: =Berechnungen!C56 -> Erzeugt das Vorhaben zusätzlichen motorisierten PKW- oder Güterverkehr? | H8: =Bearbeitung!Q32 ->  | I8: =Bearbeitung!R32 ->  | J8: =Bearbeitung!S32 ->  | K8: =Bearbeitung!T32 -> 
B10: =Berechnungen!A96 -> Versiegelung | C10: 3 | D10: =Berechnungen!C96 -> Werden durch das Projekt zusätzliche Flächen versiegelt und/oder gehen Naturräume verloren? | H10: =Bearbeitung!Q55 ->  | I10: =Bearbeitung!R55 ->  | J10: =Bearbeitung!S55 ->  | K10: =Bearbeitung!T55 -> 
B12: =Berechnungen!A132 -> Bauen | C12: 4 | D12: =Berechnungen!C132 -> Werden beim Vorhaben Gebäude oder Anlagen neu gebaut oder saniert? | H12: =Bearbeitung!Q79 ->  | I12: =Bearbeitung!R79 ->  | J12: =Bearbeitung!S79 ->  | K12: =Bearbeitung!T79 -> 
B14: =Berechnungen!A174 -> Beschaffung, Subvention | C14: 5 | D14: =Berechnungen!C174 -> Wird eine Beschaffung oder eine Ausschreibung vorgenommen? Wird eine Veranstaltung durchgeführt oder eine Organisation subventioniert? | H14: =Bearbeitung!Q106 ->  | I14: =Bearbeitung!R106 ->  | J14: =Bearbeitung!S106 ->  | K14: =Bearbeitung!T106 -> 
B16: =Berechnungen!A218 -> Sonstige negative Klimarelevanz | C16: 6 | D16: =Berechnungen!C218 -> Gibt es eine negative Auswirkung auf das Klima, die in den vorherigen Fragen nicht erwähnt wurde? | H16: =Bearbeitung!Q129 ->  | I16: =Bearbeitung!R129 ->  | J16: =Bearbeitung!S129 ->  | K16: =Bearbeitung!T129 -> 
B18: =Berechnungen!A243 -> Erneuerbare Energie | C18: 7 | D18: =Berechnungen!C243 -> Kann durch das Vorhaben erneuerbare Energie (Biomasse, Sonne, Umgebungswärme) erzeugt oder fossile Energie eingespart werden (Dämmung, Heizungstausch, …) ? | L18: =Bearbeitung!V155 ->  | M18: =Bearbeitung!W155 ->  | N18: =Bearbeitung!X155 ->  | O18: =Bearbeitung!Q157 ->  | P18: =Bearbeitung!R157 ->  | Q18: =Bearbeitung!S157 -> 
B20: =Berechnungen!A285 -> Klimafreundliche Mobilität | C20: 8 | D20: =Berechnungen!C285 -> Kann das Vorhaben einen Anreiz für klimafreundliche Mobilität setzen (Radfahren, Gehen, Öffis, alternative Antriebe) oder den PKW- bzw. Güterverkehr reduzieren? | L20: =Bearbeitung!Q190 ->  | M20: =Bearbeitung!R190 ->  | N20: =Bearbeitung!S190 ->  | O20: =Bearbeitung!Q190 ->  | P20: =Bearbeitung!R190 ->  | Q20: =Bearbeitung!S190 -> 
B22: =Berechnungen!A340 -> Begrünungen | C22: 9 | D22: =Berechnungen!C340 -> Können durch das Projekt zusätzlich Begrünungen und Biodiversitätsflächen geschaffen oder Flächen entsiegelt werden? Werden im Projekt Maßnahmen zur Nachhaltigkeit von Gebäudemanagement und zur kommunalen Grünräumpflege umgesetzt? | L22: =Bearbeitung!V223 ->  | M22: =Bearbeitung!W223 ->  | N22: =Bearbeitung!X223 ->  | O22: =Bearbeitung!Q223 ->  | P22: =Bearbeitung!R223 ->  | Q22: =Bearbeitung!S223 -> 
B24: =Berechnungen!A386 -> Planung | C24: 10 | D24: =Berechnungen!C386 -> Kann die Planung möglichst klimafreundlich entwickelt werden? Betrifft regionales oder örtliches Entwicklungskonzept, Flächenwidmungsplan, Bebauungsplan, Städtebauliche Konzepte, Städtebauliche Leitbilder o.ä. | L24: =Bearbeitung!Q253 ->  | M24: =Bearbeitung!R253 ->  | N24: =Bearbeitung!S253 ->  | O24: =Bearbeitung!Q253 ->  | P24: =Bearbeitung!R253 ->  | Q24: =Bearbeitung!S253 -> 
B26: =Berechnungen!A428 -> Öffentlichkeitsarbeit & Förderungen | C26: 11 | D26: =Berechnungen!C428 -> Kann mit dem Projekt öffentlichkeitswirksam für mehr Klimaschutz bei der Bevölkerung und der Verwaltung geworben werden? Auch durch Förderungen oder Abgaben für Ver- und Entsorgung. | L26: =Bearbeitung!Q286 ->  | M26: =Bearbeitung!R286 ->  | N26: =Bearbeitung!S286 ->  | O26: =Bearbeitung!Q286 ->  | P26: =Bearbeitung!R286 ->  | Q26: =Bearbeitung!S286 -> 
B28: =Berechnungen!A475 -> Sonstige positive Klimarelevanz | C28: 12 | D28: =Berechnungen!C475 -> Gibt es eine positive Auswirkung auf das Klima, die in den vorherigen Fragen nicht erwähnt wurde? | O28: =Bearbeitung!Q312 ->  | P28: =Bearbeitung!R312 ->  | Q28: =Bearbeitung!S312 -> 

Sheet Beschlussampel
B2: Klimarelevanz Beschlussampel
B4: =Klimarelevanzprüfung!A14 -> Projektname: | D4: =IF(Klimarelevanzprüfung!C14 ="","", Klimarelevanzprüfung!C14) ->  | E4: =Klimarelevanzprüfung!I14 -> Projektnr. /Geschäftszahl | F4: =IF(Klimarelevanzprüfung!J14 ="","", Klimarelevanzprüfung!J14) -> 
B5: =Klimarelevanzprüfung!A12 -> Abteilung: | D5: =IF(Klimarelevanzprüfung!C12 ="","", Klimarelevanzprüfung!C12) ->  | E5: Datum: | F5: =IF(Klimarelevanzprüfung!J13 ="","", Klimarelevanzprüfung!J13) ->  | K5: Ja
B6: Sachbearbeiter/in: | D6: =IF(Klimarelevanzprüfung!C13 ="","", Klimarelevanzprüfung!C13) -> 
B7: =Klimarelevanzprüfung!A16 -> Projektbeschreibung: | D7: =IF(Klimarelevanzprüfung!C16="","",Klimarelevanzprüfung!C16) ->  | K7: Projekt ist nicht klimarelevant
D8: =IF(Klimarelevanzprüfung!C17="","",Klimarelevanzprüfung!C17) ->  | K8: Klimarelevanzprüfung negativ
B9: Prüfungsergebnis: | D9: Projekt ist nicht klimarelevant | F9: Ampel: | G9: =IF(D9=K8,-1,IF(D9=K9,0,IF(D9=K10,1,""))) ->  | K9: Klimarelevanzprüfung positiv trotz negativer Klimaauswirkungen
B10: Prüfungsanmerkungen: | F10: Geprüft durch Klimaschutz-Sachbearbeiter/in: | K10: Klimarelevanzprüfung positiv

Sheet Anleitung
A1: Kriterienkatalog zur Prüfung und Bewertung kommunaler Beschlussvorlagen auf Klimarelevanz
A2: Informationen zur Benützung
A3: Das Bewertungstool gliedert sich in die Bereiche Klimarelevanzprüfung, Beschlussampel und Anleitung.
A4: In der Klimarelevanzprüfung finden alle relevanten Eingaben zur Klimarelevanzprüfung statt.
A5: Die Beschlussampel zeigt auf einen Blick die Klimarelevanz des Vorhabens und dient der Freigabe.
A6: Die Anleitung gibt Hinweise zur Verwendung der wesentlichen Bereiche des Tools.
A8: Klimarelevanzprüfung
A9: Einstieg: Beim Einstieg werden die Daten von dem zuständigen Sachbearbeiter bzw. der Sachbearbeiterin (Name, Abteilung) sowie zum Projekt bzw. der Beschlussvorlage (Name/Nummer, optionale Beschreibung) eingegeben. Das Bild von der Gemeinde und das Logo können ausgetauscht werden. Die Einwohnerzahl muss eingetragen werden, da diese die Schwellenwerte für die Bewertung bestimmen. Sodann erfolgt die erste Stufe der Prüfung, die Voreinschätzung der Klimarelevanz. Ist die Antwort "Nein" kann die Klimaprüfung - nach einer Begründung - beendet werden und das Tool speichert das Ergebnis als eigene Bewertungsdatei.
A10: Fragen zu dem betrachteten Thema : Durch Auswahl von „Ja/Vielleicht“ öffnet sich der Kriterienkatalog mit insgesamt 12 Fragen. Die Fragen 1 bis 6 beziehen sich auf mögliche negative Klimarelevanz bzw. Klimaschaden. Die Fragen 7 bis 12 betrachten positive Klimarelevanz bzw. Klimanutzen. Abhängig vom Thema müssen vom Sachbearbeiter bzw. der Sachbearbeiterin zwischen einer und maximal 12 Fragen beantwortet werden. Deshalb ist eine Themenauswahl - bei der Programmbeschreibung rechts oben - hilfreich. Es werden nur die jeweils relevanten Fragen eingeblendet, um eine schnelle Durchführung zu ermöglichen. Beim Thema Gebäude sind die Fragen 1, 3, 4, 7 sowie 9 in jedem Fall zu bearbeiten, bei (sehr) großen Bauprojekten, die das Verkehrsaufkommen beeinflussen können, zusätzlich die Fragen 2, 8 und 11. Beim Thema Beschaffung sind 2 Fragen zu bearbeiten. Alle zur Zeit vordefinierten Themen sind in der Tabelle Themenzuordnung zu finden.
A11: Detailfragen: Für die eingeblendeten Fragen jedes Themas kann wiederum die Klimarelevanz durch Klicken von „Ja/Vielleicht“ oder „Nein“ beantwortet werden. Durch das Klicken von „Nein“ wird diese Frage in hellgrauer Schrift angezeigt und damit als nicht relevant gekennzeichnet. Mit der Auswahl von „Ja/Vielleicht“ öffnen sich die Detailfragen. Unter "Hilfe" finden sich erklärende Hilfetexte bei den Fragen. Sind alle Detailfragen bantwortet wird mit "Weiter/Schließen" beendet. Wenn rote oder gelbe Ampeln vorhanden sind, zeigt es die Alternativenprüfung.
A12: Kriterien zu jeder Detailfrage: Der Sachbearbeiter bzw. die Sachbearbeiterin wird nach Kriterien befragt, die er/sie im Normalfall bei der Vorbereitung des Beschlusses leicht eingeben kann. Z. B. bei einem Bauprojekt die Bruttogeschoßfläche, bei einem Verkehrsprojekt die Anzahl zusätzlicher Stellplätze oder bei einem Beschaffungsprojekt der Anteil nach bestimmten Richtlinien eingekauften/beschafften Produkte. Bei Fragen mit temporärer Auswirkung kann man die Einstufung um eine Stufe reduzieren.
A13: Für die Antworten benötigt man keine exakt berechneten Werte sondern man wählt per Dropdown einen vorgegebenen Bereich. Es steht auch immer die Auswahl von „nicht relevant“ zur Verfügung, wenn das zu bearbeitende Vorhaben mit dieser Detailfragestellung nichts zu tun hat. Aus diesen Informationen nimmt das Tool selbstständig eine Einstufung des möglichen CO2-Effekts des Beschlusses vor. Ist der Effekt über einem bestimmten Schwellenwert (etwa 100 t CO2), dann ist der geplante Beschluss erheblich klimarelevant (rote Ampel).
A14: Ampelsystem: Nach jeder Beantwortung einer Detailfrage wird die Klimarelevanz sofort in Form eines Ampelsystems angezeigt. Für den Bereich der negativen Klimaauswirkungen (Klimaschaden) in den Fragen 1 bis 6 gilt:
A15: Grüne Ampel signalisiert: Der Beschluss ist wenig klimaschädlich
A16: Gelbe Ampel signalisiert: Der Beschluss ist klimaschädlich
A17: Rote Ampel signalisiert: Der Beschluss ist sehr klimaschädlich
A18: Die Schwelllenwerte sind von der Einwohnerzahl abhängig: Bei Einwohnerzahl unter 5000 Einwohner: Grüne Ampel: < 1 t / Gelbe Ampel: 1 - 20 t / Rote AmpeL: > 20 t CO2 auf Lebensdauer Bei Einwohnerzahl von 5.000 bis 10.000 Einwohner: Grüne Ampel: < 3 t / Gelbe Ampel: 3 - 60 t / Rote AmpeL: > 60 t CO2 auf Lebensdauer Bei Einwohnerzahl ab 10.000 Einwohner: Grüne Ampel: < 5 t / Gelbe Ampel: 5 - 100 t / Rote Ampel: > 100 t CO2 auf Lebensdauer
A19: Alternativenfindung: Abhängig von der Klimarelevanz ergeben sich nun folgende Prozesse für die Verwaltung.
A20: Vorgehen bei negativen Auswirkungen (Fragen zur Klimaschädlichkeit 1 - 6):
A21: Gelbe Ampel (mittlere Klimaschädlichkeit) : Überprüfung durch den Sachbearbeiter bzw. die Sachbearbeiterin selbst, ob es Alternativen mit weniger negativen Effekten gibt, wenn möglich Änderung noch vor Vorlage zum Beschluss. Auch dazu bietet das Tool Tipps zur Alternativenfindung wie z. B. der Einsatz von Ökostrom bei hohem Strombedarf. Hat man eine Alternative gewählt, gibt man im Tool bei der Alternativenprüfung bei der entsprechenden Detailfrage den nunmehr reduzierten Wert ein. Damit verschwindet die zuvor gelbe Ampel jetzt. Rote Ampel (hohe Klimaschädlichkeit): Einbeziehung Sachbearbeiter/in Klimaschutz ist in diesem Fall notwendig. In der Folge findet eine gemeinsame Bewertung und Überprüfung statt, ob es Alternativen mit weniger negativen Effekten gibt. Am Ende kann entweder ein alternativer Beschlussvorschlag erstellt werden (wird auch im Tool eingegeben) oder eine Kompensationsmaßnahme (mit hohen Klimanutzen) gewählt werden, um die nicht vermeidbaren (zu) hohen CO2-Emissonen abzumindern. Wenn weder die Alternativenprüfung Erfolg bringt noch eine Kompensation möglich ist, wird dies durch einen negativen Abschluss der Klimarelevanzprüfung angezeigt (rote Ampel nicht kompensiert).
A22: Vorgehen bei positiven Auswirkungen (Fragen zum Klimanutzen 7 - 12):
A23: Smiley K (Potenzial für Klimaschutz teilweise ausgenutzt): Überprüfung durch den Sachbearbeiter bzw. die Sachbearbeiterin selbst, ob eine Alternative mit noch größerem positiven Effekt möglich ist. Auch dazu bietet das Tool Tipps zur Alternativenfindung wie z. B. Vergrößerung der ursprünglich geplanten Photovoltaikanlage, um ein Dach möglichst vollständig auszunutzen. Smiley L (Potenzial für Klimaschutz wenig oder gar nicht genutzt): Einbeziehung Sachbearbeiter/in Klimaschutz ist in diesem Fall notwendig. In der Folge findet eine gemeinsame Bewertung und Überprüfung statt, ob eine Alternative mit deutlich positiverem Effekt umsetzbar ist. Auch dazu bietet das Tool wiederum Tipps zur Alternativenfindung wie z.B. thermische Sanierung eines Gebäudes, wo ursprünglich nur ein ästhetischer Umbau geplant war.
A24: Kompensation – Klimanutzen gleicht Klimaschaden aus Bei den Fragen 7 und 9 gibt es die Möglichkeit den positiven Klimaeffekt für Kompensationsmaßnahmen zu quantifizieren. Dazu gibt der Sachbearbeiter bzw. die Sachbearbeiterin die entsprechende Größe (z. B. Fläche in m2) in das Tool ein. Es wird eine automatische Einstufung entsprechend der gelben Ampel (> 5 und < 100 t CO2) bzw. roten Ampel (> 100 t CO2) durchgeführt. Dadurch ist es direkt im Tool möglich einen Klimaschaden durch einen Klimanutzen in gleicher Größe zu kompensieren. Bei den anderen Fragen 8, 10, 11 und 12 geschieht dies automatisch durch das Tool, da hier nur qualitative Einstufungen möglich sind.
A25: Ampelsystem für den Bereich der Kompensation:
A26: Grüne Ampel auf hellgrünem Hintergrund signalisiert: Der Beschluss hat geringen Klimanutzen
A27: Grüne Ampel auf grünem Hintergrund signalisiert: Der Beschluss hat mittleren Klimanutzen
A28: Grüne Ampel auf dunkelgrünem Hintergrund signalisiert: Der Beschluss hat hohen Klimanutzen
A29: Die Schwelllenwerte sind von der Einwohnerzahl abhängig: Bei Einwohnerzahl unter 5000 Einwohner: geringer Klimanutzen < 1 t / mittlerer Klimanutzen 1 - 20 t / hoher Klimanutzen > 20 t CO2 auf Lebensdauer Bei Einwohnerzahl von 5.000 bis 10.000 Einwohner: geringer Klimanutzen < 3 t / mittlerer Klimanutzen 3 - 60 t / hoher Klimanutzen > 60 t CO2 auf Lebensdauer Bei Einwohnerzahl ab 10.000 Einwohner: geringer Klimanutzen < 5 t / mittlerer Klimanutzen 5 - 100 t / hoher Klimanutzen > 100 t CO2 auf Lebensdauer
A30: CO2-Berechnung: - Gebäudebereich: mittlere Verbrauchswerte mit einer Nutzungsdauer von 20 Jahren bei Wärme bzw. 10 Jahren bei Strom - Mobilität: durchschnittliche Fahrtstrecken und mittlerer Spritverbrauch für PKW und LKW an 250 Werktagen pro Jahr (bei neuen Straßen: bei einer Nutzungsdauer von 10 Jahren) - Naturbereiche: in Studien ermittelte CO2-Werte für Grünflächen und Bäume und einer Nutzungsdauer von 50 Jahren - Solarenergie: durchschnittliche Sonneneinstrahlung mit einer Nutzungsdauer von 20 Jahren
A31: Beschlussampel - das Übersichtsblatt für den Abschluss der Klimarelvanzprüfung.
A32: Nach Bearbeitung der im jeweiligen Themenbereich vorgesehenen Fragen und etwaiger Alternativenfindung durch den/die Sachbearbeiter/in alleine (bei mittlerer Klimarelevanz – gelbe Ampel) oder gemeinsam mit dem/der Sachbearbeiter/in Klimaschutz (bei hoher Klimarelevanz – rote Ampel) findet man auf der abschließenden Seite ein Übersichtsblatt über etwaige verbliebene gelbe oder rote Ampeln, sowie von den SachbearbeiterInnen vorgeschlagene Kompensationsmaßnahmen (nur die bei gelbe und rote Ampeln).
A33: Abschluss: Dieses Blatt dient dem Abschluss der Klimarelvanzprüfung durch die Sachbearbeiter/innen (bei einer roten Ampel durch die Sachbearbeiter/innen Klimaschutz ) und muss dem Beschlussakt beigefügt werden. Wenn keine rote Ampel verblieben ist, wird die Klimarelvanzprüfung positiv abgeschlossen, bei einer roten Ampel ohne Kompensation negativ. Für den Fall einer verbliebenen roten Ampel, die jedoch ausreichend kompensiert wird, wird die Klimarelevanzprüfung durch den Sachbearbeiter Klimaschutz „positiv trotz negativer Klimaauswirkungen“ abgeschlossen. Mit drei übrig gebliebenen mittelgrünen Kompensationsampeln kann auch eine rote Ampel kompensiert werden. Das vorgeschlagene Ergebnis kann händisch geändert werden, dies muss aber dann begründet werden.
A34: Vorschlag für Abschluss: • Bei verbliebener gelber Ampel: Abschluss durch die Sachbearbeiter/innen der Fachabteilungen. • Bei roter Ampel: Abschluss der Klimarelevanzprüfung durch die Sachbearbeiter/innen Klimaschutz.
A35: Anmerkungen und Rückfragen an:
A36: Für Niederösterreich: Iris Baart
A37: klimarelevanztool@enu.at
A38: Für alle anderen Bundesländer: e5-Ansprechpartner in Ihrem Bundesland
A39: https://www.e5-gemeinden.at/ueber-uns/e5-in-den-bundeslaendern
A42: Die Nutzung und Weitergabe des Tools ist ausschließlich Gemeinden vorbehalten (nicht Privatpersonen) nach Zustimmung des jeweiligen e5-Landesprogrammträgers: in Niederösterreich die eNu, in anderen Bundesländern durch die jeweilige e5-Landesorganisation. Das Tool zur Klimarelevanzprüfung wurde in einem gemeinsamen Projekt der Stadt Krems mit der Energie- und Umweltagentur NÖ (eNu) erstellt. Die Rechte für das Tool zur Klimarelevanzprüfung liegen bei der Stadt Krems, die Rechte für die Weitergabe liegen bei der Energie- und Umweltagentur NÖ (eNu).
A43: Autoren:
A44: Energie- und Umweltagentur des Landes NÖ Mag.a Dr.in Iris Baart, MSc, eNu Dr. Heimo Bürbaumer, eNu (bis 2023) Ing. Ewald Grabner, eNu (bis 2021)
A45: Version:
A46: Beschlussprüfung V 1.9 Software MS Excel für Microsoft 365 MSO

Sheet Themenzuordnung
C1: Themen | J1: Dieses Projekt:
A2: Frage Nr | B2: Frage | C2: alle Fragen einblenden | D2: Verkehr | E2: Gebäude | F2: Gebäude mit Verkehrsaufkommen | G2: Beschaffung, Subvention | H2: Infrastruktur | I2: Planung | J2: =Klimarelevanzprüfung!J12 -> alle Fragen einblenden | K2: Dargestellte Fragen
A3: 1 | B3: Fossile Energie | C3: ja | E3: ja | F3: ja | H3: ja | J3: =HLOOKUP(J2,C2:I14,2,FALSE) -> ja | K3: =IF(J3="Ja",A3,"") -> 1
A4: 2 | B4: Motorisierter Verkehr | C4: ja | D4: ja | F4: ja | H4: ja | J4: =HLOOKUP(J2,C2:I14,3,FALSE) -> ja | K4: =IF(J4="Ja",A4,"") -> 2
A5: 3 | B5: Versiegelung | C5: ja | D5: ja | E5: ja | F5: ja | H5: ja | I5: ja | J5: =HLOOKUP(J2,C2:I14,4,FALSE) -> ja | K5: 3
A6: 4 | B6: Bauen | C6: ja | E6: ja | F6: ja | H6: ja | J6: =HLOOKUP(J2,C2:I14,5,FALSE) -> ja | K6: 4
A7: 5 | B7: Beschaffung, Subvention | C7: ja | G7: ja | J7: =HLOOKUP(J2,C2:I14,6,FALSE) -> ja | K7: 5
A8: 6 | B8: Sonstige neg. Klimarelevanz | C8: ja | I8: ja | J8: =HLOOKUP(J2,C2:I14,7,FALSE) -> ja | K8: 6
A9: 7 | B9: Erneuerbare Energie | C9: ja | E9: ja | F9: ja | G9: ja | H9: ja | I9: ja | J9: =HLOOKUP(J2,C2:I14,8,FALSE) -> ja | K9: 7
A10: 8 | B10: Klimafreundliche Mobilität | C10: ja | D10: ja | F10: ja | H10: ja | J10: =HLOOKUP(J2,C2:I14,9,FALSE) -> ja | K10: 8
A11: 9 | B11: Begrünungen | C11: ja | E11: ja | F11: ja | H11: ja | I11: ja | J11: =HLOOKUP(J2,C2:I14,10,FALSE) -> ja | K11: 9
A12: 10 | B12: Planung | C12: ja | H12: ja | I12: ja | J12: =HLOOKUP(J2,C2:I14,11,FALSE) -> ja | K12: 10
A13: 11 | B13: Öffentlichkeitsarbeit | C13: ja | D13: ja | F13: ja | G13: ja | J13: =HLOOKUP(J2,C2:I14,12,FALSE) -> ja | K13: 11
A14: 12 | B14: Sonstige pos. Klimarelevanz | C14: ja | I14: ja | J14: =HLOOKUP(J2,C2:I14,13,FALSE) -> ja | K14: 12
A16: Speicherort für Beschlussprüfungen:
A67: Klimarelevanzprüfung-Button 55-Weiter / Schließen-'Beschlussprüfung_Krems_20210201_mit Beschreibung_V1.xlsm'!Weiter_8
A68: Klimarelevanzprüfung-Button 56-Weiter / Schließen-'Beschlussprüfung_Krems_20210201_mit Beschreibung_V1.xlsm'!Weiter_9
A69: Klimarelevanzprüfung-Button 57-Zur Beschlussampel-'Beschlussprüfung_Krems_20210201_mit Beschreibung_V1.xlsm'!Beschlussampel
A70: Klimarelevanzprüfung-Button 58-Ja / Vielleicht-'Beschlussprüfung_Krems_20210201_mit Beschreibung_V1.xlsm'!Bearbeiten_6
A71: Klimarelevanzprüfung-Button 59-Schließen-'Beschlussprüfung_Krems_20210201_mit Beschreibung_V1.xlsm'!Schliessen_6
A72: Klimarelevanzprüfung-Button 60-Nein-'Beschlussprüfung_Krems_20210201_mit Beschreibung_V1.xlsm'!Nicht_bearbeiten_6
A73: Klimarelevanzprüfung-Button 61-Weiter / Schließen-'Beschlussprüfung_Krems_20210201_mit Beschreibung_V1.xlsm'!Weiter_12
A74: Klimarelevanzprüfung-Button 62-Zu den Prüfungsfragen-'Beschlussprüfung_Krems_20210201_mit Beschreibung_V1.xlsm'!Pruefung_starten
A75: Klimarelevanzprüfung-Button 63-Berechnungsanzeige ein/aus-'Beschlussprüfung_Krems_20210201_mit Beschreibung_V1.xlsm'!Berechnungen_anzeigen
A76: Beschlussampel-Button 64-Prüfung speichern-'Beschlussprüfung_Krems_20210201_mit Beschreibung_V1.xlsm'!Abschluss
A77: Beschlussampel-Button 65-Zur Projektbeschreibung-'Beschlussprüfung_Krems_20210201_mit Beschreibung_V1.xlsm'!Einstieg_starten
A78: Beschlussampel-Button 66-Zu den Prüfungsfragen-'Beschlussprüfung_Krems_20210201_mit Beschreibung_V1.xlsm'!Pruefung_starten
A79: Beschlussampel-Button 67-Beschlussampel drucken-'Beschlussprüfung_Krems_20210201_mit Beschreibung_V1.xlsm'!Ausdruck_als_pdf

Sheet Bearbeitung (hidden)
B1: Value | C1: Ampelwerte | F1: Kompen-sation | G1: Umsetzung | J1: Ampelwerte | Q1: Ergebnis Beschlussampel | R1: Klimaschaden hoch | S1: =IF(AND(R8="",S8="", R32="", S32="",R55="",S55="",R79="",S79="",R106="",S106="",R129="",S129=""),"",SUM(S8,S32,S55,S79,S106, S129)) ->  | T1: =IF(S1="",0,S1) -> 0 | U1: =IF(AND(S1="",S2=""),Beschlussampel!K7,(IF(T1>=1,(IF(T1-T2 <=0,Beschlussampel!K9,Beschlussampel!K8)),Beschlussampel!K10))) -> Projekt ist nicht klimarelevant | V1: =SUM(R8,R32,R55,R79,R106,R129) -> 0 | W1: =Beschlussampel!D9 -> Projekt ist nicht klimarelevant
C2: =-1 -> -1 | D2: =0 -> 0 | E2: =1 -> 1 | G2: 😐 | H2: 🙂 | I2: 😀 | J2: 1 | K2: 2 | L2: 3 | O2: Wert | P2: Einheit | R2: Klimanutzen hoch | S2: =IF(AND(R190="",S190="",R157="",S157="",R223="",S223="",R312="",S312="",R253="",S253="",R286="",S286=""),"",SUM(S190,S157,S223,S312,S253,S286)) ->  | T2: =IF(AND(S2="",V2="",),0,SUM(S2,V2)) -> 0 | U2: Klimanutzenmittel | V2: =IF((SUM(R157,R190,R223,R312,R253,R286)-V1)/3 >= 1,ROUNDDOWN(((SUM(R157,R190,R223,R312,R253,R286)-V1))/3,0),"") -> 
A3: Frage 1 | B3: nein | N3: =Berechnungen!C18 -> Wird durch das Vorhaben zusätzlich fossile Energie (Öl, Gas, Kohle, fossiler Strom) in einem Gebäude oder einer Anlage verbraucht? | Q3: -1 | R3: =0 -> 0 | S3: =1 -> 1 | T3: kompensationsmaßnahme (Ja/nein)
A4: Frage 11 | C4: =IF(B4=Berechnungen!N20,1,0) -> 0 | D4: =IF(B4=Berechnungen!O20,1,0) -> 0 | E4: =IF(B4=Berechnungen!P20,1,0) -> 0 | N4: =Berechnungen!C20 -> Wird mit fossiler Energie (Öl, Gas) geheizt? Für welche zusätzliche Bruttogrundfläche? | O4: =IF(B10="",B4,B10) -> 0 | P4: =Berechnungen!E20 -> m2 BGF | Q4: =IF(O4=Berechnungen!N20,1,0) -> 0 | R4: =IF(O4=Berechnungen!O20,1,0) -> 0 | S4: =IF(O4=Berechnungen!P20,1,0) -> 0
A5: Frage 12 | C5: =IF(B5=Berechnungen!N21,1,0) -> 0 | D5: =IF(B5=Berechnungen!O21,1,0) -> 0 | E5: =IF(B5=Berechnungen!P21,1,0) -> 0 | N5: =Berechnungen!C21 -> Wird Strom mit fossilem Anteil genutzt? Für welche zusätzliche Bruttogrundfläche (Berechnung für Wohngebäude siehe Hilfe)? | O5: =IF(B11="",B5,B11) -> 0 | P5: =Berechnungen!E21 -> m2 BGF | Q5: =IF(O5=Berechnungen!N21,1,0) -> 0 | R5: =IF(O5=Berechnungen!O21,1,0) -> 0 | S5: =IF(O5=Berechnungen!P21,1,0) -> 0
A6: Frage13 | C6: =IF(B6=Berechnungen!N22,1,0) -> 0 | D6: =IF(B6=Berechnungen!O22,1,0) -> 0 | E6: =IF(B6=Berechnungen!P22,1,0) -> 0 | N6: =Berechnungen!C22 -> Werden für Prozesswärme zusätzlich fossile Brennstoffe verbraucht? In welcher Höhe (geschätzt)? | O6: =IF(B12="",B6,B12) -> 0 | P6: =Berechnungen!E22 -> kWh pro Jahr | Q6: =IF(O6=Berechnungen!N22,1,0) -> 0 | R6: =IF(O6=Berechnungen!O22,1,0) -> 0 | S6: =IF(O6=Berechnungen!P22,1,0) -> 0
A7: Frage14 | C7: =IF(B7=Berechnungen!N23,1,0) -> 0 | D7: =IF(B7=Berechnungen!O23,1,0) -> 0 | E7: =IF(B7=Berechnungen!P23,1,0) -> 0 | N7: =Berechnungen!C23 -> Wird für einen Prozess / ein Vorhaben zusätzlich Strom mit fossilen Anteilen verwendet? In welcher Höhe (geschätzt)? | O7: =IF(B13="",B7,B13) -> 0 | P7: =Berechnungen!E23 -> kWh pro Jahr | Q7: =IF(O7=Berechnungen!N23,1,0) -> 0 | R7: =IF(O7=Berechnungen!O23,1,0) -> 0 | S7: =IF(O7=Berechnungen!P23,1,0) -> 0
A8: TextBox11 | N8: Summe | Q8: =IF(SUM(Q4:Q7)=0,"",SUM(Q4:Q7)) ->  | R8: =IF(SUM(R4:R7)=0,"",SUM(R4:R7)) ->  | S8: =IF(SUM(S4:S7)=0,"",SUM(S4:S7)) ->  | T8: =F14 -> 
A9: TextBox12
A10: Alternativ11 | C10: =IF(OR(B10=Berechnungen!M36,B10=Berechnungen!N36),1,0) -> 0 | D10: =IF(B10=Berechnungen!O36,1,0) -> 0 | E10: =IF(C10=Berechnungen!P36,1,0) -> 0
A11: Alternativ12 | C11: =IF(OR(B11=Berechnungen!M37,B11=Berechnungen!N37),1,0) -> 0 | D11: =IF(B11=Berechnungen!O37,1,0) -> 0 | E11: =IF(C11=Berechnungen!P37,1,0) -> 0
A12: Alternativ13 | C12: =IF(OR(B12=Berechnungen!M38,B12=Berechnungen!N38),1,0) -> 0 | D12: =IF(B12=Berechnungen!O38,1,0) -> 0 | E12: =IF(C12=Berechnungen!P38,1,0) -> 0 | N12: Fossile Energie | O12: 1 | P12: =N3 -> Wird durch das Vorhaben zusätzlich fossile Energie (Öl, Gas, Kohle, fossiler Strom) in einem Gebäude oder einer Anlage verbraucht?
A13: Alternativ14 | C13: =IF(OR(B13=Berechnungen!M39,B13=Berechnungen!N39),1,0) -> 0 | D13: =IF(B13=Berechnungen!O39,1,0) -> 0 | E13: =IF(C13=Berechnungen!P39,1,0) -> 0 | O13: 1.1. | P13: =N4 -> Wird mit fossiler Energie (Öl, Gas) geheizt? Für welche zusätzliche Bruttogrundfläche? | Q13: =O4 -> 0 | R13: m2 BGF | S13: =IF(R4>0,$R$3,"") ->  | T13: =IF(S4>0,$S$3,"") -> 
A14: Textbox13 | F14: =IF(B14 = "","","ja") ->  | O14: 1.2. | P14: =N5 -> Wird Strom mit fossilem Anteil genutzt? Für welche zusätzliche Bruttogrundfläche (Berechnung für Wohngebäude siehe Hilfe)? | Q14: 0 | R14: m2 BGF | S14: =IF(R5>0,$R$3,"") ->  | T14: =IF(S5>0,$S$3,"") -> 
O15: 1.3. | P15: =N6 -> Werden für Prozesswärme zusätzlich fossile Brennstoffe verbraucht? In welcher Höhe (geschätzt)? | Q15: 0 | R15: kWh pro Jahr | S15: =IF(R6>0,$R$3,"") ->  | T15: =IF(S6>0,$S$3,"") -> 
O16: 1.4. | P16: =N7 -> Wird für einen Prozess / ein Vorhaben zusätzlich Strom mit fossilen Anteilen verwendet? In welcher Höhe (geschätzt)? | Q16: 0 | R16: kWh pro Jahr | S16: =IF(R7>0,$R$3,"") ->  | T16: =IF(S7>0,$S$3,"") -> 
N17: Kompensationsmaßnahmen: | O17: =IF(T8="Ja", B14,"") ->  | S17: =IF(O17="","",".") -> 
A26: Frage2 | B26: nein | N26: =Berechnungen!C56 -> Erzeugt das Vorhaben zusätzlichen motorisierten PKW- oder Güterverkehr? | O26: Wert | P26: Einheit | Q26: -1 | R26: =0 -> 0 | S26: =1 -> 1 | T26: kompensationsmaßnahme (Ja/nein)
A27: Frage21 | C27: =IF(B27=Berechnungen!N58,1,0) -> 0 | D27: =IF(B27=Berechnungen!O58,1,0) -> 0 | E27: =IF(B27=Berechnungen!P58,1,0) -> 0 | N27: =Berechnungen!C58 -> Werden der motorisierte PKW- und Güterverkehr (> 3,5 t) durch die Maßnahme erhöht? Wie viele Fahrten werden pro Tag zusätzlich erzeugt (grobe Schätzung)? Beispiele: Widmung Gewerbegebiet mit voraussichtl. Verkehrszunahme, Errichtung Einkaufszentrum oder Freizeiteinrichtung, Veranstaltungen etc. | O27: =IF(B34="",B27,B34) -> 0 | P27: =Berechnungen!E58 -> Fahrten pro Werktag | Q27: =IF(O27=Berechnungen!N58,1,0) -> 0 | R27: =IF(O27=Berechnungen!O58,1,0) -> 0 | S27: =IF(O27=Berechnungen!P58,1,0) -> 0
A28: Frage22 | C28: =IF(B28=Berechnungen!N59,1,0) -> 0 | D28: =IF(B28=Berechnungen!O59,1,0) -> 0 | E28: =IF(B28=Berechnungen!P59,1,0) -> 0 | N28: =Berechnungen!C59 -> Werden im Zuge des Projekts Stellplätze neu errichtet? Um wie viele zusätzliche Stellplätze handelt es sich? | O28: =IF(B35="",B28,B35) -> 0 | P28: =Berechnungen!E59 -> Anzahl | Q28: =IF(O28=Berechnungen!N59,1,0) -> 0 | R28: =IF(O28=Berechnungen!O59,1,0) -> 0 | S28: =IF(O28=Berechnungen!P59,1,0) -> 0
A29: Frage23 | C29: =IF(B29=Berechnungen!N60,1,0) -> 0 | D29: =IF(B29=Berechnungen!O60,1,0) -> 0 | E29: =IF(B29=Berechnungen!P60,1,0) -> 0 | N29: =Berechnungen!C60 -> Werden Straßen verbreitert, begradigt, saniert oder zusätzlich errichtet? Wie viele Laufmeter Straße werden für den PKW- oder Güterverkehr verbessert bzw. zusätzlich errichtet? | O29: =IF(B36="",B29,B36) -> 0 | P29: =Berechnungen!E60 -> Länge in m | Q29: =IF(O29=Berechnungen!N60,1,0) -> 0 | R29: =IF(O29=Berechnungen!O60,1,0) -> 0 | S29: =IF(O29=Berechnungen!P60,1,0) -> 0
A30: Frage24 | C30: =IF(B30=Berechnungen!N61,1,0) -> 0 | D30: =IF(B30=Berechnungen!O61,1,0) -> 0 | E30: =IF(B30=Berechnungen!P61,1,0) -> 0 | N30: =Berechnungen!C61 -> Führen Maßnahmen in der Parkraumbewirtschaftung zu mehr motorisiertem Verkehr? Beispiele: Gebührenreduzierung, Parkgebühr-Ausnahmen (zeitbezogen, Personen-/Fahrzeugbezogen) | O30: =IF(B37="",B30,B37) -> 0 | Q30: =IF(O30=Berechnungen!N61,1,0) -> 0 | R30: =IF(O30=Berechnungen!O61,1,0) -> 0 | S30: =IF(O30=Berechnungen!P61,1,0) -> 0
A31: Frage25 | C31: =IF(B31=Berechnungen!N62,1,0) -> 0 | D31: =IF(B31=Berechnungen!O62,1,0) -> 0 | E31: =IF(B31=Berechnungen!P62,1,0) -> 0 | N31: =Berechnungen!C62 -> Behindert die Maßnahme klimafreundlichen Verkehr (Radfahren, zu Fuß gehen, ÖFFIS), z.B. Unterbrechung oder Reduzierung eines Fußgängerwegs oder Fahrradwegs ? | O31: =IF(B38="",B31,B38) -> 0 | Q31: =IF(O31=Berechnungen!N62,1,0) -> 0 | R31: =IF(O31=Berechnungen!O62,1,0) -> 0 | S31: =IF(O31=Berechnungen!P62,1,0) -> 0
A32: Textbox1 | N32: Summe | Q32: =IF(SUM(Q27:Q31)=0,"",SUM(Q27:Q31)) ->  | R32: =IF(SUM(R27:R31)=0,"",SUM(R27:R31)) ->  | S32: =IF(SUM(S27:S31)=0,"",SUM(S27:S31)) ->  | T32: =F39 -> 
A33: Textbox2
A34: Alternativ21 | C34: =IF(OR(B34=Berechnungen!N76,B34=Berechnungen!M76),1,0) -> 0 | D34: =IF(C34=Berechnungen!O76,1,0) -> 0 | E34: =IF(D34=Berechnungen!P76,1,0) -> 0
A35: Alternativ22 | C35: =IF(OR(B35=Berechnungen!N77,B35=Berechnungen!M77),1,0) -> 0 | D35: =IF(C35=Berechnungen!O77,1,0) -> 0 | E35: =IF(D35=Berechnungen!P77,1,0) -> 0
A36: Alternativ23 | C36: =IF(OR(B36=Berechnungen!N78,B36=Berechnungen!M78),1,0) -> 0 | D36: =IF(C36=Berechnungen!O78,1,0) -> 0 | E36: =IF(D36=Berechnungen!P78,1,0) -> 0 | N36: Motorisierter Verkehr | O36: 2 | P36: =N26 -> Erzeugt das Vorhaben zusätzlichen motorisierten PKW- oder Güterverkehr?
A37: Alternativ24 | C37: =IF(OR(B37=Berechnungen!N79,B37=Berechnungen!M79),1,0) -> 0 | D37: =IF(C37=Berechnungen!O79,1,0) -> 0 | E37: =IF(D37=Berechnungen!P79,1,0) -> 0 | O37: 2.1. | P37: =N27 -> Werden der motorisierte PKW- und Güterverkehr (> 3,5 t) durch die Maßnahme erhöht? Wie viele Fahrten werden pro Tag zusätzlich erzeugt (grobe Schätzung)? Beispiele: Widmung Gewerbegebiet mit voraussichtl. Verkehrszunahme, Errichtung Einkaufszentrum oder Freizeiteinrichtung, Veranstaltungen etc. | Q37: =O27 -> 0 | R37: =P27 -> Fahrten pro Werktag | S37: =IF(R27>0,$R$26,"") ->  | T37: =IF(S27>0,$S$26,"") -> 
A38: Alternativ25 | C38: =IF(OR(B38=Berechnungen!N80,B38=Berechnungen!M80),1,0) -> 0 | D38: =IF(C38=Berechnungen!O80,1,0) -> 0 | E38: =IF(D38=Berechnungen!P80,1,0) -> 0 | O38: 2.2. | P38: =N28 -> Werden im Zuge des Projekts Stellplätze neu errichtet? Um wie viele zusätzliche Stellplätze handelt es sich? | Q38: 0 | R38: Anzahl | S38: =IF(R28>0,$R$26,"") ->  | T38: =IF(S28>0,$S$26,"") -> 
A39: Textbox3 | F39: =IF(B39 = "","","ja") ->  | O39: 2.3. | P39: Werden Straßen verbreitert, begradigt, saniert oder zusätzlich errichtet? Wie viele Laufmeter Straße werden für den PKW- oder Güterverkehr verbessert bzw. zusätzlich errichtet? | Q39: 0 | R39: Länge in m | S39: =IF(R29>0,$R$26,"") ->  | T39: =IF(S29>0,$S$26,"") -> 
O40: 2.4. | P40: Führen Maßnahmen in der Parkraumbewirtschaftung zu mehr motorisiertem Verkehr? Beispiele: Gebührenreduzierung, Parkgebühr-Ausnahmen (zeitbezogen, Personen-/Fahrzeugbezogen) | Q40: 0 | S40: =IF(R30>0,$R$26,"") ->  | T40: =IF(S30>0,$S$26,"") -> 
O41: 2.5. | P41: Behindert die Maßnahme klimafreundlichen Verkehr (Radfahren, zu Fuß gehen, ÖFFIS), z.B. Unterbrechung oder Reduzierung eines Fußgängerwegs oder Fahrradwegs ? | Q41: 0 | S41: =IF(R31>0,$R$26,"") ->  | T41: =IF(S31>0,$S$26,"") -> 
N42: Kompensationsmaßnahmen: | O42: =IF(T32="ja",B39,"") ->  | S42: =IF(O42="","",".") -> 
A51: Frage3 | B51: nein | N51: =Berechnungen!C96 -> Werden durch das Projekt zusätzliche Flächen versiegelt und/oder gehen Naturräume verloren? | Q51: -1 | R51: =0 -> 0 | S51: =1 -> 1
A52: Frage31 | C52: =IF($B$52=Berechnungen!N98,1,0) -> 0 | D52: =IF($B$52=Berechnungen!O98,1,0) -> 0 | E52: =IF($B$52=Berechnungen!P98,1,0) -> 0 | N52: =Berechnungen!C98 -> Wie viele m² Fläche gehen als biodiversitätsrelevante Flächen (z.B. Grünraum, Wälder) verloren? Für den Berechnungsschlüssel siehe Hilfe. | O52: =IF(B57="",B52,B57) -> 0 | P52: =Berechnungen!E98 -> m² | Q52: =IF(O52=Berechnungen!N98,1,0) -> 0 | R52: =IF(O52=Berechnungen!O98,1,0) -> 0 | S52: =IF(O52=Berechnungen!P98,1,0) -> 0
A53: Frage32 | C53: =IF($B$53=Berechnungen!N99,1,0) -> 0 | D53: =IF($B$53=Berechnungen!O99,1,0) -> 0 | E53: =IF($B$53=Berechnungen!P99,1,0) -> 0 | N53: =Berechnungen!C99 -> Wie viele m² Fläche werden durch das Projekt zusätzlich versiegelt? | O53: =IF(B58="",B53,B58) -> 0 | P53: =Berechnungen!E99 -> m² | Q53: =IF(O53=Berechnungen!N99,1,0) -> 0 | R53: =IF(O53=Berechnungen!O99,1,0) -> 0 | S53: =IF(O53=Berechnungen!P99,1,0) -> 0
A54: Frage33 | C54: =IF($B$54=Berechnungen!N100,1,0) -> 0 | D54: =IF($B$54=Berechnungen!O100,1,0) -> 0 | E54: =IF($B$54=Berechnungen!P100,1,0) -> 0 | N54: =Berechnungen!C100 -> Wie viel Bäume gehen verloren? | O54: =IF(B59="",B54,B59) -> 0 | P54: =Berechnungen!E100 -> Anzahl Bäume | Q54: =IF(O54=Berechnungen!N100,1,0) -> 0 | R54: =IF(O54=Berechnungen!O100,1,0) -> 0 | S54: =IF(O54=Berechnungen!P100,1,0) -> 0
A55: Textbox1 | N55: Summe | Q55: =IF(SUM(Q52:Q54)=0,"",SUM(Q52:Q54)) ->  | R55: =IF(SUM(R52:R54)=0,"",SUM(R52:R54)) ->  | S55: =IF(SUM(S52:S54)=0,"",SUM(S52:S54)) ->  | T55: =F60 -> 
A56: Textbox2
A57: Alternativ31 | C57: =IF(OR(B57=Berechnungen!M112,B57=Berechnungen!N112),1,0) -> 0 | D57: =IF(B57=Berechnungen!O112,1,0) -> 0 | E57: =IF(B57=Berechnungen!P112,1,0) -> 0
A58: Alternativ32 | C58: =IF(OR(B58=Berechnungen!M113,B58=Berechnungen!N113),1,0) -> 0 | D58: =IF(B58=Berechnungen!O113,1,0) -> 0 | E58: =IF(B58=Berechnungen!P113,1,0) -> 0
A59: Alternativ33 | C59: =IF(OR(B59=Berechnungen!M114,B59=Berechnungen!N114),1,0) -> 0 | D59: =IF(B59=Berechnungen!O114,1,0) -> 0 | E59: =IF(B59=Berechnungen!P114,1,0) -> 0 | P59: =N49 -> 0
A60: Textbox3 | F60: =IF(B60 = "","","ja") ->  | P60: =N52 -> Wie viele m² Fläche gehen als biodiversitätsrelevante Flächen (z.B. Grünraum, Wälder) verloren? Für den Berechnungsschlüssel siehe Hilfe. | Q60: 0 | R60: m² | S60: =IF(R52>0,$R$26,"") ->  | T60: =IF(S52>0,$S$51,"") -> 
P61: Wie viele m² Fläche werden durch das Projekt zusätzlich versiegelt? | Q61: 0 | R61: m² | S61: =IF(R53>0,$R$26,"") ->  | T61: =IF(S53>0,$S$51,"") -> 
P62: Wie viel Bäume gehen verloren? | Q62: 0 | R62: Anzahl Bäume | S62: =IF(R54>0,$R$26,"") ->  | T62: =IF(S54>0,$S$51,"") -> 
N63: Kompensationsmaßnahmen: | O63: =IF(T55="ja",B60,"") ->  | S63: =IF(O63="","",".") -> 
A74: Frage 4 | B74: nein | N74: =Berechnungen!C132 -> Werden beim Vorhaben Gebäude oder Anlagen neu gebaut oder saniert? | Q74: -1 | R74: =0 -> 0 | S74: =1 -> 1 | T74: kompensationsmaßnahme (Ja/nein)
A75: Frage 41 | C75: =IF(OR(B75=Berechnungen!N134,B75=Berechnungen!O134,B75=Berechnungen!P134),1,0) -> 0 | D75: =IF(B75=Berechnungen!Q134,1,0) -> 0 | E75: =IF(B75=Berechnungen!R134,1,0) -> 0 | N75: =Berechnungen!C134 -> Wird beim Gebäude-Neubau nur nach dem Mindeststandard der Bauvorschriften gebaut? Nach welchem Baustandard wird das Gebäude errichtet? | O75: =IF(B82="",B75,B82) -> 0 | Q75: =IF(OR(O75=Berechnungen!N134,O75=Berechnungen!O134,O75=Berechnungen!P134),1,0) -> 0 | R75: =IF(O75=Berechnungen!Q134,1,0) -> 0 | S75: =IF(O75=Berechnungen!R134,1,0) -> 0
A76: Frage 42 | C76: =IF(OR(B76=Berechnungen!N135,B76=Berechnungen!O135,B76=Berechnungen!P135,B76=Berechnungen!Q135),1,0) -> 0 | D76: =IF(B76=Berechnungen!R135,1,0) -> 0 | E76: =IF(B76=Berechnungen!S135,1,0) -> 0 | N76: =Berechnungen!C135 -> Wird ein bestehendes Gebäude nur mit geringstem Aufwand saniert? Welchen Baustandard hat das Gebäude nach der Sanierung? | O76: =IF(B83="",B76,B83) -> 0 | Q76: =IF((OR(O76=Berechnungen!N135,O76=Berechnungen!O135,O76=Berechnungen!P135,O76=Berechnungen!Q135)),1,0) -> 0 | R76: =IF(O76=Berechnungen!R135,1,0) -> 0 | S76: =IF(O76=Berechnungen!S135,1,0) -> 0
A77: Frage43 | C77: =IF(B77=Berechnungen!N136,1,0) -> 0 | D77: =IF(B77=Berechnungen!O136,1,0) -> 0 | E77: =IF(B77=Berechnungen!P136,1,0) -> 0 | N77: =Berechnungen!C136 -> Werden größere Mengen an neuer Bausubstanz benötigt? Wieviele m² BGF werden neu errichtet? | O77: =IF(B84="",B77,B84) -> 0 | P77: =Berechnungen!E136 -> m² BGF | Q77: =IF(O77=Berechnungen!N136,1,0) -> 0 | R77: =IF(O77=Berechnungen!O136,1,0) -> 0 | S77: =IF(O77=Berechnungen!P136,1,0) -> 0
A78: Frage44 | C78: =IF(B78=Berechnungen!N137,1,0) -> 0 | D78: =IF(B78=Berechnungen!O137,1,0) -> 0 | E78: =IF(B78=Berechnungen!P137,1,0) -> 0 | N78: =Berechnungen!C137 -> Wird beim Neubau oder bei der Sanierung von Anlagen Wert auf Klimaschutzmaßnahmen gelegt? Z.B. Niedrigenergie-Bauweise, energieeffiziente Maschinen und Geräte, ökologische Baustoffe | O78: =IF(B85="",B78,B85) -> 0 | Q78: =IF(O78=Berechnungen!N137,1,0) -> 0 | R78: =IF(O78=Berechnungen!O137,1,0) -> 0 | S78: =IF(O78=Berechnungen!P137,1,0) -> 0
N79: Summe | Q79: =IF(SUM(Q75:Q78)=0,"",SUM(Q75:Q78)) ->  | R79: =IF(SUM(R75:R78)=0,"",SUM(R75:R78)) ->  | S79: =IF(SUM(S75:S78)=0,"",SUM(S75:S78)) ->  | T79: =F86 -> 
A80: TextBox1
A81: TextBox2
A82: Alternativ41 | C82: =IF(OR(B82=Berechnungen!M134,B82=Berechnungen!N134,B82=Berechnungen!O134,B82=Berechnungen!P134),1,0) -> 0 | D82: =IF(B82=Berechnungen!Q134,1,0) -> 0 | E82: =IF(B82=Berechnungen!R134,1,0) -> 0
A83: Alternativ42 | C83: =IF(OR(B83=Berechnungen!M135,B83=Berechnungen!N135,B83=Berechnungen!O135,B83=Berechnungen!P135,B83=Berechnungen!Q135),1,0) -> 0 | D83: =IF($B$83=Berechnungen!R135,1,0) -> 0 | E83: =IF($B$83=Berechnungen!S135,1,0) -> 0 | N83: Bauen | O83: 4 | P83: =N74 -> Werden beim Vorhaben Gebäude oder Anlagen neu gebaut oder saniert?
A84: Alternativ43 | C84: =IF(OR($B$84=Berechnungen!M136,$B$84=Berechnungen!N136),1,0) -> 0 | D84: =IF(B84=Berechnungen!O136,1,0) -> 0 | E84: =IF(B84=Berechnungen!P136,1,0) -> 0 | O84: 4.1. | P84: =N75 -> Wird beim Gebäude-Neubau nur nach dem Mindeststandard der Bauvorschriften gebaut? Nach welchem Baustandard wird das Gebäude errichtet? | Q84: =O75 -> 0 | S84: =IF(R75>0,$R$3,"") ->  | T84: =IF(S75>0,$S$3,"") -> 
A85: Alternativ44 | C85: =IF(OR(B85=Berechnungen!M137,B85=Berechnungen!N137),1,0) -> 0 | D85: =IF(B85=Berechnungen!O137,1,0) -> 0 | E85: =IF(B85=Berechnungen!P137,1,0) -> 0 | O85: 4.2. | P85: =N76 -> Wird ein bestehendes Gebäude nur mit geringstem Aufwand saniert? Welchen Baustandard hat das Gebäude nach der Sanierung? | Q85: =O76 -> 0 | S85: =IF(R76>0,$R$3,"") ->  | T85: =IF(S76>0,$S$3,"") -> 
A86: Textbox3 | F86: =IF(B86 = "","","ja") ->  | O86: 4.3. | P86: =N77 -> Werden größere Mengen an neuer Bausubstanz benötigt? Wieviele m² BGF werden neu errichtet? | Q86: =O77 -> 0 | R86: =P77 -> m² BGF | S86: =IF(R77>0,$R$3,"") ->  | T86: =IF(S77>0,$S$3,"") -> 
O87: 4.4. | P87: =N78 -> Wird beim Neubau oder bei der Sanierung von Anlagen Wert auf Klimaschutzmaßnahmen gelegt? Z.B. Niedrigenergie-Bauweise, energieeffiziente Maschinen und Geräte, ökologische Baustoffe | Q87: =O78 -> 0 | S87: =IF(R78>0,$R$3,"") ->  | T87: =IF(S78>0,$S$3,"") -> 
N88: Kompensationsmaßnahmen: | O88: =IF(T79="Ja", B86,"") ->  | S88: =IF(O88="","",".") -> 
A100: Frage5 | B100: nein | N100: =Berechnungen!C174 -> Wird eine Beschaffung oder eine Ausschreibung vorgenommen? Wird eine Veranstaltung durchgeführt oder eine Organisation subventioniert? | O100: Wert | P100: Einheit | Q100: -1 | R100: =0 -> 0 | S100: =1 -> 1 | T100: kompensationsmaßnahme (Ja/nein)
A101: Frage51 | C101: =IF(B101=Berechnungen!$N$176,1,0) -> 0 | D101: =IF(B101=Berechnungen!$O$176,1,0) -> 0 | E101: =IF(B101=Berechnungen!$P$176,1,0) -> 0 | N101: =Berechnungen!C176 -> Werden Büromöbel, Textilien, Elektrogeräte, EDV/IT-Geräte, Beleuchtung, Reinigungsmittel, Büromaterial, Druckwerke und Lebensmittel nachhaltig beschafft? Wie hoch ist der Anteil dieser Produkte am Gesamtanteil (geschätzt)? | O101: =IF(B108="",B101,B108) -> 0 | Q101: =IF(O101=Berechnungen!$N$176,1,0) -> 0 | R101: =IF(O101=Berechnungen!$O$176,1,0) -> 0 | S101: =IF(O101=Berechnungen!$P$176,1,0) -> 0
A102: Frage52 | C102: =IF(OR(B102=Berechnungen!$N$177,B102=Berechnungen!$O$177),1,0) -> 0 | D102: =IF(B102=Berechnungen!$P$177,1,0) -> 0 | E102: =IF(B102=Berechnungen!$Q$177,1,0) -> 0 | N102: =Berechnungen!C177 -> Werden bei der Fuhrparkbeschaffung Fahrzeuge mit alternativem Antrieb (0 g CO2-Ausstoß im Betrieb) angeschafft? | O102: =IF(B109="",B102,B109) -> 0 | Q102: =IF(OR(O102=Berechnungen!$N$177,O102=Berechnungen!$O$177),1,0) -> 0 | R102: =IF(O102=Berechnungen!$P$177,1,0) -> 0 | S102: =IF(O102=Berechnungen!$Q$177,1,0) -> 0
A103: Frage53 | C103: =IF(B103=Berechnungen!$N$178,1,0) -> 0 | D103: =IF(B103=Berechnungen!$O$178,1,0) -> 0 | E103: =IF(B103=Berechnungen!$P$178,1,0) -> 0 | N103: =Berechnungen!C178 -> Werden klimaschonende Kriterien bei Ausschreibungen der Stadt berücksichtigt? Zum Beispiel naBe-Kriterien, Baubook-Kriterien, klimaaktiv-Kriterien, Handbuch zur Regionalvergabe … | O103: =IF(B110="",B103,B110) -> 0 | Q103: =IF(O103=Berechnungen!$N$178,1,0) -> 0 | R103: =IF(O103=Berechnungen!$O$178,1,0) -> 0 | S103: =IF(O103=Berechnungen!$P$178,1,0) -> 0
A104: Frage54 | C104: =IF(B104=Berechnungen!$N$179,1,0) -> 0 | D104: =IF(C104=Berechnungen!$O$179,1,0) -> 0 | E104: =IF(D104=Berechnungen!$P$179,1,0) -> 0 | N104: =Berechnungen!C179 -> Werden Veranstaltungen nachhaltig durchgeführt? Umsetzung z.B. nach den Kriterien von Sauberhafte Feste oder Green Event | O104: =IF(B111="",B104,B111) -> 0 | Q104: =IF(O104=Berechnungen!$N$179,1,0) -> 0 | R104: =IF(O104=Berechnungen!$O$179,1,0) -> 0 | S104: =IF(O104=Berechnungen!$P$179,1,0) -> 0
A105: Frage55 | C105: =IF(B105=Berechnungen!$N$180,1,0) -> 0 | D105: =IF(C105=Berechnungen!$O$180,1,0) -> 0 | E105: =IF(D105=Berechnungen!$P$180,1,0) -> 0 | N105: =Berechnungen!C180 -> Werden bei Subventionen an Vereine/Organisationen Nachhaltigkeitskriterien für die Verwendung des Geldes vorgegeben? Z.B. nabe-Kriterien, ökologische Baustoffe / Reinigungsmittel / Mobilität / Verpflegung. | O105: =IF(B112="",B105,B112) -> 0 | Q105: =IF(O105=Berechnungen!$N$180,1,0) -> 0 | R105: =IF(O105=Berechnungen!$O$180,1,0) -> 0 | S105: =IF(O105=Berechnungen!$P$180,1,0) -> 0
A106: Textbox1 | N106: Summe | Q106: =IF(SUM(Q101:Q105)=0,"",SUM(Q101:Q105)) ->  | R106: =IF(SUM(R101:R105)=0,"",SUM(R101:R105)) ->  | S106: =IF(SUM(S101:S105)=0,"",SUM(S101:S105)) ->  | T106: =F113 -> 
A107: Textbox2
A108: Alternativ51 | C108: =IF(OR(B108=Berechnungen!M176,B108=Berechnungen!$N$176),1,0) -> 0 | D108: =IF(B108=Berechnungen!$O$176,1,0) -> 0 | E108: =IF(B108=Berechnungen!$P$176,1,0) -> 0
A109: Alternativ52 | C109: =IF(OR(B109=Berechnungen!M177,B109=Berechnungen!$N$177,B109=Berechnungen!$O$177),1,0) -> 0 | D109: =IF(B109=Berechnungen!$P$177,1,0) -> 0 | E109: =IF(B109=Berechnungen!$Q$177,1,0) -> 0
A110: Alternativ53 | C110: =IF(OR(B110=Berechnungen!M178,B110=Berechnungen!$N$178),1,0) -> 0 | D110: =IF(B110=Berechnungen!$O$178,1,0) -> 0 | E110: =IF(B110=Berechnungen!$P$178,1,0) -> 0 | N110: Motorisierter Verkehr | O110: 5 | P110: =N100 -> Wird eine Beschaffung oder eine Ausschreibung vorgenommen? Wird eine Veranstaltung durchgeführt oder eine Organisation subventioniert?
A111: Alternativ54 | C111: =IF(OR(B111=Berechnungen!M179,B111=Berechnungen!$N$179),1,0) -> 0 | D111: =IF(C111=Berechnungen!$O$179,1,0) -> 0 | E111: =IF(D111=Berechnungen!$P$179,1,0) -> 0 | O111: 5.1. | P111: Werden Büromöbel, Textilien, Elektrogeräte, EDV/IT-Geräte, Beleuchtung, Reinigungsmittel, Büromaterial, Druckwerke und Lebensmittel nachhaltig beschafft? Wie hoch ist der Anteil dieser Produkte am Gesamtanteil (geschätzt)? | Q111: =O101 -> 0 | S111: =IF(R101>0,$R$26,"") ->  | T111: =IF(S101>0,$S$26,"") -> 
A112: Alternativ55 | C112: =IF(OR(B112=Berechnungen!M176,B112=Berechnungen!$N$180),1,0) -> 0 | D112: =IF(C112=Berechnungen!$O$180,1,0) -> 0 | E112: =IF(D112=Berechnungen!$P$180,1,0) -> 0 | O112: 5.2. | P112: Werden bei der Fuhrparkbeschaffung Fahrzeuge mit alternativem Antrieb (0 g CO2-Ausstoß im Betrieb) angeschafft? | Q112: =O102 -> 0 | S112: =IF(R102>0,$R$26,"") ->  | T112: =IF(S102>0,$S$26,"") -> 
A113: Textbox3 | F113: =IF(B113 = "","","ja") ->  | O113: 5.3. | P113: Werden klimaschonende Kriterien bei Ausschreibungen der Stadt berücksichtigt? Zum Beispiel naBe-Kriterien, Baubook-Kriterien, klimaaktiv-Kriterien, Handbuch zur Regionalvergabe … | Q113: =O103 -> 0 | S113: =IF(R103>0,$R$26,"") ->  | T113: =IF(S103>0,$S$26,"") -> 
O114: 5.4. | P114: Werden Veranstaltungen nachhaltig durchgeführt? Umsetzung z.B. nach den Kriterien von Sauberhafte Feste oder Green Event | Q114: =O104 -> 0 | S114: =IF(R104>0,$R$26,"") ->  | T114: =IF(S104>0,$S$26,"") -> 
O115: 5.5. | P115: Werden bei Subventionen an Vereine/Organisationen Nachhaltigkeitskriterien für die Verwendung des Geldes vorgegeben? Z.B. nabe-Kriterien, ökologische Baustoffe / Reinigungsmittel / Mobilität / Verpflegung. | Q115: =O105 -> 0 | S115: =IF(R105>0,$R$26,"") ->  | T115: =IF(S105>0,$S$26,"") -> 
N116: Kompensationsmaßnahmen: | O116: =IF(T106="ja",B113,"") ->  | S116: =IF(O116="","",".") -> 
A128: Frage6 | B128: ja | N128: =Berechnungen!C218 -> Gibt es eine negative Auswirkung auf das Klima, die in den vorherigen Fragen nicht erwähnt wurde? | O128: Wert | P128: Einheit | Q128: -1 | R128: =0 -> 0 | S128: =1 -> 1 | T128: Kompensationsmaßnahme
A129: Textbox61 | N129: =Berechnungen!C222 -> Wie würden Sie die klimaschädigenden Auswirkungen des Vorhabens einschätzen? | O129: =IF(B131="",B130,B131) -> 0 | Q129: =IF($O$129=Berechnungen!N222,1,"") ->  | R129: =IF($O$129=Berechnungen!O222,1,"") ->  | S129: =IF($O$129=Berechnungen!P222,1,"") ->  | T129: =F133 -> 
A130: Frage 61 | C130: =IF(B130=Berechnungen!$N$222,1,"") ->  | D130: =IF(B130=Berechnungen!$O$222,1,"") ->  | E130: =IF(B130=Berechnungen!$P$222,1,"") ->  | N130: Kompensationsmaßnahmen: | O130: =IF(T129="ja",B133,"") ->  | S130: =IF(O130="","",".") -> 
A131: Alternativ61 | C131: =IF(B131=Berechnungen!$N$222,1,"") ->  | D131: =IF(B131=Berechnungen!$O$222,1,"") ->  | E131: =IF(B131=Berechnungen!$P$222,1,"") -> 
A132: Textbox62
A133: Textbox63 | F133: =IF(B133 = "","","ja") -> 
A150: Frage7 | B150: nein | N150: =Berechnungen!A243 -> Erneuerbare Energie | Q150: 1 | R150: 2 | S150: 3 | V150: 😐 | W150: 🙂 | X150: 😀
A151: Frage71 | G151: =IF(B151=Berechnungen!P245,1,0) -> 0 | H151: =IF(B151=Berechnungen!O245,1,0) -> 0 | I151: =IF(B151=Berechnungen!N245,1,0) -> 0 | N151: =Berechnungen!C267 -> Wird durch thermische Solaranlagen erneuerbare Wärme erzeugt? Wie viel m² Solarfläche wird ungefähr errichtet? | O151: =B162 -> 0 | P151: =Berechnungen!E267 -> m² | U151: =IF(B158="",B151,B158) -> 0 | V151: =IF(U151=Berechnungen!P245,1,"") ->  | W151: =IF(U151=Berechnungen!O245,1,"") ->  | X151: =IF(U151=Berechnungen!N245,1,"") -> 
A152: Frage72 | G152: =IF(B152=Berechnungen!P246,1,0) -> 0 | H152: =IF(B152=Berechnungen!O246,1,0) -> 0 | I152: =IF(B152=Berechnungen!N246,1,0) -> 0 | N152: =Berechnungen!C268 -> Wird durch Photovoltaik erneuerbarer Strom erzeugt? Wie viel m² Photovoltaikfläche wird ungefähr errichtet? | O152: =B163 -> 0 | P152: =Berechnungen!E268 -> m² | U152: =IF(B159="",B152,B159) -> 0 | V152: =IF(U152=Berechnungen!P246,1,"") ->  | W152: =IF(U152=Berechnungen!O246,1,"") ->  | X152: =IF(U152=Berechnungen!N246,1,"") -> 
A153: Frage73 | G153: =IF(B153=Berechnungen!P247,1,0) -> 0 | H153: =IF(B153=Berechnungen!O247,1,0) -> 0 | I153: =IF(B153=Berechnungen!N247,1,0) -> 0 | N153: =Berechnungen!C269 -> GEMEINSAME AMPEL FÜR FRAGE 7.1a und 7.1b | Q153: =J164 ->  | U153: =IF(B160="",B153,B160) -> 0 | V153: =IF(U153=Berechnungen!P247,1,"") ->  | W153: =IF(U153=Berechnungen!O247,1,"") ->  | X153: =IF(U153=Berechnungen!N247,1,"") -> 
A154: Frage74 | G154: =IF(B154=Berechnungen!P248,1,0) -> 0 | H154: =IF(B154=Berechnungen!O248,1,0) -> 0 | I154: =IF(B154=Berechnungen!N248,1,0) -> 0 | N154: =Berechnungen!C270 -> Wurde durch Dämmung oder andere Maßnahmen z.B. Heizungsoptimierung, Abwärmenutzung der Heizbedarf von Gebäuden oder Anlagen reduziert ? Für wie viele m² BGF wurde dies ungefähr umgesetzt? | O154: =B165 -> 0 | P154: =Berechnungen!E270 -> m² | Q154: =J165 ->  | U154: =IF(B161="",B154,B161) -> 0 | V154: =IF(U154=Berechnungen!P248,1,"") ->  | W154: =IF(U154=Berechnungen!O248,1,"") ->  | X154: =IF(U154=Berechnungen!N248,1,"") -> 
N155: =Berechnungen!C271 -> Wurde eine Öl- oder Gasheizung dauerhaft durch eine Hackgut- bzw. Pelletsheizung, Fernwärme oder eine Wärmepumpe ersetzt? Für wie viele m² BGF wurde dies ungefähr umgesetzt? | O155: =B166 -> 0 | P155: =Berechnungen!E271 -> m² | U155: Summe | V155: =IF(SUM(V151:V154)=0,"",SUM(V151:V154)) ->  | W155: =IF(SUM(W151:W154)=0,"",SUM(W151:W154)) ->  | X155: =IF(SUM(X151:X154)=0,"",SUM(X151:X154)) ->  | Y155: =IF(SUM(V155:X155)=0,"",SUM(V155:X155)) ->  | Z155: Gesamtsumme Smileys
A156: Textbox72 | N156: =Berechnungen!C272 -> Kann durch den Austausch/Beschaffung von Geräten, Beleuchtung, Materialien, … fossile Energie eingespart werden? Wie viel MWh (=1000 kWh) kann auf die Lebensdauer ungefähr eingespart werden? | O156: =B167 -> 0 | P156: =Berechnungen!E272 -> MWh
A157: Textbox73 | N157: Summe | Q157: =IF(SUM(Q153:Q156)=0,"",SUM(Q153:Q156)) ->  | R157: =IF(SUM(R153:R156)=0,"",SUM(R153:R156)) ->  | S157: =IF(SUM(S153:S156)=0,"",SUM(S153:S156)) ->  | T157: =IF(SUM(Q157:S157)=0,"",SUM(Q157:S157)) ->  | U157: Gesamtsumme Ampeln
A158: Alternativ71 | G158: =IF(B158=Berechnungen!P245,1,0) -> 0 | H158: =IF(B158=Berechnungen!O245,1,0) -> 0 | I158: =IF(B158=Berechnungen!N245,1,0) -> 0
A159: Alternativ72 | G159: =IF(B159=Berechnungen!P246,1,0) -> 0 | H159: =IF(B159=Berechnungen!O246,1,0) -> 0 | I159: =IF(B159=Berechnungen!N246,1,0) -> 0
A160: Alternativ73 | G160: =IF(B160=Berechnungen!P247,1,0) -> 0 | H160: =IF(B160=Berechnungen!O247,1,0) -> 0 | I160: =IF(B160=Berechnungen!N247,1,0) -> 0
A161: Alternativ74 | G161: =IF(B161=Berechnungen!P248,1,0) -> 0 | H161: =IF(B161=Berechnungen!O248,1,0) -> 0 | I161: =IF(B161=Berechnungen!N248,1,0) -> 0
A162: Kompensation71a
A163: Kompensation71b
A164: Ampel71 | J164: =IF(AND(K172<L172,K172>0),1,"") ->  | K164: =IF(AND(K172<M172,K172>=L172),1,"") ->  | L164: =IF(K172>=M172,1,"") -> 
A165: Kompensation72 | J165: =IF(AND(K173<L173,K173>0),1,"") ->  | K165: =IF(AND(K173<M173,K173>=L173),1,"") ->  | L165: =IF(K173>=M173,1,"") -> 
A166: Kompensation73 | J166: =IF(AND(K174<L174,K174>0),1,"") ->  | K166: =IF(AND(K174<M174,K174>=L174),1,"") ->  | L166: =IF(K174>=M174,1,"") -> 
A167: Kompensation74 | J167: =IF(AND(K175<L175,K175>0),1,"") ->  | K167: =IF(AND(K175<M175,K175>=L175),1,"") ->  | L167: =IF(K175>=M175,1,"") -> 
J169: Berechnungen
J170: =B162 -> 0 | K170: =J170*1000*60%*0.268*20/1000 -> 0
J171: =B163 -> 0 | K171: =J171*143*0.219*20/1000 -> 0
K172: =SUM(K170:K171) -> 0 | L172: =Berechnungen!J269 ->  | M172: =Berechnungen!K269 -> 
J173: =B165 -> 0 | K173: =J173*(70-36)/0.85*0.268/1000*20 -> 0 | L173: =Berechnungen!J270 ->  | M173: =Berechnungen!K270 -> 
J174: =B166 -> 0 | K174: =J174*70*(0.268-0.027)/0.85*20/1000 -> 0 | L174: =Berechnungen!J271 ->  | M174: =Berechnungen!K271 -> 
J175: =B167 -> 0 | K175: =(J175*0.219) -> 0 | L175: =Berechnungen!J272 ->  | M175: =Berechnungen!K272 -> 
A182: Frage8 | B182: nein | N182: =Berechnungen!A285 -> Klimafreundliche Mobilität | O182: Wert | P182: Einheit | Q182: 1 | R182: 2 | S182: 3
A183: Frage81 | G183: =IF(B183=Berechnungen!P287,1,0) -> 0 | H183: =IF(B183=Berechnungen!O287,1,0) -> 0 | I183: =IF(B183=Berechnungen!N287,1,0) -> 0 | N183: =Berechnungen!C287 -> Wird durch das Projekt der öffentliche Personen-Nahverkehr (ÖPNV) gefördert? Beispiele: Bus- oder Bahnanbindung, Anrufsammeltaxi, Bike&Ride- bzw. Park&Ride-Anlagen, Förderung ÖFFIs | O183: =IF(B193="",B183,B193) -> 0 | Q183: =IF(O183=Berechnungen!P287,1,0) -> 0 | R183: =IF(O183=Berechnungen!O287,1,0) -> 0 | S183: =IF(O183=Berechnungen!N287,1,0) -> 0
A184: Frage82 | G184: =IF(B184=Berechnungen!P288,1,0) -> 0 | H184: =IF(B184=Berechnungen!O288,1,0) -> 0 | I184: =IF(B184=Berechnungen!N288,1,0) -> 0 | N184: =Berechnungen!C288 -> Wird durch das Projekt der klimafreundliche Fuß- und Radverkehr gefördert? Beispiele: Gute Qualität von Rad- und Fußwegen, optimale Wegeführung, sichere Kreuzungen, Ampelschaltungen auch auf Rad- und Fußverkehr abgestimmt, kurze (Alltags-)Wege, Beleuchtung … | O184: =IF(B194="",B184,B194) -> 0 | Q184: =IF(O184=Berechnungen!P288,1,0) -> 0 | R184: =IF(O184=Berechnungen!O288,1,0) -> 0 | S184: =IF(O184=Berechnungen!N288,1,0) -> 0
A185: Frage83 | G185: =IF(B185=Berechnungen!P289,1,0) -> 0 | H185: =IF(B185=Berechnungen!O289,1,0) -> 0 | I185: =IF(B185=Berechnungen!N289,1,0) -> 0 | N185: =Berechnungen!C289 -> Wird CO2-neutrale Mobilität gefördert? Beispiele: Testangebot von Fahrzeugen mit CO2-neutralem Antriebssystem, Ausbau von E-Ladeinfrastruktur, Förderung | O185: 0 | Q185: =IF(O185=Berechnungen!P289,1,0) -> 0 | R185: =IF(O185=Berechnungen!O289,1,0) -> 0 | S185: =IF(O185=Berechnungen!N289,1,0) -> 0
A186: Frage84 | G186: =IF(B186=Berechnungen!P290,1,0) -> 0 | H186: =IF(B186=Berechnungen!O290,1,0) -> 0 | I186: =IF(B186=Berechnungen!N290,1,0) -> 0 | N186: =Berechnungen!C290 -> Kann durch das Projekt eine Reduktion des PKW-Verkehrs oder der PKW-Anzahl erzielt werden? Beispiele: CarSharing-Angebot, Parkraummanagement, Fahrverbote, Geschwindigkeitsreduktion | O186: 0 | Q186: =IF(O186=Berechnungen!P290,1,0) -> 0 | R186: =IF(O186=Berechnungen!O290,1,0) -> 0 | S186: =IF(O186=Berechnungen!N290,1,0) -> 0
A187: Frage85 | G187: =IF(B187=Berechnungen!P291,1,0) -> 0 | H187: =IF(B187=Berechnungen!O291,1,0) -> 0 | I187: =IF(B187=Berechnungen!N291,1,0) -> 0 | N187: =Berechnungen!C291 -> In wie weit werden die Potentiale zur Reduktion von Schwerverkehrfahrten genutzt? Beispiele: Bahnanschluss, Sammeltransporte, gebündelter Verkehr, Fahrverbot, Fahrbeschränkung | O187: 0 | Q187: =IF(O187=Berechnungen!P291,1,0) -> 0 | R187: =IF(O187=Berechnungen!O291,1,0) -> 0 | S187: =IF(O187=Berechnungen!N291,1,0) -> 0
A188: Frage86 | G188: =IF(B188=Berechnungen!P292,1,0) -> 0 | H188: =IF(B188=Berechnungen!O292,1,0) -> 0 | I188: =IF(B188=Berechnungen!N292,1,0) -> 0 | N188: =Berechnungen!C292 -> Kann durch das Projekt die tatsächliche Fahrgeschwindigkeit des KFZ-Verkehrs verringert werden? | O188: 0 | Q188: =IF(O188=Berechnungen!P292,1,0) -> 0 | R188: =IF(O188=Berechnungen!O292,1,0) -> 0 | S188: =IF(O188=Berechnungen!N292,1,0) -> 0
A189: Frage87 | G189: =IF(B189=Berechnungen!P293,1,0) -> 0 | H189: =IF(B189=Berechnungen!O293,1,0) -> 0 | I189: =IF(B189=Berechnungen!N293,1,0) -> 0 | N189: =Berechnungen!C293 -> Kann durch das Vorhaben klimafreundliche Mobilität in der Verwaltung verbessert werden? | O189: 0 | Q189: =IF(O189=Berechnungen!P293,1,0) -> 0 | R189: =IF(O189=Berechnungen!O293,1,0) -> 0 | S189: =IF(O189=Berechnungen!N293,1,0) -> 0
A190: Textbox81 | N190: Summe | Q190: =IF(SUM(Q183:Q189)=0,"",SUM(Q183:Q189)) ->  | R190: =IF(SUM(R183:R189)=0,"",SUM(R183:R189)) ->  | S190: =IF(SUM(S183:S189)=0,"",SUM(S183:S189)) -> 
A191: Textbox82
A192: Textbox83
A193: Alternativ81 | G193: =IF(B193=Berechnungen!P311,1,0) -> 0 | H193: =IF(B193=Berechnungen!O311,1,0) -> 0 | I193: =IF(B193=Berechnungen!N311,1,0) -> 0
A194: Alternativ82 | G194: =IF(B194=Berechnungen!P312,1,0) -> 0 | H194: =IF(B194=Berechnungen!O312,1,0) -> 0 | I194: =IF(B194=Berechnungen!N312,1,0) -> 0
A195: Alternativ83 | G195: =IF(B195=Berechnungen!P313,1,0) -> 0 | H195: =IF(B195=Berechnungen!O313,1,0) -> 0 | I195: =IF(B195=Berechnungen!N313,1,0) -> 0 | N195: Klimafreundliche Mobilität | O195: 8. | P195: =Berechnungen!C285 -> Kann das Vorhaben einen Anreiz für klimafreundliche Mobilität setzen (Radfahren, Gehen, Öffis, alternative Antriebe) oder den PKW- bzw. Güterverkehr reduzieren? | R195: Klimanutzen:
A196: Alternativ84 | G196: =IF(B196=Berechnungen!P314,1,0) -> 0 | H196: =IF(B196=Berechnungen!O314,1,0) -> 0 | I196: =IF(B196=Berechnungen!N314,1,0) -> 0 | O196: 8.1 | P196: =N183 -> Wird durch das Projekt der öffentliche Personen-Nahverkehr (ÖPNV) gefördert? Beispiele: Bus- oder Bahnanbindung, Anrufsammeltaxi, Bike&Ride- bzw. Park&Ride-Anlagen, Förderung ÖFFIs | Q196: =O183 -> 0 | S196: =IF(R183>0,$R$182,"") ->  | T196: =IF(S183>0,$S$182,"") -> 
A197: Alternativ85 | G197: =IF(B197=Berechnungen!P315,1,0) -> 0 | H197: =IF(B197=Berechnungen!O315,1,0) -> 0 | I197: =IF(B197=Berechnungen!N315,1,0) -> 0 | O197: 8.2 | P197: =N184 -> Wird durch das Projekt der klimafreundliche Fuß- und Radverkehr gefördert? Beispiele: Gute Qualität von Rad- und Fußwegen, optimale Wegeführung, sichere Kreuzungen, Ampelschaltungen auch auf Rad- und Fußverkehr abgestimmt, kurze (Alltags-)Wege, Beleuchtung … | Q197: =O184 -> 0 | S197: =IF(R184>0,$R$182,"") -> 
A198: Alternativ86 | G198: =IF(B198=Berechnungen!P316,1,0) -> 0 | H198: =IF(B198=Berechnungen!O316,1,0) -> 0 | I198: =IF(B198=Berechnungen!N316,1,0) -> 0 | O198: 8.3 | P198: Wird CO2-neutrale Mobilität gefördert? Beispiele: Testangebot von Fahrzeugen mit CO2-neutralem Antriebssystem, Ausbau von E-Ladeinfrastruktur, Förderung | Q198: 0
A199: Alternativ87 | G199: =IF(B199=Berechnungen!P317,1,0) -> 0 | H199: =IF(B199=Berechnungen!O317,1,0) -> 0 | I199: =IF(B199=Berechnungen!N317,1,0) -> 0 | O199: 8.4 | P199: Kann durch das Projekt eine Reduktion des PKW-Verkehrs oder der PKW-Anzahl erzielt werden? Beispiele: CarSharing-Angebot, Parkraummanagement, Fahrverbote, Geschwindigkeitsreduktion | Q199: 0
O200: 8.5 | P200: In wie weit werden die Potentiale zur Reduktion von Schwerverkehrfahrten genutzt? Beispiele: Bahnanschluss, Sammeltransporte, gebündelter Verkehr, Fahrverbot, Fahrbeschränkung | Q200: 0
O201: 8.6 | P201: Kann durch das Projekt die tatsächliche Fahrgeschwindigkeit des KFZ-Verkehrs verringert werden? | Q201: 0
O202: 8.7 | P202: Kann durch das Vorhaben klimafreundliche Mobilität in der Verwaltung verbessert werden? | Q202: 0
A217: Frage9 | B217: nein | N217: =Berechnungen!A340 -> Begrünungen | Q217: 1 | R217: 2 | S217: 3 | V217: 😐 | W217: 🙂 | X217: 😀
A218: Frage91 | G218: =IF(B218=Berechnungen!$P$342,1,0) -> 0 | H218: =IF(B218=Berechnungen!O342,1,0) -> 0 | I218: =IF(B218=Berechnungen!N342,1,0) -> 0 | N218: =Berechnungen!C342 -> Entstehen (neue) Grünräume, Naturwiesen, Baum- und Strauchgruppen, Nutzgärten, Alleen, Wälder, Parks, Bäche, Teiche, Wasserflächen, Moore, Feuchtwiesen und Gebäudebegrünungen mit positiver Wirkung auf Biodiversität und Klimaschutz beziehungsweise werden vorhandene Flächen in diesem Sinne renaturiert? Wie viel Prozent der unverbauten Fläche wird dafür genutzt? | O218: =B230 -> 0 | P218: =Berechnungen!E370 -> m² | Q218: =J230 ->  | U218: =IF(B225="",B218,B225) -> 0 | V218: =IF(U218=Berechnungen!P342,1,"") ->  | W218: =IF(U218=Berechnungen!O342,1,"") ->  | X218: =IF(U218=Berechnungen!N342,1,"") -> 
A219: Frage92 | G219: =IF(B219=Berechnungen!$P$343,1,0) -> 0 | H219: =IF(B219=Berechnungen!O343,1,0) -> 0 | I219: =IF(B219=Berechnungen!N343,1,0) -> 0 | N219: =Berechnungen!C343 -> Kann das Projekt vorhandene Moore, Feuchtwiesen, Wälder und Ähnliches als CO2-Speicher stärken und schützen? Wie viel Prozent der vorhandene Flächen werden gestärkt und geschützt? | O219: =B231 -> 0 | P219: =Berechnungen!E371 -> m² | U219: =IF(B226="",B219,B226) -> 0 | V219: =IF(U219=Berechnungen!P343,1,"") ->  | W219: =IF(U219=Berechnungen!O343,1,"") ->  | X219: =IF(U219=Berechnungen!N343,1,"") -> 
A220: Frage93 | G220: =IF(B220=Berechnungen!P344,1,0) -> 0 | H220: =IF(B220=Berechnungen!O344,1,0) -> 0 | I220: =IF(B220=Berechnungen!N344,1,0) -> 0 | N220: =Berechnungen!C344 -> Können feuchteregulierende Maßnahmen wie Wasserspeicherung, Versickerung, Verdunstung umgesetzt werden? Wie viel Prozent der unverbauten Fläche wird dafür genutzt? | O220: =B232 -> 0 | P220: =Berechnungen!E372 -> Stück | U220: 0 | V220: =IF(U220=Berechnungen!P344,1,"") ->  | W220: =IF(U220=Berechnungen!O344,1,"") ->  | X220: =IF(U220=Berechnungen!N344,1,"") -> 
A221: Frage94 | G221: =IF(B221=Berechnungen!P345,1,0) -> 0 | H221: =IF(B221=Berechnungen!O345,1,0) -> 0 | I221: =IF(B221=Berechnungen!N345,1,0) -> 0 | N221: =Berechnungen!C345 -> Werden Maßnahmen bei Gebäuden eingeführt und dauerhaft betrieben, die den Erhalt der Biodiversität fördern, das Klima schonen und/oder dafür sorgen, dass CO2 stärker gebunden wird (siehe Liste der möglichen Maßnahmen in der Hilfe)? | O221: =IF(B228="",B221,B228) -> 0 | Q221: =V221 ->  | R221: =W221 ->  | U221: =IF(B228="",B221,B228) -> 0 | V221: =IF(U221=Berechnungen!P345,1,"") ->  | W221: =IF(U221=Berechnungen!O345,1,"") ->  | X221: =IF(U221=Berechnungen!N345,1,"") -> 
A222: Frage95 | G222: =IF(B222=Berechnungen!P346,1,0) -> 0 | H222: =IF(B222=Berechnungen!O346,1,0) -> 0 | I222: =IF(B222=Berechnungen!N346,1,0) -> 0 | N222: =Berechnungen!C346 -> Werden Maßnahmen in der Gemeinde eingeführt und dauerhaft betrieben, die den Erhalt der Biodiversität fördern, das Klima schonen und/oder dafür sorgen, dass CO2 stärker gebunden wird (siehe Liste der möglichen Maßnahmen in der Hilfe)? | O222: =IF(B229="",B222,B229) -> 0 | Q222: =V222 ->  | R222: =W222 ->  | S222: =X222 ->  | U222: 0 | V222: =IF(U222=Berechnungen!P346,1,"") ->  | W222: =IF(U222=Berechnungen!O346,1,"") ->  | X222: =IF(U222=Berechnungen!N346,1,"") -> 
A223: Textbox92 | N223: Summe | Q223: =IF(SUM(Q218:Q222)=0,"",SUM(Q218:Q222)) ->  | R223: =IF(SUM(R218:R222)=0,"",SUM(R218:R222)) ->  | S223: =IF(SUM(S218:S222)=0,"",SUM(S218:S222)) ->  | T223: =IF(SUM(Q223:S223)=0,"",SUM(Q223:S223)) ->  | U223: Summe | V223: =IF(SUM(V218:V222)=0,"",SUM(V218:V222)) ->  | W223: =IF(SUM(W218:W222)=0,"",SUM(W218:W222)) ->  | Y223: =IF(SUM(V223:X223)=0,"",SUM(V223:X223)) ->  | Z223: Gesamtsumme Smileys
A224: Textbox93 | T224: Gesamtsumme Ampeln
A225: Alternativ91 | G225: =IF(B225=Berechnungen!P342,1,0) -> 0 | H225: =IF(B225=Berechnungen!O342,1,0) -> 0 | I225: =IF(B225=Berechnungen!N342,1,0) -> 0
A226: Alternativ92 | G226: =IF(B226=Berechnungen!P343,1,0) -> 0 | H226: =IF(B226=Berechnungen!O343,1,0) -> 0 | I226: =IF(B226=Berechnungen!N343,1,0) -> 0
A227: Alternativ93 | G227: =IF(B227=Berechnungen!P344,1,0) -> 0 | H227: =IF(B227=Berechnungen!O344,1,0) -> 0 | I227: =IF(B227=Berechnungen!N344,1,0) -> 0
A228: Alternativ94 | G228: =IF(B228=Berechnungen!P345,1,0) -> 0 | H228: =IF(B228=Berechnungen!O345,1,0) -> 0 | I228: =IF(B228=Berechnungen!N345,1,0) -> 0
A229: Alternativ95 | G229: =IF(B229=Berechnungen!P346,1,0) -> 0 | H229: =IF(B229=Berechnungen!O346,1,0) -> 0 | I229: =IF(B229=Berechnungen!N346,1,0) -> 0
A230: Kompensation91 | J230: =IF(AND(K237<L237,K237>0),1,"") ->  | K230: =IF(AND(K237<M237,K237>=L237),1,"") ->  | L230: =IF(K237>=M237,1,"") -> 
A231: Kompensation92 | J231: =IF(AND(K238<L238,K238>0),1,"") ->  | K231: =IF(AND(K238<M238,K238>=L238),1,"") ->  | L231: =IF(K238>=M238,1,"") -> 
A232: Kompensation93 | J232: =IF(AND(K239<L239,K239>0),1,"") ->  | K232: =IF(AND(K239<M239,K239>=L239),1,"") ->  | L232: =IF(K239>=M239,1,"") -> 
J236: Berechnungen
B237: 1e Maßnahme | C237: mind. 2 Maßnahmen | D237: mind. 3 Maßnahmen in mind. 2 Gebäuden | J237: =B230 -> 0 | K237: =J237*2.3*50/1000 -> 0 | L237: =Berechnungen!J370 ->  | M237: =Berechnungen!K370 -> 
B238: 1e Maßnahme | C238: 2 Maßnahmen | D238: mind. 3 Maßnahmen | J238: =B231 -> 0 | K238: =J238*2.3*50/1000 -> 0 | L238: =Berechnungen!J371 ->  | M238: =Berechnungen!K371 -> 
J239: =B232 -> 0 | K239: =J239*10*50/1000 -> 0 | L239: =Berechnungen!J372 ->  | M239: =Berechnungen!K372 -> 
A248: Frage100 | B248: nein | N248: =Berechnungen!C386 -> Kann die Planung möglichst klimafreundlich entwickelt werden? Betrifft regionales oder örtliches Entwicklungskonzept, Flächenwidmungsplan, Bebauungsplan, Städtebauliche Konzepte, Städtebauliche Leitbilder o.ä. | O248: Wert | P248: Einheit | Q248: 1 | R248: 2 | S248: 3
A249: Frage101 | G249: =IF(B249=Berechnungen!$P$388,1,0) -> 0 | H249: =IF(B249=Berechnungen!$O$388,1,0) -> 0 | I249: =IF(B249=Berechnungen!$N$388,1,0) -> 0 | N249: =Berechnungen!C388 -> Werden im örtlichen Raumordnunsprogramm bzw. der Flächenwidmung die übergeordneten klimarelevanten Ziele und Planungen integriert? Beispiele: Österreichische Klima- und Energiestrategie "mission2030"; Landesentwicklungsprogramm, Regionale Entwicklungsprogramme, Leitbilder o.ä. | O249: =IF(B255="",B249,B255) -> 0 | Q249: =IF(O249=Berechnungen!P388,1,"") ->  | R249: =IF(O249=Berechnungen!O388,1,"") ->  | S249: =IF(O249=Berechnungen!N388,1,"") -> 
A250: Frage102 | G250: =IF(B250=Berechnungen!$P$389,1,0) -> 0 | H250: =IF(B250=Berechnungen!$O$389,1,0) -> 0 | I250: =IF(B250=Berechnungen!$N$389,1,0) -> 0 | N250: =Berechnungen!C389 -> Werden im Bebauungsplan, bei Baulandumlegung bzw. bei Änderungen der Bauvorschriften und bei privatwirtschaftlichen Raumplanungsverträgen die übergeordneten klimarelevanten Ziele und Planungen integriert? | O250: =IF(B256="",B250,B256) -> 0 | Q250: =IF(O250=Berechnungen!P389,1,"") ->  | R250: =IF(O250=Berechnungen!O389,1,"") ->  | S250: =IF(O250=Berechnungen!N389,1,"") -> 
A251: Frage103 | G251: =IF(B251=Berechnungen!$P$390,1,0) -> 0 | H251: =IF(B251=Berechnungen!$O$390,1,0) -> 0 | I251: =IF(B251=Berechnungen!$N$390,1,0) -> 0 | N251: =Berechnungen!C390 -> Werden im Städtebaulichen Leitbild, bei Stadtentwicklungskonzepten, Quartiersentwicklungen, Freiraumkonzepten o. ä. die übergeordneten klimarelevanten Ziele und Planungen integriert? | O251: =IF(B257="",B251,B257) -> 0 | Q251: =IF(O251=Berechnungen!P390,1,"") ->  | R251: =IF(O251=Berechnungen!O390,1,"") ->  | S251: =IF(O251=Berechnungen!N390,1,"") -> 
A252: Frage104 | G252: =IF(B252=Berechnungen!$P$391,1,0) -> 0 | H252: =IF(B252=Berechnungen!$O$391,1,0) -> 0 | I252: =IF(B252=Berechnungen!$N$391,1,0) -> 0 | N252: =Berechnungen!C391 -> Wird in allen oben genannten Planungen die Klimawandelanpassung berücksichtigt? Z. B. Landschaftskonzept, Baumkataster | O252: =IF(B258="",B252,B258) -> 0 | Q252: =IF(O252=Berechnungen!P391,1,"") ->  | R252: =IF(O252=Berechnungen!O391,1,"") ->  | S252: =IF(O252=Berechnungen!N391,1,"") -> 
A253: Textbox102 | N253: Summe | Q253: =IF(SUM(Q249:Q252)=0,"",SUM(Q249:Q252)) ->  | R253: =IF(SUM(R249:R252)=0,"",SUM(R249:R252)) ->  | S253: =IF(SUM(S249:S252)=0,"",SUM(S249:S252)) -> 
A254: Textbox103
A255: Alternativ101 | G255: =IF(B255=Berechnungen!$P$388,1,0) -> 0 | H255: =IF(B255=Berechnungen!$O$388,1,0) -> 0 | I255: =IF(B255=Berechnungen!$N$388,1,0) -> 0
A256: Alternativ102 | G256: =IF(B256=Berechnungen!$P$389,1,0) -> 0 | H256: =IF(B256=Berechnungen!$O$389,1,0) -> 0 | I256: =IF(B256=Berechnungen!$N$389,1,0) -> 0
A257: Alternativ103 | G257: =IF(B257=Berechnungen!$P$390,1,0) -> 0 | H257: =IF(B257=Berechnungen!$O$390,1,0) -> 0 | I257: =IF(B257=Berechnungen!$N$390,1,0) -> 0
A258: Alternativ104 | G258: =IF(B258=Berechnungen!$P$391,1,0) -> 0 | H258: =IF(B258=Berechnungen!$O$391,1,0) -> 0 | I258: =IF(B258=Berechnungen!$N$391,1,0) -> 0
A280: Frage110 | B280: nein | N280: =Berechnungen!C428 -> Kann mit dem Projekt öffentlichkeitswirksam für mehr Klimaschutz bei der Bevölkerung und der Verwaltung geworben werden? Auch durch Förderungen oder Abgaben für Ver- und Entsorgung. | O280: Wert | P280: Einheit | Q280: 1 | R280: 2 | S280: 3
A281: Frage111 | G281: =IF(B281=Berechnungen!$P$430,1,0) -> 0 | H281: =IF(B281=Berechnungen!$O$430,1,0) -> 0 | I281: =IF(B281=Berechnungen!$N$430,1,0) -> 0 | N281: =Berechnungen!C430 -> Ist eine Information über die positiven Auswirkungen des Projekts auf den Klimaschutz für die BürgerInnen (Presse, Homepage etc.) geplant? | O281: =IF(B288="",B281,B288) -> 0 | Q281: =IF(O281=Berechnungen!P430,1,"") ->  | R281: =IF(OR(O281=Berechnungen!N430,O281=Berechnungen!O430),1,"") -> 
A282: Frage112 | G282: =IF(B282=Berechnungen!$P$431,1,0) -> 0 | H282: =IF(B282=Berechnungen!$O$431,1,0) -> 0 | I282: =IF(B282=Berechnungen!$N$431,1,0) -> 0 | N282: =Berechnungen!C431 -> Ist eine Information über die positiven Auswirkungen des Projekts auf den Klimaschutz für die Verwaltung, für die Politik oder für andere Gebietskörperschaften (andere Gemeinden) geplant? | O282: =IF(B289="",B282,B289) -> 0 | Q282: =IF(O282=Berechnungen!P431,1,"") ->  | R282: =IF(OR(O282=Berechnungen!N431,O282=Berechnungen!O431),1,"") -> 
A283: Frage113 | G283: =IF(B283=Berechnungen!$P$432,1,0) -> 0 | H283: =IF(B283=Berechnungen!$O$432,1,0) -> 0 | I283: =IF(B283=Berechnungen!$N$432,1,0) -> 0 | N283: =Berechnungen!C432 -> Ist eine Bürgerbeteiligung, Partizipation für mehr Klimaschutz in der Bevölkerung geplant? | O283: =IF(B290="",B283,B290) -> 0 | Q283: =IF(O283=Berechnungen!P432,1,"") ->  | R283: =IF($O$283=Berechnungen!O432,1,"") ->  | S283: =IF($O$283=Berechnungen!N432,1,"") -> 
A284: Frage114 | G284: =IF(B284=Berechnungen!P433,1,0) -> 0 | H284: =IF(B284=Berechnungen!O433,1,0) -> 0 | I284: =IF(B284=Berechnungen!N433,1,0) -> 0 | N284: =Berechnungen!C433 -> Werden bei geplanten Förderungen der Stadt/Gemeinde Klimaauswirkungen berücksichtigt? | O284: =IF(B291="",B284,B291) -> 0 | Q284: =IF(O284=Berechnungen!P433,1,"") ->  | R284: =IF($O$284=Berechnungen!O433,1,"") ->  | S284: =IF($O$284=Berechnungen!N433,1,"") -> 
A285: Frage115 | G285: =IF(B285=Berechnungen!$P$434,1,0) -> 0 | H285: =IF(B285=Berechnungen!$O$434,1,0) -> 0 | I285: =IF(B285=Berechnungen!$N$434,1,0) -> 0 | N285: =Berechnungen!C434 -> Wirken sich Abgabenänderungen bei Wasserversorgung, Abfallwirtschaft, Parkraumbewirtschaftung etc. positiv auf klimaschonendes bzw. ressourcenschonendes Verhalten der Kunden aus? | O285: =IF(B292="",B285,B292) -> 0 | Q285: =IF(O285=Berechnungen!P434,1,"") ->  | R285: =IF($O$285=Berechnungen!O434,1,"") ->  | S285: =IF($O$285=Berechnungen!N434,1,"") -> 
A286: Textbox112 | N286: Summe | Q286: =IF(SUM(Q281:Q285)=0,"",SUM(Q281:Q285)) ->  | R286: =IF(SUM(R281:R285)=0,"",SUM(R281:R285)) ->  | S286: =IF(SUM(S281:S285)=0,"",SUM(S281:S285)) -> 
A287: Textbox113 | Q287: Ergebnishellgruengesamt (ohne Frage 111 und 112) | R287: =IF(SUM(R283:R285)=0,"",SUM(R283:R285)) -> 
A288: Alternativ111 | G288: =IF(B288=Berechnungen!$P$430,1,0) -> 0 | H288: =IF(B288=Berechnungen!$O$430,1,0) -> 0 | I288: =IF(B288=Berechnungen!$N$430,1,0) -> 0
A289: Alternativ112 | G289: =IF(B289=Berechnungen!$P$431,1,0) -> 0 | H289: =IF(B289=Berechnungen!$O$431,1,0) -> 0 | I289: =IF(B289=Berechnungen!$N$431,1,0) -> 0
A290: Alternativ113 | G290: =IF(B290=Berechnungen!$P$432,1,0) -> 0 | H290: =IF(B290=Berechnungen!$O$432,1,0) -> 0 | I290: =IF(B290=Berechnungen!$N$432,1,0) -> 0
A291: Alternativ114 | G291: =IF(B291=Berechnungen!$P$433,1,0) -> 0 | H291: =IF(B291=Berechnungen!$O$433,1,0) -> 0 | I291: =IF(B291=Berechnungen!$N$433,1,0) -> 0
A292: Alternativ115 | G292: =IF(B292=Berechnungen!$P$434,1,0) -> 0 | H292: =IF(B292=Berechnungen!$O$434,1,0) -> 0 | I292: =IF(B292=Berechnungen!$N$434,1,0) -> 0
A311: Frage12 | B311: nein | N311: =Berechnungen!C475 -> Gibt es eine positive Auswirkung auf das Klima, die in den vorherigen Fragen nicht erwähnt wurde? | Q311: 1 | R311: 2 | S311: 3
A312: Frage121a | J312: =IF($B$312=Berechnungen!N479,1,"") ->  | K312: =IF($B$312=Berechnungen!O479,1,"") ->  | L312: =IF($B$312=Berechnungen!P479,1,"") ->  | N312: =Berechnungen!C479 -> Nutzung als Kompensationsmaßnahme: Welche Kompensationswirkung würden Sie der Maßnahme zuschreiben? (gering kompensiert eine grüne, mittel eine gelbe und hoch eine rote Ampel) | O312: =B313 -> 0 | Q312: =J312 ->  | R312: =K312 ->  | S312: =L312 -> 
A313: Textbox12

Sheet Beschlussampel_Zusammenfassung (hidden)
B4: =Prüfungsfragen!B6 -> Fossile Energie | C4: 1 | D4: =Bearbeitung!P12 -> Wird durch das Vorhaben zusätzlich fossile Energie (Öl, Gas, Kohle, fossiler Strom) in einem Gebäude oder einer Anlage verbraucht? | F4: Klimaschaden: | G4: =IF(AND(H4="",OR(G5<>"",G6<>"",G7<>"",G8<>"")),"mittel","") ->  | H4: =IF(OR(H5<>"",H6<>"",H7<>"",H8<>""),"hoch","") -> 
C5: 1.1. | D5: =Bearbeitung!P13 -> Wird mit fossiler Energie (Öl, Gas) geheizt? Für welche zusätzliche Bruttogrundfläche? | E5: =Bearbeitung!Q13 -> 0 | F5: =Bearbeitung!R13 -> m2 BGF | G5: =Bearbeitung!S13 ->  | H5: =Bearbeitung!T13 -> 
C6: 1.2. | D6: =Bearbeitung!P14 -> Wird Strom mit fossilem Anteil genutzt? Für welche zusätzliche Bruttogrundfläche (Berechnung für Wohngebäude siehe Hilfe)? | E6: =Bearbeitung!Q14 -> 0 | F6: =Bearbeitung!R14 -> m2 BGF | G6: =Bearbeitung!S14 ->  | H6: =Bearbeitung!T14 -> 
C7: 1.3. | D7: =Bearbeitung!P15 -> Werden für Prozesswärme zusätzlich fossile Brennstoffe verbraucht? In welcher Höhe (geschätzt)? | E7: =Bearbeitung!Q15 -> 0 | F7: =Bearbeitung!R15 -> kWh pro Jahr | G7: =Bearbeitung!S15 ->  | H7: =Bearbeitung!T15 -> 
C8: 1.4. | D8: =Bearbeitung!P16 -> Wird für einen Prozess / ein Vorhaben zusätzlich Strom mit fossilen Anteilen verwendet? In welcher Höhe (geschätzt)? | E8: =Bearbeitung!Q16 -> 0 | F8: =Bearbeitung!R16 -> kWh pro Jahr | G8: =Bearbeitung!S16 ->  | H8: =Bearbeitung!T16 -> 
B9: Kompensation | C9: =Bearbeitung!O17 ->  | G9: =IF(AND(G4="",H4=""),"",Bearbeitung!S17) -> 
G10: =IF(OR(G4<>"",H4<>""),".","") -> 
B13: =Prüfungsfragen!B8 -> Motorisierter Verkehr | C13: 2 | D13: =Bearbeitung!P36 -> Erzeugt das Vorhaben zusätzlichen motorisierten PKW- oder Güterverkehr? | F13: Klimaschaden: | G13: =IF(AND(H13="",OR(G14<>"",G15<>"",G16<>"",G17<>"",G18<>"")),"mittel","") ->  | H13: =IF(OR(H14<>"",H15<>"",H16<>"",H17<>"",H18<>""),"hoch","") -> 
C14: 2.1. | D14: =Bearbeitung!P37 -> Werden der motorisierte PKW- und Güterverkehr (> 3,5 t) durch die Maßnahme erhöht? Wie viele Fahrten werden pro Tag zusätzlich erzeugt (grobe Schätzung)? Beispiele: Widmung Gewerbegebiet mit voraussichtl. Verkehrszunahme, Errichtung Einkaufszentrum oder Freizeiteinrichtung, Veranstaltungen etc. | E14: =Bearbeitung!Q37 -> 0 | F14: =Bearbeitung!R37 -> Fahrten pro Werktag | G14: =Bearbeitung!S37 ->  | H14: =Bearbeitung!T37 -> 
C15: 2.2. | D15: =Bearbeitung!P38 -> Werden im Zuge des Projekts Stellplätze neu errichtet? Um wie viele zusätzliche Stellplätze handelt es sich? | E15: =Bearbeitung!Q38 -> 0 | F15: =Bearbeitung!R38 -> Anzahl | G15: =Bearbeitung!S38 ->  | H15: =Bearbeitung!T38 -> 
C16: 2.3. | D16: =Bearbeitung!P39 -> Werden Straßen verbreitert, begradigt, saniert oder zusätzlich errichtet? Wie viele Laufmeter Straße werden für den PKW- oder Güterverkehr verbessert bzw. zusätzlich errichtet? | E16: =Bearbeitung!Q39 -> 0 | F16: =Bearbeitung!R39 -> Länge in m | G16: =Bearbeitung!S39 ->  | H16: =Bearbeitung!T39 -> 
C17: 2.4. | D17: =Bearbeitung!P40 -> Führen Maßnahmen in der Parkraumbewirtschaftung zu mehr motorisiertem Verkehr? Beispiele: Gebührenreduzierung, Parkgebühr-Ausnahmen (zeitbezogen, Personen-/Fahrzeugbezogen) | E17: =Bearbeitung!Q40 -> 0 | F17: =IF(Bearbeitung!R40="","",Bearbeitung!R40) ->  | G17: =Bearbeitung!S40 ->  | H17: =Bearbeitung!T40 -> 
C18: 2.5. | D18: =Bearbeitung!P41 -> Behindert die Maßnahme klimafreundlichen Verkehr (Radfahren, zu Fuß gehen, ÖFFIS), z.B. Unterbrechung oder Reduzierung eines Fußgängerwegs oder Fahrradwegs ? | E18: =Bearbeitung!Q41 -> 0 | F18: =IF(Bearbeitung!R41="","",Bearbeitung!R41) ->  | G18: =Bearbeitung!S41 ->  | H18: =Bearbeitung!T41 -> 
B19: Kompensation | C19: =Bearbeitung!O42 ->  | G19: =IF(AND(G13="",H13=""),"",Bearbeitung!S42) -> 
G20: =IF(OR(G13<>"",H13<>""),".","") -> 
B23: =Prüfungsfragen!B10 -> Versiegelung | C23: 3. | D23: =Berechnungen!C96 -> Werden durch das Projekt zusätzliche Flächen versiegelt und/oder gehen Naturräume verloren? | F23: Klimaschaden: | G23: =IF(AND(H23="",OR(G24<>"",G25<>"",G26<>"")),"mittel","") ->  | H23: =IF(OR(H24<>"",H25<>"",H26<>""),"hoch","") -> 
C24: 3.1 | D24: =Berechnungen!C98 -> Wie viele m² Fläche gehen als biodiversitätsrelevante Flächen (z.B. Grünraum, Wälder) verloren? Für den Berechnungsschlüssel siehe Hilfe. | E24: =Bearbeitung!Q60 -> 0 | F24: =Bearbeitung!R60 -> m² | G24: =Bearbeitung!S60 ->  | H24: =Bearbeitung!T60 -> 
C25: 3.2 | D25: =Berechnungen!C99 -> Wie viele m² Fläche werden durch das Projekt zusätzlich versiegelt? | E25: =Bearbeitung!Q61 -> 0 | F25: =Bearbeitung!R61 -> m² | G25: =Bearbeitung!S61 ->  | H25: =Bearbeitung!T61 -> 
C26: 3.3 | D26: =Berechnungen!C100 -> Wie viel Bäume gehen verloren? | E26: =Bearbeitung!Q62 -> 0 | F26: =Bearbeitung!R62 -> Anzahl Bäume | G26: =Bearbeitung!S62 ->  | H26: =Bearbeitung!T62 -> 
B27: Kompensation | C27: =Bearbeitung!O63 ->  | G27: =IF(AND(G23="",H23=""),"",Bearbeitung!S63) -> 
G28: =IF(OR(G23<>"",H23<>""),".","") -> 
B32: =Prüfungsfragen!B12 -> Bauen | C32: 4. | D32: =Berechnungen!C132 -> Werden beim Vorhaben Gebäude oder Anlagen neu gebaut oder saniert? | F32: Klimaschaden: | G32: =IF(AND(H32="",OR(G33<>"",G34<>"",G35<>"",G36<>"")),"mittel","") ->  | H32: =IF(OR(H33<>"",H34<>"",H35<>"",H36<>""),"hoch","") -> 
C33: 4.1 | D33: =Berechnungen!C134 -> Wird beim Gebäude-Neubau nur nach dem Mindeststandard der Bauvorschriften gebaut? Nach welchem Baustandard wird das Gebäude errichtet? | E33: =Bearbeitung!Q84 -> 0 | F33: =IF(Bearbeitung!R84="","",Bearbeitung!R84) ->  | G33: =Bearbeitung!S84 ->  | H33: =Bearbeitung!T84 -> 
C34: 4.2 | D34: =Berechnungen!C135 -> Wird ein bestehendes Gebäude nur mit geringstem Aufwand saniert? Welchen Baustandard hat das Gebäude nach der Sanierung? | E34: =Bearbeitung!Q85 -> 0 | F34: =IF(Bearbeitung!R85="","",Bearbeitung!R85) ->  | G34: =Bearbeitung!S85 ->  | H34: =Bearbeitung!T85 -> 
C35: 4.3 | D35: =Berechnungen!C136 -> Werden größere Mengen an neuer Bausubstanz benötigt? Wieviele m² BGF werden neu errichtet? | E35: =Bearbeitung!Q86 -> 0 | F35: =IF(Bearbeitung!R86="","",Bearbeitung!R86) -> m² BGF | G35: =Bearbeitung!S86 ->  | H35: =Bearbeitung!T86 -> 
C36: 4.4 | D36: =Berechnungen!C137 -> Wird beim Neubau oder bei der Sanierung von Anlagen Wert auf Klimaschutzmaßnahmen gelegt? Z.B. Niedrigenergie-Bauweise, energieeffiziente Maschinen und Geräte, ökologische Baustoffe | E36: =Bearbeitung!Q87 -> 0 | F36: =IF(Bearbeitung!R87="","",Bearbeitung!R87) ->  | G36: =Bearbeitung!S87 ->  | H36: =Bearbeitung!T87 -> 
B37: Kompensation | C37: =Bearbeitung!O88 ->  | G37: =IF(AND(G32="",H32=""),"",Bearbeitung!S88) -> 
G38: =IF(OR(G32<>"",H32<>""),".","") -> 
B42: =Prüfungsfragen!B14 -> Beschaffung, Subvention | C42: 5. | D42: =Berechnungen!C174 -> Wird eine Beschaffung oder eine Ausschreibung vorgenommen? Wird eine Veranstaltung durchgeführt oder eine Organisation subventioniert? | F42: Klimaschaden: | G42: =IF(AND(H42="",OR(G43<>"",G44<>"",G45<>"",G46<>"",G47<>"")),"mittel","") ->  | H42: =IF(OR(H43<>"",H44<>"",H45<>"",H46<>"",H47<>""),"hoch","") -> 
C43: 5.1 | D43: =Berechnungen!C176 -> Werden Büromöbel, Textilien, Elektrogeräte, EDV/IT-Geräte, Beleuchtung, Reinigungsmittel, Büromaterial, Druckwerke und Lebensmittel nachhaltig beschafft? Wie hoch ist der Anteil dieser Produkte am Gesamtanteil (geschätzt)? | E43: =Bearbeitung!Q111 -> 0 | G43: =Bearbeitung!S111 ->  | H43: =Bearbeitung!T111 -> 
C44: 5.2 | D44: =Berechnungen!C177 -> Werden bei der Fuhrparkbeschaffung Fahrzeuge mit alternativem Antrieb (0 g CO2-Ausstoß im Betrieb) angeschafft? | E44: =Bearbeitung!Q112 -> 0 | G44: =Bearbeitung!S112 ->  | H44: =Bearbeitung!T112 -> 
C45: 5.3 | D45: =Berechnungen!C178 -> Werden klimaschonende Kriterien bei Ausschreibungen der Stadt berücksichtigt? Zum Beispiel naBe-Kriterien, Baubook-Kriterien, klimaaktiv-Kriterien, Handbuch zur Regionalvergabe … | E45: =Bearbeitung!Q113 -> 0 | G45: =Bearbeitung!S113 ->  | H45: =Bearbeitung!T113 -> 
C46: 5.4 | D46: =Berechnungen!C179 -> Werden Veranstaltungen nachhaltig durchgeführt? Umsetzung z.B. nach den Kriterien von Sauberhafte Feste oder Green Event | E46: =Bearbeitung!Q114 -> 0 | G46: =Bearbeitung!S114 ->  | H46: =Bearbeitung!T114 -> 
C47: 5.5 | D47: =Berechnungen!C180 -> Werden bei Subventionen an Vereine/Organisationen Nachhaltigkeitskriterien für die Verwendung des Geldes vorgegeben? Z.B. nabe-Kriterien, ökologische Baustoffe / Reinigungsmittel / Mobilität / Verpflegung. | E47: =Bearbeitung!Q115 -> 0 | G47: =Bearbeitung!S115 ->  | H47: =Bearbeitung!T115 -> 
B48: Kompensation | C48: =Bearbeitung!O116 ->  | G48: =IF(AND(G42="",H42=""),"",Bearbeitung!S116) -> 
G49: =IF(OR(G42<>"",H42<>""),".","") -> 
B52: =Prüfungsfragen!B16 -> Sonstige negative Klimarelevanz | C52: 6. | D52: =Berechnungen!C218 -> Gibt es eine negative Auswirkung auf das Klima, die in den vorherigen Fragen nicht erwähnt wurde? | F52: Klimaschaden: | G52: =IF(AND(H52="",G53<>""),"mittel","") ->  | H52: =IF(H53<>"","hoch","") -> 
C53: 6.1 | D53: =Berechnungen!C222 -> Wie würden Sie die klimaschädigenden Auswirkungen des Vorhabens einschätzen? | E53: =Bearbeitung!O129 -> 0 | G53: =IF(Bearbeitung!R129=1,Bearbeitung!R128,"") ->  | H53: =IF(Bearbeitung!S129=1,Bearbeitung!S128,"") -> 
B54: Kompensation | C54: =Bearbeitung!O130 ->  | G54: =IF(AND(G52="",H52=""),"",Bearbeitung!S130) -> 
G55: =IF(OR(G52<>"",H52<>""),".","") -> 
B60: =Prüfungsfragen!B18 -> Erneuerbare Energie | C60: 7. | D60: =Berechnungen!C243 -> Kann durch das Vorhaben erneuerbare Energie (Biomasse, Sonne, Umgebungswärme) erzeugt oder fossile Energie eingespart werden (Dämmung, Heizungstausch, …) ? | F60: Klimanutzen: | G60: =IF(AND(H60="",OR(G63<>"",G64<>"",G65<>"",G66<>"")),"mittel","") ->  | H60: =IF(OR(H63<>"",H64<>"",H65<>"",H66<>""),"hoch","") -> 
C61: 7.1a | D61: =Berechnungen!C267 -> Wird durch thermische Solaranlagen erneuerbare Wärme erzeugt? Wie viel m² Solarfläche wird ungefähr errichtet? | E61: =Bearbeitung!O151 -> 0 | F61: =Bearbeitung!P151 -> m² | G61: =IF($G$63="","",".") ->  | H61: =IF($H$63="","",".") -> 
C62: 7.1b | D62: =Berechnungen!C268 -> Wird durch Photovoltaik erneuerbarer Strom erzeugt? Wie viel m² Photovoltaikfläche wird ungefähr errichtet? | E62: =Bearbeitung!O152 -> 0 | F62: =Bearbeitung!P152 -> m² | G62: =IF($G$63="","",".") ->  | H62: =IF($H$63="","",".") -> 
D63: =Berechnungen!C269 -> GEMEINSAME AMPEL FÜR FRAGE 7.1a und 7.1b | G63: =IF(Bearbeitung!R153=1,Bearbeitung!$R$150,"") ->  | H63: =IF(Bearbeitung!S153=1,Bearbeitung!$S$150,"") -> 
C64: 7.2 | D64: =Berechnungen!C270 -> Wurde durch Dämmung oder andere Maßnahmen z.B. Heizungsoptimierung, Abwärmenutzung der Heizbedarf von Gebäuden oder Anlagen reduziert ? Für wie viele m² BGF wurde dies ungefähr umgesetzt? | E64: =Bearbeitung!O154 -> 0 | F64: =Bearbeitung!P154 -> m² | G64: =IF(Bearbeitung!R154=1,Bearbeitung!$R$150,"") ->  | H64: =IF(Bearbeitung!S154=1,Bearbeitung!$S$150,"") -> 
C65: 7.3 | D65: =Berechnungen!C271 -> Wurde eine Öl- oder Gasheizung dauerhaft durch eine Hackgut- bzw. Pelletsheizung, Fernwärme oder eine Wärmepumpe ersetzt? Für wie viele m² BGF wurde dies ungefähr umgesetzt? | E65: =Bearbeitung!O155 -> 0 | F65: =Bearbeitung!P155 -> m² | G65: =IF(Bearbeitung!R155=1,Bearbeitung!$R$150,"") ->  | H65: =IF(Bearbeitung!S155=1,Bearbeitung!$S$150,"") -> 
C66: 7.4 | D66: =Berechnungen!C272 -> Kann durch den Austausch/Beschaffung von Geräten, Beleuchtung, Materialien, … fossile Energie eingespart werden? Wie viel MWh (=1000 kWh) kann auf die Lebensdauer ungefähr eingespart werden? | E66: =Bearbeitung!O156 -> 0 | F66: =Bearbeitung!P156 -> MWh | G66: =IF(Bearbeitung!R156=1,Bearbeitung!$R$150,"") ->  | H66: =IF(Bearbeitung!S156=1,Bearbeitung!$S$150,"") -> 
G67: =IF(OR(G60<>"",H60<>""),".","") -> 
B73: =Prüfungsfragen!B20 -> Klimafreundliche Mobilität | C73: 8. | D73: =Berechnungen!C285 -> Kann das Vorhaben einen Anreiz für klimafreundliche Mobilität setzen (Radfahren, Gehen, Öffis, alternative Antriebe) oder den PKW- bzw. Güterverkehr reduzieren? | F73: Klimanutzen: | G73: =IF(AND(H73="",OR(G74<>"",G75<>"",G76<>"",G77<>"",G78<>"",G79<>"",G80<>"")),"mittel","") ->  | H73: =IF(OR(H74<>"",H75<>"",H76<>"",H77<>"",H78<>"",H79<>"",H80<>""),"hoch","") -> 
C74: 8.1 | D74: =Berechnungen!C287 -> Wird durch das Projekt der öffentliche Personen-Nahverkehr (ÖPNV) gefördert? Beispiele: Bus- oder Bahnanbindung, Anrufsammeltaxi, Bike&Ride- bzw. Park&Ride-Anlagen, Förderung ÖFFIs | E74: =Bearbeitung!Q196 -> 0 | G74: =Bearbeitung!S196 ->  | H74: =Bearbeitung!T196 -> 
C75: 8.2 | D75: =Berechnungen!C288 -> Wird durch das Projekt der klimafreundliche Fuß- und Radverkehr gefördert? Beispiele: Gute Qualität von Rad- und Fußwegen, optimale Wegeführung, sichere Kreuzungen, Ampelschaltungen auch auf Rad- und Fußverkehr abgestimmt, kurze (Alltags-)Wege, Beleuchtung … | E75: =Bearbeitung!Q197 -> 0 | G75: =Bearbeitung!S197 ->  | H75: =Bearbeitung!T197 -> 
C76: 8.3 | D76: =Berechnungen!C289 -> Wird CO2-neutrale Mobilität gefördert? Beispiele: Testangebot von Fahrzeugen mit CO2-neutralem Antriebssystem, Ausbau von E-Ladeinfrastruktur, Förderung | E76: =Bearbeitung!Q198 -> 0 | G76: =Bearbeitung!S198 ->  | H76: =Bearbeitung!T198 -> 
C77: 8.4 | D77: =Berechnungen!C290 -> Kann durch das Projekt eine Reduktion des PKW-Verkehrs oder der PKW-Anzahl erzielt werden? Beispiele: CarSharing-Angebot, Parkraummanagement, Fahrverbote, Geschwindigkeitsreduktion | E77: =Bearbeitung!Q199 -> 0 | G77: =Bearbeitung!S199 ->  | H77: =Bearbeitung!T199 -> 
C78: 8.5 | D78: =Berechnungen!C291 -> In wie weit werden die Potentiale zur Reduktion von Schwerverkehrfahrten genutzt? Beispiele: Bahnanschluss, Sammeltransporte, gebündelter Verkehr, Fahrverbot, Fahrbeschränkung | E78: =Bearbeitung!Q200 -> 0 | G78: =Bearbeitung!S200 ->  | H78: =Bearbeitung!T200 -> 
C79: 8.6 | D79: =Berechnungen!C292 -> Kann durch das Projekt die tatsächliche Fahrgeschwindigkeit des KFZ-Verkehrs verringert werden? | E79: =Bearbeitung!Q201 -> 0 | G79: =Bearbeitung!S201 ->  | H79: =Bearbeitung!T201 -> 
C80: 8.7 | D80: =Berechnungen!C293 -> Kann durch das Vorhaben klimafreundliche Mobilität in der Verwaltung verbessert werden? | E80: =Bearbeitung!Q202 -> 0 | G80: =Bearbeitung!S202 ->  | H80: =Bearbeitung!T202 -> 
G81: =IF(OR(G73<>"",H73<>""),".","") -> 
B86: =Prüfungsfragen!B22 -> Begrünungen | C86: 9. | D86: =Berechnungen!C340 -> Können durch das Projekt zusätzlich Begrünungen und Biodiversitätsflächen geschaffen oder Flächen entsiegelt werden? Werden im Projekt Maßnahmen zur Nachhaltigkeit von Gebäudemanagement und zur kommunalen Grünräumpflege umgesetzt? | F86: Klimanutzen: | G86: =IF(AND(H86="",OR(G87<>"",G88<>"",G89<>"",G90<>"",G91<>"")),"mittel","") ->  | H86: =IF(OR(H87<>"",H88<>"",H89<>"",H90<>"",H91<>""),"hoch","") -> 
C87: 9.1 | D87: =Berechnungen!C370 -> Wie viele m² Grünräume, Naturwiesen, Baum- und Strauchgruppen, Nutzgärten, Alleen, Wälder, Parks, Bäche, Teiche, Wasserflächen, Moore, Feuchtwiesen und Gebäudebegrünungen etc. mit positiver Wirkung auf Biodiversität und Klimaschutz entstehen zusätzlich bzw. werden renaturiert? Für den Berechnungsschlüssel siehe Hilfe. | E87: =Bearbeitung!O218 -> 0 | F87: =Bearbeitung!P218 -> m² | G87: =IF(Bearbeitung!R218=1,Bearbeitung!$R$217,"") ->  | H87: =IF(Bearbeitung!S218=1,Bearbeitung!$S$217,"") -> 
C88: 9.2 | D88: =Berechnungen!C371 -> Wie viele m² vorhandene Moore, Feuchtwiesen, Wälder und Ähnliches werden als CO2-Speicher geschützt und gestärkt? Siehe Berechnungsschlüssel bei der Hilfe von der Frage 9.1. | E88: =Bearbeitung!O219 -> 0 | F88: =Bearbeitung!P219 -> m² | G88: =IF(Bearbeitung!R219=1,Bearbeitung!$R$217,"") ->  | H88: =IF(Bearbeitung!S219=1,Bearbeitung!$S$217,"") -> 
C89: 9.3 | D89: =Berechnungen!C372 -> Wie viele Bäume werden gepflanzt? | E89: =Bearbeitung!O220 -> 0 | F89: =Bearbeitung!P220 -> Stück | G89: =IF(Bearbeitung!R220=1,Bearbeitung!$R$217,"") ->  | H89: =IF(Bearbeitung!S220=1,Bearbeitung!$S$217,"") -> 
C90: 9.4 | D90: =Berechnungen!C373 -> Werden Maßnahmen bei Gebäuden eingeführt und dauerhaft betrieben, die den Erhalt der Biodiversität fördern, das Klima schonen und/oder dafür sorgen, dass CO2 stärker gebunden wird (siehe Liste der möglichen Maßnahmen in der Hilfe)? | E90: =Bearbeitung!O221 -> 0 | G90: =IF(Bearbeitung!R221=1,Bearbeitung!$R$217,"") ->  | H90: =IF(Bearbeitung!S221=1,Bearbeitung!$S$217,"") -> 
C91: 9.5 | D91: =Berechnungen!C374 -> Werden Maßnahmen in der Gemeinde eingeführt und dauerhaft betrieben, die den Erhalt der Biodiversität fördern, das Klima schonen und/oder dafür sorgen, dass CO2 stärker gebunden wird (siehe Liste der möglichen Maßnahmen in der Hilfe)? | E91: =Bearbeitung!O222 -> 0 | G91: =IF(Bearbeitung!R222=1,Bearbeitung!$R$217,"") ->  | H91: =IF(Bearbeitung!S222=1,Bearbeitung!$S$217,"") -> 
G92: =IF(OR(G86<>"",H86<>""),".","") -> 
B95: =Prüfungsfragen!B24 -> Planung | C95: 10. | D95: =Berechnungen!C386 -> Kann die Planung möglichst klimafreundlich entwickelt werden? Betrifft regionales oder örtliches Entwicklungskonzept, Flächenwidmungsplan, Bebauungsplan, Städtebauliche Konzepte, Städtebauliche Leitbilder o.ä. | F95: Klimanutzen: | G95: =IF(AND(H95="",OR(G96<>"",G97<>"",G98<>"",G99<>"")),"mittel","") ->  | H95: =IF(OR(H96<>"",H97<>"",H98<>"",H99<>""),"hoch","") -> 
C96: 10.1 | D96: =Berechnungen!C388 -> Werden im örtlichen Raumordnunsprogramm bzw. der Flächenwidmung die übergeordneten klimarelevanten Ziele und Planungen integriert? Beispiele: Österreichische Klima- und Energiestrategie "mission2030"; Landesentwicklungsprogramm, Regionale Entwicklungsprogramme, Leitbilder o.ä. | E96: =Bearbeitung!O249 -> 0 | G96: =IF(Bearbeitung!R249=1,Bearbeitung!$R$248,"") ->  | H96: =IF(Bearbeitung!S249=1,Bearbeitung!$S$248,"") -> 
C97: 10.2 | D97: =Berechnungen!C389 -> Werden im Bebauungsplan, bei Baulandumlegung bzw. bei Änderungen der Bauvorschriften und bei privatwirtschaftlichen Raumplanungsverträgen die übergeordneten klimarelevanten Ziele und Planungen integriert? | E97: =Bearbeitung!O250 -> 0 | G97: =IF(Bearbeitung!R250=1,Bearbeitung!$R$248,"") ->  | H97: =IF(Bearbeitung!S250=1,Bearbeitung!$S$248,"") -> 
C98: 10.3 | D98: =Berechnungen!C390 -> Werden im Städtebaulichen Leitbild, bei Stadtentwicklungskonzepten, Quartiersentwicklungen, Freiraumkonzepten o. ä. die übergeordneten klimarelevanten Ziele und Planungen integriert? | E98: =Bearbeitung!O251 -> 0 | G98: =IF(Bearbeitung!R251=1,Bearbeitung!$R$248,"") ->  | H98: =IF(Bearbeitung!S251=1,Bearbeitung!$S$248,"") -> 
C99: 10.4 | D99: =Berechnungen!C391 -> Wird in allen oben genannten Planungen die Klimawandelanpassung berücksichtigt? Z. B. Landschaftskonzept, Baumkataster | E99: =Bearbeitung!O252 -> 0 | G99: =IF(Bearbeitung!R252=1,Bearbeitung!$R$248,"") ->  | H99: =IF(Bearbeitung!S252=1,Bearbeitung!$S$248,"") -> 
G100: =IF(OR(G95<>"",H95<>""),".","") -> 
B103: =Prüfungsfragen!B26 -> Öffentlichkeitsarbeit & Förderungen | C103: 11. | D103: =Berechnungen!C428 -> Kann mit dem Projekt öffentlichkeitswirksam für mehr Klimaschutz bei der Bevölkerung und der Verwaltung geworben werden? Auch durch Förderungen oder Abgaben für Ver- und Entsorgung. | F103: Klimanutzen: | G103: =IF(AND(H103="",OR(G104<>"",G105<>"",G106<>"",G107<>"",G108<>"")),"mittel","") ->  | H103: =IF(OR(H104<>"",H105<>"",H106<>"",H107<>"",H108<>""),"hoch","") -> 
C104: 11.1 | D104: =Berechnungen!C430 -> Ist eine Information über die positiven Auswirkungen des Projekts auf den Klimaschutz für die BürgerInnen (Presse, Homepage etc.) geplant? | E104: =Bearbeitung!O281 -> 0 | G104: =IF(Bearbeitung!R281=1,Bearbeitung!$R$280,"") -> 
C105: 11.2 | D105: =Berechnungen!C431 -> Ist eine Information über die positiven Auswirkungen des Projekts auf den Klimaschutz für die Verwaltung, für die Politik oder für andere Gebietskörperschaften (andere Gemeinden) geplant? | E105: =Bearbeitung!O282 -> 0 | G105: =IF(Bearbeitung!R282=1,Bearbeitung!$R$280,"") -> 
C106: 11.3 | D106: =Berechnungen!C432 -> Ist eine Bürgerbeteiligung, Partizipation für mehr Klimaschutz in der Bevölkerung geplant? | E106: =Bearbeitung!O283 -> 0 | G106: =IF(Bearbeitung!R283=1,Bearbeitung!$R$280,"") ->  | H106: =IF(Bearbeitung!S283=1,Bearbeitung!$S$280,"") -> 
C107: 11.4 | D107: =Berechnungen!C433 -> Werden bei geplanten Förderungen der Stadt/Gemeinde Klimaauswirkungen berücksichtigt? | E107: =Bearbeitung!O284 -> 0 | G107: =IF(Bearbeitung!R284=1,Bearbeitung!$R$280,"") ->  | H107: =IF(Bearbeitung!S284=1,Bearbeitung!$S$280,"") -> 
C108: 11.5 | D108: =Berechnungen!C434 -> Wirken sich Abgabenänderungen bei Wasserversorgung, Abfallwirtschaft, Parkraumbewirtschaftung etc. positiv auf klimaschonendes bzw. ressourcenschonendes Verhalten der Kunden aus? | E108: =Bearbeitung!O285 -> 0 | G108: =IF(Bearbeitung!R285=1,Bearbeitung!$R$280,"") ->  | H108: =IF(Bearbeitung!S285=1,Bearbeitung!$S$280,"") -> 
G109: =IF(OR(G103<>"",H103<>""),".","") -> 
B113: =Prüfungsfragen!B28 -> Sonstige positive Klimarelevanz | C113: 12. | D113: =Berechnungen!C475 -> Gibt es eine positive Auswirkung auf das Klima, die in den vorherigen Fragen nicht erwähnt wurde? | F113: Klimanutzen: | G113: =IF(AND(H113="",G114<>""),"mittel","") ->  | H113: =IF(H114<>"","hoch","") -> 
C114: 12.1a | D114: =Berechnungen!C479 -> Nutzung als Kompensationsmaßnahme: Welche Kompensationswirkung würden Sie der Maßnahme zuschreiben? (gering kompensiert eine grüne, mittel eine gelbe und hoch eine rote Ampel) | E114: =Bearbeitung!B312 -> 0 | G114: =IF(Bearbeitung!R312=1,Bearbeitung!R311,"") ->  | H114: =IF(Bearbeitung!S312=1,Bearbeitung!S311,"") -> 
G115: =IF(OR(G113<>"",H113<>""),".","") -> 

Sheet Berechnungen (hidden)
C1: Klimarelevanzprüfung | H1: Schwellenwerte | L1: Krems: ca. 250.000 t CO2 Gesamtausstoß/Jahr Vorgabe unterer Schwellwert = ca. 5 t CO2-Ausstoß Vorgabe für oberen Schwellwert = ca. 100 t CO2-Ausstoß
H2: spezifisch | J2: t CO2 | L2: CO2-Berechnungsgrundlagen | M2: Eingabeauswahl | T2: Smileys- hilfsspalte (ab Frage 7) | U2: Eingaben vorhanden | X2: Ampelwerte | AB2: Kompen-sation | AC2: Umsetzung | AF2: Ampelwerte
A3: Fragen | B3: Nr. | C3: Kriterium | E3: Bearbeiten | H3: unterer | I3: oberer | J3: unterer | K3: oberer | L3: alle CO2-Angaben aus eNu CO2-Coach (https://www.co2-coach.at/home) | M3: Auswahl 1 | N3: Auswahl 2 | O3: Auswahl 3 | P3: Auswahl 4 | U3: Detailfragen bzw. Alternativenprüfung | V3: Kompensations-maßnahmen | X3: =-1 -> -1 | Z3: =0 -> 0 | AA3: =1 -> 1 | AC3: L | AD3: K | AE3: J | AF3: 1 | AG3: 2 | AH3: 3
L4: - Für die CO2-Berechnung der einzelnen Fragen sind die Annahmen in dieser Spalte aufgelistet. - Die Berechnungen für den oberen und unteren CO2-Schwellwert sind in den Spalten K und L zu finden. - Für diese Berechnungen wurden die spezifischen Schwellenwerte der einzelnen Fragen verwendet (wo möglich). Werden diese spezifischen Schwellenwerte geändert, ist auch sofort die Änderung im Ergebnis der CO2-Berechnung sichtbar.
L5: Untere Grenze
A6: Abteilung : | D6: Thema: | E6: alle Fragen einblenden | L6: =SUM(L7:L9) -> 0 | M6: Untere Grenze | N6: Einwohnerzahl | O6: Tonnen | Q6: >10.000 EW 5t – 100 t (1 promill von 25.000 EW ist 200t) => 26 Gemeinden
L7: =IF(AND(Klimarelevanzprüfung!D10<Berechnungen!N7,Klimarelevanzprüfung!D10>0),Berechnungen!O7,"") ->  | M7: bis | N7: 5000 | O7: 1 | Q7: 5.000 < 10.000 EW: 3t -60 t (1 promill bei 7.000 EW is 60 t) => 42 Gemeinden
A8: Sachbearbeiter/in: | D8: Datum: | L8: =IF(AND(Klimarelevanzprüfung!D10<Berechnungen!N8,Klimarelevanzprüfung!D10>= N7),O8,"") ->  | M8: bis | N8: 10000 | O8: 3 | Q8: < 5000 : 1t – 20 t (1 promill bei 3.000 EW is 30 t)
L9: =IF(Klimarelevanzprüfung!D10>=Berechnungen!N8,O9,"") ->  | M9: bis | N9: 100000 | O9: 5
A10: Projektname: | D10: Projektnr. /Geschäftszahl
A11: Projektbeschreibung: | L11: Obere Grenze | M11: Obere Grenze
L12: =SUM(L13:L16) -> 0
A13: Einstieg | C13: Wirkt sich die Maßnahme direkt oder indirekt auf das Klima aus? Klimarelevanz hat häufig mit Energie, Mobilität, Natur, Bauen, Bodenverbrauch, Beschaffung oder Öffentlichkeitsarbeit zu tun. | L13: =IF(AND(Klimarelevanzprüfung!D10<Berechnungen!N13,Klimarelevanzprüfung!D10>0),Berechnungen!O13,"") ->  | M13: bis | N13: 5000 | O13: 20
L14: =IF(AND(Klimarelevanzprüfung!D10<Berechnungen!N14,Klimarelevanzprüfung!D10>= N13),O14,"") ->  | M14: bis | N14: 10000 | O14: 60
C15: Bitte begründen Sie kurz, warum das Projekt bzw. das Vorhaben nicht klimarelevant ist: | L15: =IF(Klimarelevanzprüfung!D10>=Berechnungen!N14,O15,"") ->  | M15: bis | N15: 100000 | O15: 100
A18: Fossile Energie | B18: 1. | C18: Wird durch das Vorhaben zusätzlich fossile Energie (Öl, Gas, Kohle, fossiler Strom) in einem Gebäude oder einer Anlage verbraucht? | U18: Zahlversuch Untere Grenze | V18: Untere Grenze | Z18: Zahlversuch Obere Grenze | AA18: Obere Grenze
H19: Achtung hier je nach EW-Zahl | V19: 1 | W19: 3 | X19: 5 | AA19: 20 | AB19: 60 | AC19: 100
A20: Detailfragen | B20: 1.1 | C20: Wird mit fossiler Energie (Öl, Gas) geheizt? Für welche zusätzliche Bruttogrundfläche? | D20: nicht relevant | E20: m2 BGF | F20: =IF(D20=N20,-1,IF(D20=O20,-2,IF(D20=P20,-3,""))) ->  | H20: =IF($L$6=$V$19,V20,IF($L$6=$W$19,W20,IF($L$6=$X$19,X20,""))) ->  | I20: =IF($L$12=$AA$19,AA20,IF($L$12=$AB$19,AB20,IF($L$12=$AC$19,AC20,""))) ->  | J20: =U20*70/0.85*0.268/1000*20 -> 4.855529412 | K20: =Z20*70/0.85*0.268/1000*20 -> 99.31764706 | L20: HWB = 70 kWh/m²,a und Gasheizung (0,268 kg CO2/kWh lt. UBA 2021) mit 85% Jahrenutzungsgrad und Zeitraum 20 Jahre | M20: nicht relevant | N20: ="< "&H20 -> < | O20: =H20&" - "&I20 -> - | P20: ="> "&I20 -> > | U20: 11 | V20: 2 | W20: 7 | X20: 11 | Z20: 225 | AA20: 45 | AB20: 135 | AC20: 225
B21: 1.2 | C21: Wird Strom mit fossilem Anteil genutzt? Für welche zusätzliche Bruttogrundfläche (Berechnung für Wohngebäude siehe Hilfe)? | E21: m2 BGF | F21: =IF(D21=N21,-1,IF(D21=O21,-2,IF(D21=P21,-3,""))) ->  | H21: =IF($L$6=$V$19,V21,IF($L$6=$W$19,W21,IF($L$6=$X$19,X21,""))) ->  | I21: =IF($L$12=$AA$19,AA21,IF($L$12=$AB$19,AB21,IF($L$12=$AC$19,AC21,""))) ->  | J21: =U21*100*0.219/1000*10 -> 5.037 | K21: =Z21*100*0.219/1000*10 -> 19.71 | L21: 100 kWh /m² (bei Dienstleistungsgebäuden, Quelle: ÖGUT, Kennzahlen zum Energieverbrauch in Dienstleistungsgebäuden, 2011) und 0,219 kg CO2/kWh (Ö-Strommix lt. UBA 2021) und 10 Jahre Nutzungsdauer (Alte Variante mit Nutzer: Stromverbrauch von 1500 kWh/Person,a) | M21: nicht relevant | N21: ="< "&H21 -> < | O21: =H21&" - "&I21 -> - | P21: ="> "&I21 -> > | U21: 23 | V21: 5 | W21: 14 | X21: 23 | Z21: 90 | AA21: 90 | AB21: 270 | AC21: 460
B22: 1.3 | C22: Werden für Prozesswärme zusätzlich fossile Brennstoffe verbraucht? In welcher Höhe (geschätzt)? | E22: kWh pro Jahr | F22: =IF(D22=N22,-1,IF(D22=O22,-2,IF(D22=P22,-3,""))) ->  | I22: =IF($L$12=$AA$19,AA22,IF($L$12=$AB$19,AB22,IF($L$12=$AC$19,AC22,""))) ->  | J22: =U22*0.268/1000*20 -> 4.824 | K22: =Z22*0.268/1000*20 -> 101.84 | L22: Erdgas (0,268 kg CO2/kWh lt. UBA 2021) und 20 Jahre Nutzungsdauer | M22: nicht relevant | N22: ="< "&H22 -> < | O22: =H22&" - "&I22 -> - | P22: ="> "&I22 -> > | U22: 900 | V22: 200 | W22: 600 | X22: 900 | Z22: 19000 | AA22: 4000 | AB22: 11000 | AC22: 19000
B23: 1.4 | C23: Wird für einen Prozess / ein Vorhaben zusätzlich Strom mit fossilen Anteilen verwendet? In welcher Höhe (geschätzt)? | E23: kWh pro Jahr | F23: =IF(D23=N23,-1,IF(D23=O23,-2,IF(D23=P23,-3,""))) ->  | J23: =U23*0.219/1000*10 -> 5.037 | K23: =Z23*0.219/1000*10 -> 100.74 | L23: Ö-Strommix (0,219 kg CO2/kWh; Ö-Strommix lt. UBA 2021) und 10 Jahre Nutzungsdauer | M23: nicht relevant | N23: ="< "&H23 -> < | O23: =H23&" - "&I23 -> - | P23: ="> "&I23 -> > | U23: 2300 | V23: 500 | W23: 1400 | X23: 2300 | Z23: 46000 | AA23: 9000 | AB23: 27000 | AC23: 46000
N24: ="< "&H24 -> <
A25: Anmerkungen
A27: Das Vorhaben hat eine gewisse Klimarelevanz. Für die Fragen mit gelber oder roter Ampel wird eine Verbesserung im Bezug auf Klimaschutz empfohlen.
A28: Alternativen-prüfung | B28: Alternativen um das Vorhaben klimafreundlicher umzusetzen:
B29: ad 1.1) | C29: Heizen mit erneuerbarer Wärme z.B. Biomasse, Wärmepumpe mit Ökostrom
B30: ad 1.2) | C30: Nutzung von (zertifiziertem) Ökostrom oder eigene Erzeugung mit PV (als Kompensationsmaßnahme in Punkt 7.1. anrechenbar)
B31: ad 1.3) | C31: Technik für fossile Brennstoffe durch solche mit erneuerbarer Energie ersetzen
B32: ad 1.4) | C32: Ökostrom einkaufen oder erneuerbaren Strom selbst erzeugen
B33: Angabe der Alternativen in Stichworten:
B35: Welche Werte ergeben sich unter Berücksichtigung der Alternativen?
B36: 1.1 | C36: =C20 -> Wird mit fossiler Energie (Öl, Gas) geheizt? Für welche zusätzliche Bruttogrundfläche? | E36: =E20 -> m2 BGF | F36: =IF(D36=N36,-1,IF(D36=O36,-2,IF(D36=P36,-3,""))) ->  | M36: =M20 -> nicht relevant | N36: < | O36: - | P36: >
B37: 1.2 | C37: =C21 -> Wird Strom mit fossilem Anteil genutzt? Für welche zusätzliche Bruttogrundfläche (Berechnung für Wohngebäude siehe Hilfe)? | E37: =E21 -> m2 BGF | F37: =IF(D37=N37,-1,IF(D37=O37,-2,IF(D37=P37,-3,""))) ->  | M37: nicht relevant | N37: < | O37: - | P37: >
B38: 1.3 | C38: =C22 -> Werden für Prozesswärme zusätzlich fossile Brennstoffe verbraucht? In welcher Höhe (geschätzt)? | E38: =E22 -> kWh pro Jahr | F38: =IF(D38=N38,-1,IF(D38=O38,-2,IF(D38=P38,-3,""))) ->  | M38: nicht relevant | N38: < | O38: - | P38: >
B39: 1.4 | C39: =C23 -> Wird für einen Prozess / ein Vorhaben zusätzlich Strom mit fossilen Anteilen verwendet? In welcher Höhe (geschätzt)? | E39: =E23 -> kWh pro Jahr | F39: =IF(D39=N39,-1,IF(D39=O39,-2,IF(D39=P39,-3,""))) ->  | M39: nicht relevant | N39: < | O39: - | P39: >
A41: Kompensations-prüfung | B41: Wenn Alternativen nicht möglich sind: Mit welchen Kompensationsmaßnahmen kann das Vorhaben klimafreundlicher umgesetzt werden?
B42: Kompensationsmaßnahmen (auch an anderen Orten) sind in den Fragen 7 - 12 definiert. Beispiele: fossile Verbraucher entfernen, erneuerbare Energie nutzen, zusätzliche Ausgleichsflächen oder Rückwidmungen bei Baumaßnahmen, Aufforstungen, zusätzliche Mittel für Klimaschutzprojekte ...
B43: Angabe der Kompensationsmaßnahmen (deren Umsetzung beantragt werden muss): | F43: =IF(ISBLANK(B44),"",-1) -> 
A56: Motorisierter Verkehr | B56: 2. | C56: Erzeugt das Vorhaben zusätzlichen motorisierten PKW- oder Güterverkehr? | U56: Zahlversuch Untere Grenze | V56: Untere Grenze | Z56: Zahlversuch Obere Grenze | AA56: Obere Grenze
V57: 1 | W57: 3 | X57: 5 | AA57: 20 | AB57: 60 | AC57: 100
A58: Detailfragen | B58: 2.1 | C58: Werden der motorisierte PKW- und Güterverkehr (> 3,5 t) durch die Maßnahme erhöht? Wie viele Fahrten werden pro Tag zusätzlich erzeugt (grobe Schätzung)? Beispiele: Widmung Gewerbegebiet mit voraussichtl. Verkehrszunahme, Errichtung Einkaufszentrum oder Freizeiteinrichtung, Veranstaltungen etc. | E58: Fahrten pro Werktag | F58: =IF(D58=N58,-1,IF(D58=O58,-2,IF(D58=P58,-3,""))) ->  | H58: =IF($L$6=$V$19,V58,IF($L$6=$W$19,W58,IF($L$6=$X$19,X58,""))) ->  | I58: =IF($L$12=$AA$19,AA58,IF($L$12=$AB$19,AB58,IF($L$12=$AC$19,AC58,""))) ->  | J58: =U58*5*0.257/1000*250 -> 3.2125 | K58: =Z58*5*0.257/1000*250 -> 96.375 | L58: bei 5 km Fahrtstrecke und 0,257 kg/km (Mittelwert Benzin/Diesel-PKW lt. Factsheet Emissionen, UBA 2021 ) an 250 Werktagen Schwerverkehrsfaktor = 4 laut Fa. Komobile (Anna König) | M58: nicht relevant | N58: ="< "&H58 -> < | O58: =H58&" - "&I58 -> - | P58: ="> "&I58 -> > | U58: 10 | V58: 3 | W58: 10 | X58: 16 | Z58: 300 | AA58: 60 | AB58: 200 | AC58: 300
B59: 2.2 | C59: Werden im Zuge des Projekts Stellplätze neu errichtet? Um wie viele zusätzliche Stellplätze handelt es sich? | E59: Anzahl | F59: =IF(D59=N59,-1,IF(D59=O59,-2,IF(D59=P59,-3,""))) ->  | H59: =IF($L$6=$V$19,V59,IF($L$6=$W$19,W59,IF($L$6=$X$19,X59,""))) ->  | I59: =IF($L$12=$AA$19,AA59,IF($L$12=$AB$19,AB59,IF($L$12=$AC$19,AC59,""))) ->  | J59: =U59*6.2*5*0.257/1000*250 -> 5.97525 | K59: =Z59*6.2*5*0.257/1000*250 -> 99.5875 | L59: bei Mittelwert 6,2 Verwendungen/Werktag (siehe Notiz) und 5 km Fahrtstrecke/Parken und 0,257 kg/km (Mittelwert Benzin/Diesel-PKW lt. Factsheet Emissionen, UBA 2021 ) an 250 Werktagen | M59: nicht relevant | N59: ="< "&H59 -> < | O59: =H59&" - "&I59 -> - | P59: ="> "&I59 -> > | U59: 3 | V59: 1 | W59: 2 | X59: 3 | Z59: 50 | AA59: 10 | AB59: 30 | AC59: 50
B60: 2.3 | C60: Werden Straßen verbreitert, begradigt, saniert oder zusätzlich errichtet? Wie viele Laufmeter Straße werden für den PKW- oder Güterverkehr verbessert bzw. zusätzlich errichtet? | E60: Länge in m | F60: =IF(D60=N60,-1,IF(D60=O60,-2,IF(D60=P60,-3,""))) ->  | I60: =IF($L$12=$AA$19,AA60,IF($L$12=$AB$19,AB60,IF($L$12=$AC$19,AC60,""))) ->  | J60: =U60/1000*(50+10*4)*0.257/1000*250*10 -> 0.867375 | K60: =Z60/1000*(50+10*4)*0.257/1000*250*10 -> 101.19375 | L60: bei zusätzlichen 50 PKW-Fahren und 10 LKW-Fahrten pro Tag auf der Straßenlänge und 0,257 kg/km (MW Benzin/Diesel PKW) an 250 Werktagen im Zeitraum von 10 Jahren Schwerverkehrsfaktor = 4 laut Fa. Komobile (Anna König) | M60: nicht relevant | N60: ="< "&H60 -> < | O60: =H60&" - "&I60 -> - | P60: ="> "&I60 -> > | U60: 15 | V60: 15 | W60: 50 | X60: 90 | Z60: 1750 | AA60: 350 | AB60: 1050 | AC60: 1750
B61: 2.4 | C61: Führen Maßnahmen in der Parkraumbewirtschaftung zu mehr motorisiertem Verkehr? Beispiele: Gebührenreduzierung, Parkgebühr-Ausnahmen (zeitbezogen, Personen-/Fahrzeugbezogen) | F61: =IF(D61=N61,-1,IF(D61=O61,-2,IF(D61=P61,-3,""))) ->  | H61: gering | I61: erheblich | L61: Bewertungskriterien detaillierter ausführen | M61: nicht relevant | N61: gering | O61: teilweise | P61: erheblich
B62: 2.5 | C62: Behindert die Maßnahme klimafreundlichen Verkehr (Radfahren, zu Fuß gehen, ÖFFIS), z.B. Unterbrechung oder Reduzierung eines Fußgängerwegs oder Fahrradwegs ? | F62: =IF(D62=N62,-1,IF(D62=O62,-2,IF(D62=P62,-3,""))) ->  | H62: gering | I62: erheblich | L62: Bewertungskriterien detaillierter ausführen | M62: nicht relevant | N62: =H62 -> gering | O62: teilweise | P62: =I62 -> erheblich
A64: Anmerkungen
A66: =A27 -> Das Vorhaben hat eine gewisse Klimarelevanz. Für die Fragen mit gelber oder roter Ampel wird eine Verbesserung im Bezug auf Klimaschutz empfohlen.
A67: Alternativen-prüfung | B67: Alternativen um das Vorhaben klimafreundlicher umzusetzen:
B68: ad 2.1) | C68: Einrichtungen an ÖFFI-Linien + Fuß- und Radwegenetz anbinden, mehr Zentrumsnähe.
B69: ad 2.2) | C69: Reduktion von Stellplätzen im selben Gebiet (Zone) bzw. Kompensationsmaßnahmen laut Frage 8 planen und umsetzen z.B. Masterplan e-Ladeinfrastruktur
B70: ad 2.3) | C70: Rad-/Gehwege einrichten oder verbessern, Kreuzungen für Fuß-/Radverkehr verbessern, Vorrang für ÖFFIs z.B. eigene Spur, Busbuchten entfernen
B71: ad 2.4) | C71: Förderung von nichtfossilen Antrieben, gleichzeitige Förderung von OFFI's
B72: ad 2.5) | C72: Maßnahme nicht durchführen oder in klimafreundlicher Weise umsetzen (Hinweise in Alternativentipps von Frage 7)
B73: Angabe der Alternativen in Stichworten:
B75: Welche Werte ergeben sich unter Berücksichtigung der Alternativen?
B76: =B58 -> 2.1 | C76: Werden der motorisierte PKW- und Güterverkehr (> 3,5 t) durch die Maßnahme erhöht? Wie viele Fahrten werden pro Tag zusätzlich erzeugt (grobe Schätzung)? Beispiele: Widmung Gewerbegebiet mit voraussichtl. Verkehrszunahme, Errichtung Einkaufszentrum oder Freizeiteinrichtung, Veranstaltungen etc. | E76: =E58 -> Fahrten pro Werktag | F76: =IF(D76=N76,-1,IF(D76=O76,-2,IF(D76=P76,-3,""))) ->  | M76: =M58 -> nicht relevant | N76: =N58 -> < | O76: - | P76: >
B77: 2.2 | C77: Werden im Zuge des Projekts Stellplätze neu errichtet? Um wie viele zusätzliche Stellplätze handelt es sich? | E77: =E59 -> Anzahl | F77: =IF(D77=N77,-1,IF(D77=O77,-2,IF(D77=P77,-3,""))) ->  | M77: nicht relevant | N77: < | O77: - | P77: >
B78: 2.3 | C78: Werden Straßen verbreitert, begradigt, saniert oder zusätzlich errichtet? Wie viele Laufmeter Straße werden für den PKW- oder Güterverkehr verbessert bzw. zusätzlich errichtet? | E78: =E60 -> Länge in m | F78: =IF(D78=N78,-1,IF(D78=O78,-2,IF(D78=P78,-3,""))) ->  | M78: nicht relevant | N78: < | O78: - | P78: >
B79: 2.4 | C79: Führen Maßnahmen in der Parkraumbewirtschaftung zu mehr motorisiertem Verkehr? Beispiele: Gebührenreduzierung, Parkgebühr-Ausnahmen (zeitbezogen, Personen-/Fahrzeugbezogen) | F79: =IF(D79=N79,-1,IF(D79=O79,-2,IF(D79=P79,-3,""))) ->  | M79: nicht relevant | N79: gering | O79: teilweise | P79: erheblich
B80: 2.5 | C80: Behindert die Maßnahme klimafreundlichen Verkehr (Radfahren, zu Fuß gehen, ÖFFIS), z.B. Unterbrechung oder Reduzierung eines Fußgängerwegs oder Fahrradwegs ? | F80: =IF(D80=N80,-1,IF(D80=O80,-2,IF(D80=P80,-3,""))) ->  | M80: nicht relevant | N80: gering | O80: teilweise | P80: erheblich
A82: Kompensations-prüfung | B82: Wenn Alternativen nicht möglich sind: Mit welchen Kompensationsmaßnahmen kann das Vorhaben klimafreundlicher umgesetzt werden?
B83: Kompensationsmaßnahmen (auch an anderen Orten) sind in den Fragen 7 - 12 definiert. Beispiele: Verkehrsreduktion, Attraktivierung ÖFFIs, Shared Space oder Carsharing Projekte, Fahrradstreifen, Errichtung von Radständern (gute, funktionelle!), Aktionen/Mittel für zu Fuß gehen, Rad fahren, zusätzliche Mittel für Klimaschutzprojekte, Masterplan e-Ladeinfrastruktur ...
B84: Angabe der Kompensationsmaßnahmen (deren Umsetzung beantragt werden muss): | F84: =IF(ISBLANK(B85),"",-1) -> 
A96: Versiegelung | B96: 3. | C96: Werden durch das Projekt zusätzliche Flächen versiegelt und/oder gehen Naturräume verloren? | U96: Zahlversuch Untere Grenze | V96: Untere Grenze | Z96: Zahlversuch Obere Grenze | AA96: Obere Grenze
V97: 1 | W97: 3 | X97: 5 | AA97: 20 | AB97: 60 | AC97: 100
A98: Detailfragen | B98: 3.1 | C98: Wie viele m² Fläche gehen als biodiversitätsrelevante Flächen (z.B. Grünraum, Wälder) verloren? Für den Berechnungsschlüssel siehe Hilfe. | E98: m² | F98: =IF(D98=N98,-1,IF(D98=O98,-2,IF(D98=P98,-3,""))) ->  | H98: =IF($L$6=$V$19,V98,IF($L$6=$W$19,W98,IF($L$6=$X$19,X98,""))) ->  | I98: =IF($L$12=$AA$19,AA98,IF($L$12=$AB$19,AB98,IF($L$12=$AC$19,AC98,""))) ->  | J98: =2.3*U98*50/1000 -> 1.15 | K98: =2.3*Z98*50/1000 -> 103.5 | L98: bei 2,3 kg CO2/m²,a Verlust und 50 Jahre Zeitraum | M98: nicht relevant | N98: ="< "&H98 -> < | O98: =H98&" - "&I98 -> - | P98: ="> "&I98 -> > | U98: 10 | V98: 10 | W98: 30 | X98: 40 | Z98: 900 | AA98: 200 | AB98: 500 | AC98: 900
B99: 3.2 | C99: Wie viele m² Fläche werden durch das Projekt zusätzlich versiegelt? | E99: m² | F99: =IF(D99=N99,-1,IF(D99=O99,-2,IF(D99=P99,-3,""))) ->  | H99: =IF($L$6=$V$19,V99,IF($L$6=$W$19,W99,IF($L$6=$X$19,X99,""))) ->  | I99: =IF($L$12=$AA$19,AA99,IF($L$12=$AB$19,AB99,IF($L$12=$AC$19,AC99,""))) ->  | J99: =2.3*U99*50/1000 -> 3.45 | K99: =2.3*Z99*50/1000 -> 103.5 | L99: bei 2,3 kg CO2/m²,a Verlust und 50 Jahre Zeitraum | M99: nicht relevant | N99: ="< "&H99 -> < | O99: =H99&" - "&I99 -> - | P99: ="> "&I99 -> > | U99: 30 | V99: 10 | W99: 30 | X99: 40 | Z99: 900 | AA99: 200 | AB99: 500 | AC99: 900
B100: 3.3 | C100: Wie viel Bäume gehen verloren? | E100: Anzahl Bäume | F100: =IF(D100=N100,-1,IF(D100=O100,-2,IF(D100=P100,-3,""))) ->  | I100: =IF($L$12=$AA$19,AA100,IF($L$12=$AB$19,AB100,IF($L$12=$AC$19,AC100,""))) ->  | J100: =10*U100*50/1000 -> 1 | K100: =10*Z100*50/1000 -> 100 | L100: bei 10 kg CO2/Baum,a und 50 Jahre Zeitraum | M100: nicht relevant | N100: ="< "&H100 -> < | O100: =H100&" - "&I100 -> - | P100: ="> "&I100 -> > | U100: 2 | V100: 2 | W100: 5 | X100: 10 | Z100: 200 | AA100: 40 | AB100: 120 | AC100: 200
A102: Anmerkungen
A104: =A27 -> Das Vorhaben hat eine gewisse Klimarelevanz. Für die Fragen mit gelber oder roter Ampel wird eine Verbesserung im Bezug auf Klimaschutz empfohlen.
A105: Alternativen-prüfung | B105: Alternativen um das Vorhaben klimafreundlicher umzusetzen:
B106: ad 3.1) | C106: Ausgleich durch zusammenhängende Naturflächen > 1000 m² und/oder Baumpflanzungen am Gelände
B107: ad 3.2) | C107: Ausgleich durch wasserdurchlässige Fahrstreifen/Parkplätze, oder Dachbegrünung, Wandbegrünung, Baumpflanzungen, Biotope etc.
B108: ad 3.3) | C108: Baumpflanzungen am Gelände oder den Baumbestand mit einem langfristigen Pflegekonzept erhalten
B109: Angabe der Alternativen in Stichworten:
B111: Welche Werte ergeben sich unter Berücksichtigung der Alternativen?
B112: =B98 -> 3.1 | C112: Wie viele m² Fläche gehen als biodiversitätsrelevante Flächen (z.B. Grünraum, Wälder) verloren? Für den Berechnungsschlüssel siehe Hilfe. | E112: =E98 -> m² | F112: =IF(D112=N112,-1,IF(D112=O112,-2,IF(D112=P112,-3,""))) ->  | M112: =M98 -> nicht relevant | N112: < | O112: - | P112: >
B113: 3.2 | C113: Wie viele m² Fläche werden durch das Projekt zusätzlich versiegelt? | E113: =E99 -> m² | F113: =IF(D113=N113,-1,IF(D113=O113,-2,IF(D113=P113,-3,""))) ->  | M113: nicht relevant | N113: < | O113: - | P113: >
B114: 3.3 | C114: Wie viel Bäume gehen verloren? | E114: =E100 -> Anzahl Bäume | F114: =IF(D114=N114,-1,IF(D114=O114,-2,IF(D114=P114,-3,""))) ->  | M114: nicht relevant | N114: < | O114: - | P114: >
A116: Kompensations-prüfung | B116: Wenn Alternativen nicht möglich sind: Mit welchen Kompensationsmaßnahmen kann das Vorhaben klimafreundlicher umgesetzt werden?
B117: Kompensationsmaßnahmen (auch an anderen Orten) sind in den Fragen 7 - 12 definiert. Beispiele: zusätzliche Grünflächen, Revitalisierung von Naturflächen, Aufforstungen, zusätzliche Mittel für Naturschutzprojekte, feuchteregulierende Maßnahmen, Biodiversität erhöhen ...
B118: Angabe der Kompensationsmaßnahmen (deren Umsetzung beantragt werden muss): | F118: =IF(ISBLANK(B119),"",-1) -> 
A132: Bauen | B132: 4. | C132: Werden beim Vorhaben Gebäude oder Anlagen neu gebaut oder saniert? | U132: Zahlversuch Untere Grenze | V132: Untere Grenze | Z132: Zahlversuch Obere Grenze | AA132: Obere Grenze
V133: 1 | W133: 3 | X133: 5 | AA133: 20 | AB133: 60 | AC133: 100
A134: Detailfragen | B134: 4.1 | C134: Wird beim Gebäude-Neubau nur nach dem Mindeststandard der Bauvorschriften gebaut? Nach welchem Baustandard wird das Gebäude errichtet? | D134: Niedrigenergiehaus | F134: =IF(OR(D134=N134,D134=O134,D134=P134),-1,IF(D134=Q134,-2,IF(D134=R134,-3,""))) -> -2 | H134: ka silber | I134: Bauvorschriften | L134: Bewertungskriterien detaillierter ausführen (?) | M134: nicht relevant | N134: klimaaktiv Gold oder Silber | O134: Passivhaus | P134: klimaaktiv Basis | Q134: Niedrigenergiehaus | R134: Bauvorschriften
B135: 4.2 | C135: Wird ein bestehendes Gebäude nur mit geringstem Aufwand saniert? Welchen Baustandard hat das Gebäude nach der Sanierung? | D135: Niedrigenergiehaus | F135: =IF(OR(D135=N135,D135=O135,D135=P135,D135=Q135),-1,IF(D135=R135,-2,IF(D135=S135,-3,""))) -> -1 | H135: ka silber | I135: schlechter Bauvorschriften | L135: Bewertungskriterien detaillierter ausführen (?) | M135: nicht relevant | N135: klimaaktiv Gold oder Silber | O135: Passivhaus | P135: klimaaktiv Basis | Q135: Niedrigenergiehaus | R135: Bauvorschriften | S135: schlechter als Bauvorschriften
B136: 4.3 | C136: Werden größere Mengen an neuer Bausubstanz benötigt? Wieviele m² BGF werden neu errichtet? | E136: m² BGF | F136: =IF(D136=N136,-1,IF(D136=O136,-2,IF(D136=P136,-3,""))) ->  | H136: =IF($L$6=$V$19,V136,IF($L$6=$W$19,W136,IF($L$6=$X$19,X136,""))) ->  | I136: =IF($L$12=$AA$19,AA136,IF($L$12=$AB$19,AB136,IF($L$12=$AC$19,AC136,""))) ->  | J136: =U136*6.52*50/1000 -> 4.89 | K136: =Z136*6.523*50/1000 -> 58.707 | L136: Graue Energie 6,52 kg CO2/m² * 50 Jahre | M136: nicht relevant | N136: ="< "&H136 -> < | O136: =H136&" - "&I136 -> - | P136: ="> "&I136 -> > | U136: 15 | V136: 3 | W136: 10 | X136: 15 | Z136: 180 | AA136: 60 | AB136: 180 | AC136: 300
B137: 4.4 | C137: Wird beim Neubau oder bei der Sanierung von Anlagen Wert auf Klimaschutzmaßnahmen gelegt? Z.B. Niedrigenergie-Bauweise, energieeffiziente Maschinen und Geräte, ökologische Baustoffe | F137: =IF(D137=N137,-1,IF(D137=O137,-2,IF(D137=P137,-3,""))) ->  | L137: Bewertungskriterien detaillierter ausführen | M137: nicht relevant | N137: maßgeblich | O137: teilweise | P137: gering
A141: Anmerkungen
A143: =A27 -> Das Vorhaben hat eine gewisse Klimarelevanz. Für die Fragen mit gelber oder roter Ampel wird eine Verbesserung im Bezug auf Klimaschutz empfohlen.
A144: Alternativen-prüfung | B144: Alternativen um das Vorhaben klimafreundlicher umzusetzen:
B145: ad 4.1) | C145: Bauen nach einem hohen Klimastandard z.B. ka-gold, Passivhaus
B146: ad 4.2) | C146: Sanierung nach einem hohen Klimastandard, z.B. Erfüllung der ka-Basiskriterien, hohe Förderklasse Wohnbauförderung
B147: ad 4.3) | C147: Nutzung eines bestehenden Gebäude durch Ausbau, Zubau oder Mehrfachnutzung. Bauen mit recyelten oder umweltfreundlichen Baustoffen (Stroh, Holz etc.)
B148: ad 4.4) | C148: Maßnahmen zur Reduktion des Wärme- und Strombedarfs, Verwendung von recyelten oder ökologischen Baustoffen (Stroh, Holz etc.)
B149: Angabe der Alternativen in Stichworten:
B151: Welche Werte ergeben sich unter Berücksichtigung der Alternativen?
B152: =B134 -> 4.1 | C152: Wird beim Gebäude-Neubau nur nach dem Mindeststandard der Bauvorschriften gebaut? Nach welchem Baustandard wird das Gebäude errichtet? | E152: =E134 -> 0 | F152: =IF(OR(D152=N152,D152=O152,D152=P152),-1,IF(D152=Q152,-2,IF(D152=R152,-3,""))) ->  | M152: =M134 -> nicht relevant | N152: klimaaktiv Gold oder Silber | O152: Passivhaus | P152: klimaaktiv Basis | Q152: Niedrigenergiehaus | R152: Bauvorschriften | S152: 0
B153: 4.2 | C153: Wird ein bestehendes Gebäude nur mit geringstem Aufwand saniert? Welchen Baustandard hat das Gebäude nach der Sanierung? | E153: =E135 -> 0 | F153: =IF(OR(D153=N153,D153=O153,D153=P153,D153=Q153),-1,IF(D153=R153,-2,IF(D153=S153,-3,""))) ->  | M153: nicht relevant | N153: klimaaktiv Gold oder Silber | O153: Passivhaus | P153: klimaaktiv Basis | Q153: Niedrigenergiehaus | R153: Bauvorschriften | S153: schlechter als Bauvorschriften
B154: 4.3 | C154: Werden größere Mengen an neuer Bausubstanz benötigt? Wieviele m² BGF werden neu errichtet? | E154: =E136 -> m² BGF | F154: =IF(D154=N154,-1,IF(D154=O154,-2,IF(D154=P154,-3,""))) ->  | M154: nicht relevant | N154: < | O154: - | P154: > | Q154: =U136 -> 15 | R154: 3 | S154: 10
B155: 4.4 | C155: Wird beim Neubau oder bei der Sanierung von Anlagen Wert auf Klimaschutzmaßnahmen gelegt? Z.B. Niedrigenergie-Bauweise, energieeffiziente Maschinen und Geräte, ökologische Baustoffe | E155: =E137 -> 0 | F155: =IF(D155=N155,-1,IF(D155=O155,-2,IF(D155=P155,-3,""))) ->  | M155: nicht relevant | N155: maßgeblich | O155: teilweise | P155: gering | Q155: 0 | R155: 0 | S155: 0
A157: Kompensations-prüfung | B157: Wenn Alternativen nicht möglich sind: Mit welchen Kompensationsmaßnahmen kann das Vorhaben klimafreundlicher umgesetzt werden?
B158: Kompensationsmaßnahmen (auch an anderen Orten) sind in den Fragen 7 - 12 definiert. Beispiele: zusätzliche Grünflächen, Sanierung anderer Gebäude, Anlagen für erneuerbare Energieerzeugung ...
B159: Angabe der Kompensationsmaßnahmen (deren Umsetzung beantragt werden muss): | F159: =IF(ISBLANK(B160),"",-1) -> 
A174: Beschaffung, Subvention | B174: 5. | C174: Wird eine Beschaffung oder eine Ausschreibung vorgenommen? Wird eine Veranstaltung durchgeführt oder eine Organisation subventioniert?
A176: Detailfragen | B176: 5.1 | C176: Werden Büromöbel, Textilien, Elektrogeräte, EDV/IT-Geräte, Beleuchtung, Reinigungsmittel, Büromaterial, Druckwerke und Lebensmittel nachhaltig beschafft? Wie hoch ist der Anteil dieser Produkte am Gesamtanteil (geschätzt)? | F176: =IF(D176=N176,-1,IF(D176=O176,-2,IF(D176=P176,-3,""))) ->  | H176: 0.1 | I176: 0.5 | L176: Bewertungskriterien detaillierter ausführen (?) | M176: nicht relevant | N176: ="> "&I176*100&"%" -> > 50% | O176: =H176*100&"% - "&I176*100&"%" -> 10% - 50% | P176: ="< "&H176*100&"%" -> < 10%
B177: 5.2 | C177: Werden bei der Fuhrparkbeschaffung Fahrzeuge mit alternativem Antrieb (0 g CO2-Ausstoß im Betrieb) angeschafft? | D177: teilweise | F177: =IF(D177=N177,-1,IF(D177=O177,-1,IF(D177=P177,-2,IF(D177=Q177,-3,"")))) -> -2 | L177: Hinweis: Weitere Bewertungsmöglichkeiten sind in der Alternativenprüfung möglich | M177: nicht relevant | N177: ja | O177: nicht möglich | P177: teilweise | Q177: nein
B178: 5.3 | C178: Werden klimaschonende Kriterien bei Ausschreibungen der Stadt berücksichtigt? Zum Beispiel naBe-Kriterien, Baubook-Kriterien, klimaaktiv-Kriterien, Handbuch zur Regionalvergabe … | F178: =IF(D178=N178,-1,IF(D178=O178,-2,IF(D178=P178,-3,""))) ->  | L178: Bewertungskriterien detaillierter ausführen | M178: nicht relevant | N178: maßgeblich | O178: teilweise | P178: nein
B179: 5.4 | C179: Werden Veranstaltungen nachhaltig durchgeführt? Umsetzung z.B. nach den Kriterien von Sauberhafte Feste oder Green Event | F179: =IF(D179=N179,-1,IF(D179=O179,-2,IF(D179=P179,-3,""))) ->  | L179: Bewertungskriterien detaillierter ausführen | M179: nicht relevant | N179: maßgeblich | O179: teilweise | P179: nein
B180: 5.5 | C180: Werden bei Subventionen an Vereine/Organisationen Nachhaltigkeitskriterien für die Verwendung des Geldes vorgegeben? Z.B. nabe-Kriterien, ökologische Baustoffe / Reinigungsmittel / Mobilität / Verpflegung. | F180: =IF(D180=N180,-1,IF(D180=O180,-2,IF(D180=P180,-3,""))) ->  | L180: Bewertungskriterien detaillierter ausführen | M180: nicht relevant | N180: maßgeblich | O180: teilweise | P180: nein
A184: Anmerkungen
A186: =A27 -> Das Vorhaben hat eine gewisse Klimarelevanz. Für die Fragen mit gelber oder roter Ampel wird eine Verbesserung im Bezug auf Klimaschutz empfohlen.
A187: Alternativen-prüfung | B187: Alternativen um das Vorhaben klimafreundlicher umzusetzen:
B188: ad 5.1) | C188: Produkte nach naBe-Kriterien beschaffen (soweit verfügbar). Zusammenarbeit mit Nachhaltige Beschaffung NÖ.
B189: ad 5.2) | C189: Produkte nach naBe-Kriterien beschaffen (soweit verfügbar). Zusammenarbeit mit Nachhaltige Beschaffung NÖ.
B190: ad 5.3) | C190: Möglichst viele Nachhaltigkeitskriterien bei Ausschreibungen definieren.
B191: ad 5.4) | C191: Veranstaltungen als Sauberhafte Feste oder green Events durchführen.
B192: ad 5.5) | C192: Vorgaben für umfassende Nachhaltigkeit bei der Verwendung der Subvention.
B193: Angabe der Alternativen in Stichworten:
B195: Welche Werte ergeben sich unter Berücksichtigung der Alternativen?
B196: =B176 -> 5.1 | C196: Werden Büromöbel, Textilien, Elektrogeräte, EDV/IT-Geräte, Beleuchtung, Reinigungsmittel, Büromaterial, Druckwerke und Lebensmittel nachhaltig beschafft? Wie hoch ist der Anteil dieser Produkte am Gesamtanteil (geschätzt)? | F196: =IF(D196=N196,-1,IF(D196=O196,-2,IF(D196=P196,-3,""))) ->  | M196: =M176 -> nicht relevant | N196: > 50% | O196: 10% - 50% | P196: < 10%
B197: 5.2 | C197: Werden bei der Fuhrparkbeschaffung Fahrzeuge mit alternativem Antrieb (0 g CO2-Ausstoß im Betrieb) angeschafft? | F197: =IF(D197=N197,-1,IF(D197=O197,-1,IF(D197=P197,-1,IF(D197=Q197,-3,"")))) ->  | M197: =M177 -> nicht relevant | N197: =N177 -> ja | O197: =O177 -> nicht möglich | P197: =P177 -> teilweise | Q197: =Q177 -> nein
B198: 5.3 | C198: Werden klimaschonende Kriterien bei Ausschreibungen der Stadt berücksichtigt? Zum Beispiel naBe-Kriterien, Baubook-Kriterien, klimaaktiv-Kriterien, Handbuch zur Regionalvergabe … | F198: =IF(D198=N198,-1,IF(D198=O198,-2,IF(D198=P198,-3,""))) ->  | M198: nicht relevant | N198: maßgeblich | O198: teilweise | P198: nein
B199: 5.4 | C199: Werden Veranstaltungen nachhaltig durchgeführt? Umsetzung z.B. nach den Kriterien von Sauberhafte Feste oder Green Event | F199: =IF(D199=N199,-1,IF(D199=O199,-2,IF(D199=P199,-3,""))) ->  | M199: nicht relevant | N199: maßgeblich | O199: teilweise | P199: nein
B200: 5.5 | C200: =C180 -> Werden bei Subventionen an Vereine/Organisationen Nachhaltigkeitskriterien für die Verwendung des Geldes vorgegeben? Z.B. nabe-Kriterien, ökologische Baustoffe / Reinigungsmittel / Mobilität / Verpflegung. | F200: =IF(D200=N200,-1,IF(D200=O200,-2,IF(D200=P200,-3,""))) ->  | M200: nicht relevant | N200: maßgeblich | O200: teilweise | P200: nein
A202: Kompensations-prüfung | B202: Wenn Alternativen nicht möglich sind: Mit welchen Kompensationsmaßnahmen kann das Vorhaben klimafreundlicher umgesetzt werden?
B203: Kompensationsmaßnahmen (auch an anderen Orten) sind in den Fragen 7 - 12 definiert. Beispiele: zusätzliche Grünflächen, Sanierung anderer Gebäude, Anlagen für erneuerbare Energieerzeugung, nachhaltige Beschaffung bei anderen Projekten ...
B204: Angabe der Kompensationsmaßnahmen (deren Umsetzung beantragt werden muss): | F204: =IF(ISBLANK(B205),"",-1) -> 
A218: Sonstige negative Klimarelevanz | B218: 6. | C218: Gibt es eine negative Auswirkung auf das Klima, die in den vorherigen Fragen nicht erwähnt wurde?
A219: Detailfragen | C219: Welche klimaschädigenden Auswirkungen hat das Vorhaben?
C222: Wie würden Sie die klimaschädigenden Auswirkungen des Vorhabens einschätzen? | F222: =IF(D222=N222,-1,IF(D222=O222,-2,IF(D222=P222,-3,""))) ->  | M222: nicht relevant | N222: gering | O222: mittel | P222: hoch
C223: Welche Alternativen sind möglich und können umgesetzt werden?
C225: Wie würden Sie die klimaschädigenden Auswirkungen des Vorhabens unter Berücksichtigung der Alternativen bewerten? | F225: =IF(D225=N222,-1,IF(D225=O222,-2,IF(D225=P222,-3,""))) -> 
B227: Wenn Alternativen nicht möglich sind: Mit welchen Kompensationsmaßnahmen kann das Vorhaben klimafreundlicher umgesetzt werden?
A243: Erneuerbare Energie | B243: 7. | C243: Kann durch das Vorhaben erneuerbare Energie (Biomasse, Sonne, Umgebungswärme) erzeugt oder fossile Energie eingespart werden (Dämmung, Heizungstausch, …) ?
A245: Detailfragen | B245: 7.1 | C245: Kann durch Photovoltaik oder Solaranlagen erneuerbare Energie erzeugt werden? Wie viel Prozent der geeigneten Dachflächen wird zur Strom- oder Wärmeerzeugung genutzt? | F245: =IF(T245=3,"J",IF(T245=2,"K",IF(T245=1,"L",""))) ->  | H245: 0.3 | I245: 0.7 | L245: Bewertungskriterien detaillierter ausführen z.B. Bewertung von freistehenden Anlagen | M245: nicht relevant | N245: ="> "&I245*100&"%" -> > 70% | O245: =H245*100&"% - "&I245*100&"%" -> 30% - 70% | P245: ="< "&H245*100&"%" -> < 30% | T245: =IF(D245=N245,3,IF(D245=O245,2,IF(D245=P245,1,""))) -> 
B246: 7.2 | C246: Kann durch Dämmung oder andere Maßnahmen z.B. Heizungsoptimierung, Abwärmenutzung der Heizbedarf von Gebäuden oder Anlagen reduziert werden ? Für wie viel Prozent der vorhandenen BGF wird dies umgesetzt? | F246: =IF(T246=3,"J",IF(T246=2,"K",IF(T246=1,"L",""))) ->  | H246: 0.3 | I246: 0.7 | L246: Bewertungskriterien detaillierter ausführen z.B. Bewertung der Reduktion bei Verbesserung von Wärmeprozessen in Anlagen | M246: nicht relevant | N246: ="> "&I246*100&"%" -> > 70% | O246: =H246*100&"% - "&I246*100&"%" -> 30% - 70% | P246: ="< "&H246*100&"%" -> < 30% | T246: =IF(D246=N246,3,IF(D246=O246,2,IF(D246=P246,1,""))) -> 
B247: 7.3 | C247: Kann eine Öl- oder Gasheizung dauerhaft durch eine Hackgut- bzw. Pelletsheizung, Fernwärme oder eine Wärmepumpe ersetzt werden? Wenn es möglich ist, für wie viel Prozent der vorhandenen BGF wird dies umgesetzt? | F247: =IF(T247=3,"J",IF(T247=2,"K",IF(T247=1,"L",""))) ->  | H247: 0.3 | I247: 0.7 | L247: Bewertungskriterien detaillierter ausführen z.B. Bewertung der Umstellung von Wärmeprozessen in Betriebsanlagen | M247: nicht relevant | N247: ="> "&I247*100&"%" -> > 70% | O247: =H247*100&"% - "&I247*100&"%" -> 30% - 70% | P247: ="< "&H247*100&"%" -> < 30% | T247: =IF(D247=N247,3,IF(D247=O247,2,IF(D247=P247,1,""))) -> 
B248: 7.4 | C248: Kann durch den Austausch/Beschaffung von Geräten, Beleuchtung, Materialien, … fossile Energie eingespart werden? Wie viel Prozent kann eingespart werden? | F248: =IF(T248=3,"J",IF(T248=2,"K",IF(T248=1,"L",""))) ->  | H248: 0.3 | I248: 0.7 | M248: nicht relevant | N248: ="> "&I248*100&"%" -> > 70% | O248: =H248*100&"% - "&I248*100&"%" -> 30% - 70% | P248: ="< "&H248*100&"%" -> < 30% | T248: =IF(D248=N248,3,IF(D248=O248,2,IF(D248=P248,1,""))) -> 
B249: Kurzbeschreibung / Auflistung der Effizienzmaßnahmen:
A254: Das Vorhaben hat eine gewisse Klimarelevanz. Für die Fragen mit L und K sind Verbesserungen im Bezug auf Klimaschutz möglich.
A255: Alternativen-prüfung | B255: Alternativen um das Vorhaben klimafreundlicher umzusetzen:
B256: ad 7.1) | C256: Bei allen Fragen wo oberer Schwellwert nicht erreicht ist, das Potential möglichst vollständig ausnutzen.
B257: bis
B258: ad 7.4)
B259: Angabe der Alternativen in Stichworten:
B261: Welche Werte ergeben sich unter Berücksichtigung der Alternativen?
B262: =B245 -> 7.1 | C262: Kann durch Photovoltaik oder Solaranlagen erneuerbare Energie erzeugt werden? Wie viel Prozent der geeigneten Dachflächen wird zur Strom- oder Wärmeerzeugung genutzt? | F262: =IF(T262=3,"J",IF(T262=2,"K",IF(T262=1,"L",""))) ->  | M262: =M245 -> nicht relevant | N262: > 70% | O262: 30% - 70% | P262: < 30% | T262: =IF(D262=N262,3,IF(D262=O262,2,IF(D262=P262,1,""))) -> 
B263: 7.2 | C263: Kann durch Dämmung oder andere Maßnahmen z.B. Heizungsoptimierung, Abwärmenutzung der Heizbedarf von Gebäuden oder Anlagen reduziert werden ? Für wie viel Prozent der vorhandenen BGF wird dies umgesetzt? | F263: =IF(T263=3,"J",IF(T263=2,"K",IF(T263=1,"L",""))) ->  | M263: nicht relevant | N263: > 70% | O263: 30% - 70% | P263: < 30% | T263: =IF(D263=N263,3,IF(D263=O263,2,IF(D263=P263,1,""))) -> 
B264: 7.3 | C264: Kann eine Öl- oder Gasheizung dauerhaft durch eine Hackgut- bzw. Pelletsheizung, Fernwärme oder eine Wärmepumpe ersetzt werden? Wenn es möglich ist, für wie viel Prozent der vorhandenen BGF wird dies umgesetzt? | F264: =IF(T264=3,"J",IF(T264=2,"K",IF(T264=1,"L",""))) ->  | M264: nicht relevant | N264: > 70% | O264: 30% - 70% | P264: < 30% | T264: =IF(D264=N264,3,IF(D264=O264,2,IF(D264=P264,1,""))) -> 
B265: 7.4 | C265: Kann durch den Austausch/Beschaffung von Geräten, Beleuchtung, Materialien, … fossile Energie eingespart werden? Wie viel Prozent kann eingespart werden? | F265: =IF(T265=3,"J",IF(T265=2,"K",IF(T265=1,"L",""))) ->  | M265: nicht relevant | N265: > 70% | O265: 30% - 70% | P265: < 30% | T265: =IF(D265=N265,3,IF(D265=O265,2,IF(D265=P265,1,""))) -> 
A267: Nutzung dieses Vorhabens als Kompensations-maßnahme | B267: 7.1a | C267: Wird durch thermische Solaranlagen erneuerbare Wärme erzeugt? Wie viel m² Solarfläche wird ungefähr errichtet? | D267: =Bearbeitung!B162 -> 0 | E267: m² | H267: =D267 -> 0 | I267: =H267*60%*1000*0.268*20/1000 -> 0 | L267: bei Einsparung von Erdgas (0,268 kg CO2/kWh lt. UBA 2021) durch Solarenergie bei solarer Einstrahlung von 1000 kWh/m²,a mit Nutzungsgrad 60% und 20 Jahre Nutzungsdauer
B268: 7.1b | C268: Wird durch Photovoltaik erneuerbarer Strom erzeugt? Wie viel m² Photovoltaikfläche wird ungefähr errichtet? | D268: =Bearbeitung!B163 -> 0 | E268: m² | H268: =D268 -> 0 | I268: =H268*143*0.219*20/1000 -> 0 | L268: bei Einsparung von 143 kWh/m² (entspricht 7 m² pro kWp) und 0,219 kg CO2/kWh (Ö-Strommix lt. UBA 2021) und 20 Jahre Nutzungsdauer
C269: GEMEINSAME AMPEL FÜR FRAGE 7.1a und 7.1b | D269: =Bearbeitung!B164 -> 0 | F269: =IF(N269=1,1,IF(O269=1,2,IF(P269=1,3,""))) ->  | I269: =SUM(I267:I268) -> 0 | J269: =IF(AND($L$6<>0,$L$6<>""),$L$6,"") ->  | K269: =IF(AND($L$12<>0,$L$12<>""),$L$12,"") ->  | M269: =IF(OR(I269=0,I269=""),"nicht relevant","") -> nicht relevant | N269: =IF(AND(I269<J269,I269>0),1,"") ->  | O269: =IF(AND(I269<K269,I269>=J269),1,"") ->  | P269: =IF(I269>=K269,1,"") -> 
B270: 7.2 | C270: Wurde durch Dämmung oder andere Maßnahmen z.B. Heizungsoptimierung, Abwärmenutzung der Heizbedarf von Gebäuden oder Anlagen reduziert ? Für wie viele m² BGF wurde dies ungefähr umgesetzt? | D270: =Bearbeitung!B165 -> 0 | E270: m² | F270: =IF(N270=1,1,IF(O270=1,2,IF(P270=1,3,""))) ->  | H270: =D270 -> 0 | I270: =H270*(70-36)/0.85*0.268/1000*20 -> 0 | J270: =IF(AND($L$6<>0,$L$6<>""),$L$6,"") ->  | K270: =IF(AND($L$12<>0,$L$12<>""),$L$12,"") ->  | L270: bei HWB-Verringerung von 70 auf 36 kWh/m²,a und Gasheizung (0,268 kg CO2/kWh lt. UBA 2021) mit 85% Jahrenutzungsgrad und Zeitraum 20 Jahre | M270: =IF(OR(I270=0,I270=""),"nicht relevant","") -> nicht relevant | N270: =IF(AND(I270<J270,I270>0),1,"") ->  | O270: =IF(AND(I270<K270,I270>=J270),1,"") ->  | P270: =IF(I270>=100,1,"") -> 
B271: 7.3 | C271: Wurde eine Öl- oder Gasheizung dauerhaft durch eine Hackgut- bzw. Pelletsheizung, Fernwärme oder eine Wärmepumpe ersetzt? Für wie viele m² BGF wurde dies ungefähr umgesetzt? | D271: =Bearbeitung!B166 -> 0 | E271: m² | F271: =IF(N271=1,1,IF(O271=1,2,IF(P271=1,3,""))) ->  | H271: =D271 -> 0 | I271: =H271*70*(0.268-0.027)/0.85*20/1000 -> 0 | K271: =IF(AND($L$12<>0,$L$12<>""),$L$12,"") ->  | L271: bei Änderung Gasheizung ( 0,268 kg CO2/kWh lt. UBA 2021) auf Pelletsheizung (0,027 kg CO2/kWh lt. UBA 2021) in einem Gebäude (HWB = 70kWh/m²,a) für einen Zeitraum von 20 Jahren (beide Heizsysteme mit 85% Jahrenutzungsgrad) | M271: =IF(OR(I271=0,I271=""),"nicht relevant","") -> nicht relevant | N271: =IF(AND(I271<J271,I271>0),1,"") ->  | O271: =IF(AND(I271<K271,I271>=J271),1,"") ->  | P271: =IF(I271>=100,1,"") -> 
B272: 7.4 | C272: Kann durch den Austausch/Beschaffung von Geräten, Beleuchtung, Materialien, … fossile Energie eingespart werden? Wie viel MWh (=1000 kWh) kann auf die Lebensdauer ungefähr eingespart werden? | E272: MWh | F272: =IF(N272=1,1,IF(O272=1,2,IF(P272=1,3,""))) ->  | H272: =D272 -> 0 | I272: =(H272*0.219) -> 0 | K272: =IF(AND($L$12<>0,$L$12<>""),$L$12,"") ->  | L272: 0,219 kg CO2/kWh (Ö-Strommix lt. UBA 2021) | M272: =IF(OR(I272=0,I272=""),"nicht relevant","") -> nicht relevant | N272: =IF(AND(I272<J272,I272>0),1,"") ->  | O272: =IF(AND(I272<K272,I272>=J272),1,"") ->  | P272: =IF(I272>=100,1,"") -> 
A285: Klimafreundliche Mobilität | B285: 8. | C285: Kann das Vorhaben einen Anreiz für klimafreundliche Mobilität setzen (Radfahren, Gehen, Öffis, alternative Antriebe) oder den PKW- bzw. Güterverkehr reduzieren?
A287: Detailfragen | B287: 8.1 | C287: Wird durch das Projekt der öffentliche Personen-Nahverkehr (ÖPNV) gefördert? Beispiele: Bus- oder Bahnanbindung, Anrufsammeltaxi, Bike&Ride- bzw. Park&Ride-Anlagen, Förderung ÖFFIs | F287: =IF(T287=3,"J",IF(T287=2,"K",IF(T287=1,"L",""))) ->  | L287: Hilfetext und Bewertungskriterien unvollständig | M287: nicht relevant | N287: maßgeblich | O287: teilweise | P287: gering | T287: =IF(D287=N287,3,IF(D287=O287,2,IF(D287=P287,1,""))) -> 
B288: 8.2 | C288: Wird durch das Projekt der klimafreundliche Fuß- und Radverkehr gefördert? Beispiele: Gute Qualität von Rad- und Fußwegen, optimale Wegeführung, sichere Kreuzungen, Ampelschaltungen auch auf Rad- und Fußverkehr abgestimmt, kurze (Alltags-)Wege, Beleuchtung … | L288: Hilfetext und Bewertungskriterien unvollständig | M288: nicht relevant | N288: maßgeblich | O288: teilweise | P288: gering
B289: 8.3 | C289: Wird CO2-neutrale Mobilität gefördert? Beispiele: Testangebot von Fahrzeugen mit CO2-neutralem Antriebssystem, Ausbau von E-Ladeinfrastruktur, Förderung | L289: Bewertungskriterien fehlen | M289: nicht relevant | N289: maßgeblich | O289: teilweise | P289: gering
B290: 8.4 | C290: Kann durch das Projekt eine Reduktion des PKW-Verkehrs oder der PKW-Anzahl erzielt werden? Beispiele: CarSharing-Angebot, Parkraummanagement, Fahrverbote, Geschwindigkeitsreduktion | L290: Bewertungskriterien fehlen | M290: nicht relevant | N290: maßgeblich | O290: teilweise | P290: gering
B291: 8.5 | C291: In wie weit werden die Potentiale zur Reduktion von Schwerverkehrfahrten genutzt? Beispiele: Bahnanschluss, Sammeltransporte, gebündelter Verkehr, Fahrverbot, Fahrbeschränkung | L291: Bewertungskriterien fehlen | M291: nicht relevant | N291: maßgeblich | O291: teilweise | P291: gering
B292: 8.6 | C292: Kann durch das Projekt die tatsächliche Fahrgeschwindigkeit des KFZ-Verkehrs verringert werden? | L292: in die Frage 8.3 inkludieren? | M292: nicht relevant | N292: maßgeblich | O292: teilweise | P292: gering
B293: 8.7 | C293: Kann durch das Vorhaben klimafreundliche Mobilität in der Verwaltung verbessert werden? | M293: nicht relevant | N293: maßgeblich | O293: teilweise | P293: gering
B294: Kurzbeschreibung / Auflistung der Klimaschutzmaßnahmen:
A299: Das Vorhaben hat eine gewisse Klimarelevanz. Für die Fragen mit 😐 und 🙂 sind Verbesserungen im Bezug auf Klimaschutz möglich.
A300: Alternativen-prüfung | B300: Alternativen um das Vorhaben klimafreundlicher umzusetzen:
B301: ad 8.1) | C301: Taktfrequenz, attraktive Wartestellen, Infrastruktur, Fahrgastinformation in Echtzeit, Gehsteig vorziehen, Busbucht wegnehmen, günstige Tarife
B302: ad 8.2) | C302: Attraktivierung Fuß- und Radwege, Gehsteigvorziehungen, Querungshilfen, hochwertige Radabstellanlagen, Barrierefreie Fuß- und Radwege, direkte, kurze Verbindungen und Wege für Rad/Fuß.
B303: ad 8.3) | C303: Ladeinfrastruktur errichten bzw. Leerverrohrung vorsehen.
B304: ad 8.4) | C304: Klimafreundliche Mobilitätsplanung, Parkplatzreduktion, Parkraumbewirtschaftung, Straßenrückbau, Beschränkungen, Einbahnsystem, autofreie Siedlungsbereiche, Carsharing, Fahrtendienst.
B305: ad 8.5) | C305: Bahnanschluss, Logistik für Sammeltransporte, Fahrverbote, Fahrbeschränkungen, Wohnstraßen, Shared Space etc.
B306: ad 8.6) | C306: Beschränkungen Geschwindigkeit, Straßenrückbau, Verkehrsberuhigung (Begegnungszonen, Straßenverschwenkung etc.)
B307: ad 8.7) | C307: Dienstreiseregelung, Rad-Infrastruktur oder Ladeinfrastruktur für MitarbeiterInnen, Diensträder bzw. e-Dienstautos, Förderung ÖFFI-Tickets etc.
B308: Angabe der Alternativen in Stichworten:
B310: Welche Werte ergeben sich unter Berücksichtigung der Alternativen?
B311: =B287 -> 8.1 | C311: Wird durch das Projekt der öffentliche Personen-Nahverkehr (ÖPNV) gefördert? Beispiele: Bus- oder Bahnanbindung, Anrufsammeltaxi, Bike&Ride- bzw. Park&Ride-Anlagen, Förderung ÖFFIs | F311: =IF(T311=3,"J",IF(T311=2,"K",IF(T311=1,"L",""))) ->  | M311: =M287 -> nicht relevant | N311: =N287 -> maßgeblich | O311: =O287 -> teilweise | P311: =P287 -> gering | T311: =IF(D311=N311,3,IF(D311=O311,2,IF(D311=P311,1,""))) -> 
B312: 8.2 | C312: Wird durch das Projekt der klimafreundliche Fuß- und Radverkehr gefördert? Beispiele: Gute Qualität von Rad- und Fußwegen, optimale Wegeführung, sichere Kreuzungen, Ampelschaltungen auch auf Rad- und Fußverkehr abgestimmt, kurze (Alltags-)Wege, Beleuchtung … | M312: =M288 -> nicht relevant | N312: =N288 -> maßgeblich | O312: teilweise | P312: gering
B313: 8.3 | C313: Wird CO2-neutrale Mobilität gefördert? Beispiele: Testangebot von Fahrzeugen mit CO2-neutralem Antriebssystem, Ausbau von E-Ladeinfrastruktur, Förderung | M313: =M289 -> nicht relevant | N313: maßgeblich | O313: teilweise | P313: gering
B314: 8.4 | C314: Kann durch das Projekt eine Reduktion des PKW-Verkehrs oder der PKW-Anzahl erzielt werden? Beispiele: CarSharing-Angebot, Parkraummanagement, Fahrverbote, Geschwindigkeitsreduktion | M314: =M290 -> nicht relevant | N314: maßgeblich | O314: teilweise | P314: gering
B315: 8.5 | C315: In wie weit werden die Potentiale zur Reduktion von Schwerverkehrfahrten genutzt? Beispiele: Bahnanschluss, Sammeltransporte, gebündelter Verkehr, Fahrverbot, Fahrbeschränkung | M315: =M292 -> nicht relevant | N315: maßgeblich | O315: teilweise | P315: gering
B316: 8.6 | C316: Kann durch das Projekt die tatsächliche Fahrgeschwindigkeit des KFZ-Verkehrs verringert werden? | M316: =M293 -> nicht relevant | N316: maßgeblich | O316: teilweise | P316: gering
B317: 8.7 | C317: Kann durch das Vorhaben klimafreundliche Mobilität in der Verwaltung verbessert werden? | M317: nicht relevant | N317: maßgeblich | O317: teilweise | P317: gering
A319: Nutzung dieses Vorhabens als Kompensations-maßnahme Die Angaben werden automatisch von Detail- bzw. Alternativfragen übernommen | B319: =B287 -> 8.1 | C319: Wird durch das Projekt der öffentliche Personen-Nahverkehr gefördert? Beispiele: Bus- oder Bahnanbindung, Anrufsammeltaxi, Bike&Ride- bzw. Park&Ride-Anlagen, Förderung ÖFFIs | D319: =IF(D311<>"",D311,D287) -> 0 | F319: =IF(D319=N319,1,IF(D319=O319,2,IF(D319=P319,3,""))) ->  | L319: Bewertungskriterien fehlen | M319: nicht relevant | N319: gering | O319: =O287 -> teilweise | P319: maßgeblich
B320: =B288 -> 8.2 | C320: Wird der Fuß- oder Radverkehr gestärkt? | D320: =IF(D312<>"",D312,D288) -> 0 | L320: Bewertungskriterien fehlen | M320: nicht relevant | N320: gering | O320: =O288 -> teilweise | P320: maßgeblich
B321: 8.3 | C321: Wird CO2-neutrale Mobilität gefördert? Beispiele: Elektromobilität mit erneuerbarem Strom betrieben | D321: 0 | L321: Bewertungskriterien fehlen | M321: nicht relevant | N321: gering | O321: teilweise | P321: maßgeblich
B322: 8.4 | C322: Wird durch das Projekt eine Reduktion des PKW-Verkehrs oder der PKW-Anzahl erzielt? Beispiele: CarSharing, Fahrtendienste, Stadtbus-, ÖFFI-, Radweg-Anbindung, Parkgebühren, Fahrverbote, Geschwindigkeitsreduktion | D322: 0 | L322: Bewertungskriterien fehlen | M322: nicht relevant | N322: gering | O322: teilweise | P322: maßgeblich
B323: 8.5 | C323: Wird durch das Projekt eine Reduktion des Güterverkehrs oder der LKW-Anzahl erzielt? Beispiele: Bahnanschluss, Sammeltransporte, Fahrverbot, Fahrbeschränkung | D323: 0 | L323: Bewertungskriterien fehlen | M323: nicht relevant | N323: gering | O323: teilweise | P323: maßgeblich
B324: 8.6 | C324: Wird die tatsächliche Fahrgeschwindigkeit des KFZ-Verkehrs verringert? | D324: 0 | L324: Bewertungskriterien fehlen | M324: nicht relevant | N324: gering | O324: teilweise | P324: maßgeblich
B325: 8.7 | C325: Wird durch das Vorhaben klimafreundliche Mobilität in der Verwaltung verbessert? | D325: 0 | L325: Bewertungskriterien fehlen | M325: nicht relevant | N325: gering | O325: teilweise | P325: maßgeblich
A340: Begrünungen | B340: 9. | C340: Können durch das Projekt zusätzlich Begrünungen und Biodiversitätsflächen geschaffen oder Flächen entsiegelt werden? Werden im Projekt Maßnahmen zur Nachhaltigkeit von Gebäudemanagement und zur kommunalen Grünräumpflege umgesetzt?
A342: Detailfragen | B342: 9.1 | C342: Entstehen (neue) Grünräume, Naturwiesen, Baum- und Strauchgruppen, Nutzgärten, Alleen, Wälder, Parks, Bäche, Teiche, Wasserflächen, Moore, Feuchtwiesen und Gebäudebegrünungen mit positiver Wirkung auf Biodiversität und Klimaschutz beziehungsweise werden vorhandene Flächen in diesem Sinne renaturiert? Wie viel Prozent der unverbauten Fläche wird dafür genutzt? | D342: 30% - 70% | F342: =IF(T342=3,"J",IF(T342=2,"K",IF(T342=1,"L",""))) -> K | H342: 0.3 | I342: 0.7 | L342: Bewertungskriterien fehlen bzw. verbessern | M342: nicht relevant | N342: ="> "&I342*100&"%" -> > 70% | O342: =H342*100&"% - "&I342*100&"%" -> 30% - 70% | P342: ="< "&H342*100&"%" -> < 30% | T342: =IF(D342=N342,3,IF(D342=O342,2,IF(D342=P342,1,""))) -> 2
B343: 9.2 | C343: Kann das Projekt vorhandene Moore, Feuchtwiesen, Wälder und Ähnliches als CO2-Speicher stärken und schützen? Wie viel Prozent der vorhandene Flächen werden gestärkt und geschützt? | D343: 30% - 70% | F343: =IF(T343=3,"J",IF(T343=2,"K",IF(T343=1,"L",""))) -> K | H343: 0.3 | I343: 0.7 | L343: Bewertungskriterien fehlen bzw. verbessern | M343: nicht relevant | N343: ="> "&I343*100&"%" -> > 70% | O343: =H343*100&"% - "&I343*100&"%" -> 30% - 70% | P343: ="< "&H343*100&"%" -> < 30% | T343: =IF(D343=N343,3,IF(D343=O343,2,IF(D343=P343,1,""))) -> 2
B344: 9.3 | C344: Können feuchteregulierende Maßnahmen wie Wasserspeicherung, Versickerung, Verdunstung umgesetzt werden? Wie viel Prozent der unverbauten Fläche wird dafür genutzt? | D344: 30% - 70% | F344: =IF(T344=3,"J",IF(T344=2,"K",IF(T344=1,"L",""))) -> K | H344: 0.3 | I344: 0.7 | L344: Bewertungskriterien fehlen bzw. verbessern | M344: nicht relevant | N344: ="> "&I344*100&"%" -> > 70% | O344: =H344*100&"% - "&I344*100&"%" -> 30% - 70% | P344: ="< "&H344*100&"%" -> < 30% | T344: =IF(D344=N344,3,IF(D344=O344,2,IF(D344=P344,1,""))) -> 2
B345: 9.4 | C345: Werden Maßnahmen bei Gebäuden eingeführt und dauerhaft betrieben, die den Erhalt der Biodiversität fördern, das Klima schonen und/oder dafür sorgen, dass CO2 stärker gebunden wird (siehe Liste der möglichen Maßnahmen in der Hilfe)? | D345: mind. 3 Maßnahmen in mind. 2 Gebäuden | M345: nicht relevant | N345: ≥ 3 Maßnahmen in mind. 2 Gebäuden | O345: 2 Maßnahmen | P345: 1e Maßnahme | T345: =IF(D345=N345,3,IF(D345=O345,2,IF(D345=P345,1,""))) -> 
B346: 9.5 | C346: Werden Maßnahmen in der Gemeinde eingeführt und dauerhaft betrieben, die den Erhalt der Biodiversität fördern, das Klima schonen und/oder dafür sorgen, dass CO2 stärker gebunden wird (siehe Liste der möglichen Maßnahmen in der Hilfe)? | D346: 2 Maßnahmen | M346: nicht relevant | N346: ≥ 3 Maßnahmen | O346: 2 Maßnahmen | P346: 1e Maßnahme
B348: Kurzbeschreibung / Auflistung der Klimaschutzmaßnahmen:
A352: Das Vorhaben hat eine gewisse Klimarelevanz. Für die Fragen mit L und K sind Verbesserungen im Bezug auf Klimaschutz möglich.
A353: Alternativen-prüfung | B353: Alternativen um das Vorhaben klimafreundlicher umzusetzen:
... 61 more rows

Sheet Text (hidden)
A3: Allgemeine Fragen
A5: Klimaschaden
A6: Das Vorhaben hat eine gewisse Klimarelevanz. Für die Fragen mit gelber oder roter Ampel wird eine Verbesserung im Bezug auf Klimaschutz empfohlen.
A8: Klimanutzen
A9: Das Vorhaben hat eine gewisse Klimarelevanz. Für die Fragen mit 😐 und 🙂 sind Verbesserungen im Bezug auf Klimaschutz möglich.
A18: =Berechnungen!A18 -> Fossile Energie | B18: =_xlfn.TEXTJOIN(" ",,Berechnungen!B18, Berechnungen!C18) -> 1. Wird durch das Vorhaben zusätzlich fossile Energie (Öl, Gas, Kohle, fossiler Strom) in einem Gebäude oder einer Anlage verbraucht?
B19: =_xlfn.TEXTJOIN(" ",,Berechnungen!B19, Berechnungen!C19) ->  | C19: Frage10Text | D19: Frage11 Hilfe | E19: Frage12Hilfe | F19: Frage 13Hilfe | G19: Frage14Hilfe
A20: =Berechnungen!A20 -> Detailfragen | B20: =_xlfn.TEXTJOIN(" ",,Berechnungen!B20, Berechnungen!C20) -> 1.1 Wird mit fossiler Energie (Öl, Gas) geheizt? Für welche zusätzliche Bruttogrundfläche? | C20: =B20&CHAR(10)&CHAR(10)&B21&CHAR(10)&CHAR(10)&CHAR(10)&B22&CHAR(10)&CHAR(10)&B23&CHAR(10)&CHAR(10) -> 1.1 Wird mit fossiler Energie (Öl, Gas) geheizt? Für welche zusätzliche Bruttogrundfläche? 1.2 Wird Strom mit fossilem Anteil genutzt? Für welche zusätzliche Bruttogrundfläche (Berechnung für Wohngebäude siehe Hilfe)? 1.3 Werden für Prozesswärme zusätzlich fossile Brennstoffe verbraucht? In welcher Höhe (geschätzt)? 1.4 Wird für einen Prozess / ein Vorhaben zusätzlich Strom mit fossilen Anteilen verwendet? In welcher Höhe (geschätzt)? | D20: Die Bruttogrundfläche (auch Bruttogeschoßfläche, BGF) ist die Summe der beheizten Grundflächen aller Geschosse inklusive Mauerflächen. In jedem Energieausweis ist die Brutto-Grundfläche eines Gebäudes angegeben (meist auf Seite 2). Bei mehreren Heizsystemen kann die einzusetzende BGF aufgrund der Heizaufteilung berechnet werden. Beispiel: Ein Gebäude mit 1000 m² BGF und einer Wärmeversorgung von 80% Biomasse-Fernwärme + 20% Gaskessel hat eine fossil beheizte BGF von 200 m² (=1000m² * 20%). Wird Abwärme genutzt, kann die Fläche nach obiger Formel berechnet werden. Beispiel: Trägt die Abwärmenutzung 10% zum Heizverbrauch bei, kann die Fläche um 10% verringert werden. | E20: Diese Frage bezieht sich auf Gebäude, in denen sich über einen längeren Zeitraum regelmäßig Personen aufhalten. Dazu zählen Wohngebäude und Betriebsgebäude wie Schulen, Kindergärten, Krankenhäuser, Pflegeheime, Bürogebäude, Gastronomie, Handel,.... Bei Wohngebäuden hier bitte ein Drittel der berechnete Fläche nehmen, also für ein Wohngebäude mit 100m² eine Fläche von 33m² anwenden. Bei Betriebsgebäuden die tatsächliche Fläche nehmen. Gebäude oder Anlagen, in denen sich nur kurzfristig mehrere Personen aufhalten, werden in den nächsten Fragen behandelt (Vereinsräume, Feuerwehrhäuser, Kläranlagen, Wasserversorgungsanlagen, Bauhöfe, Bäder etc.) Bei Beheizung durch Wärmepumpen mit fossilem Stromanteil: Weil die Wärme aus ca. 3/4 Umweltwärme und nur 1/4 Strom erzeugt wird, kann die Fläche auf 1/4 reduziert werden. Bei Nutzung einer PV-Anlage, diese als Kompensationsmaßnahme in Frage 7.1. angeben. | F20: Zusätzliche fossile Wärme (Prozesswärme) in Gebäuden oder Anlagen, in denen sich nur kurzfristig mehrere Personen aufhalten oder das nur fallweise beheizt wird. Beispiele sind Vereins- und Veranstaltungsräume, Feuerwehrhäuser, Kläranlagen, Wasserversorgungsanlagen, Bauhöfe, Heizwerke, Stromerzeugungsanlagen, Sportstätten, Bäder, Freizeiteinrichtungen etc. Fossile Brennstoffe können Öl, Gas, Benzin/Diesel oder Kohle sein. Umrechnung von Öl, Gas, Benzin Kohle in kWh:  1.000 kWh entsprechen ca. 100 l Heizöl oder 100 l Benzin/Diesel oder 100 m³ Erdgas oder 130 kg Kohle/Koks. | G20: Zusätzlicher Stromverbrauch aus (teilweise) fossilen Quellen in Gebäuden oder Anlagen in denen sich nur kurzfristig mehrere Personen aufhalten wie Vereins- und Veranstaltungsräume, Feuerwehrhäuser, Kläranlagen, Wasserversorgungsanlagen, Bauhöfe, Sportstätten, Bäder, Freizeiteinrichtungen etc. Bei Beheizung durch Wärmepumpen mit fossilem Stromanteil: Weil ca. 3/4 Umweltwärme und nur 1/4 fossiler Strom kann die Fläche auf 1/4 reduziert werden. Bei ausschließlicher Verwendung von Strom aus erneuerbaren Quellen (Ökostrom) die Frage nicht auswählen oder als nicht relevant angeben. Ökostrom Angabe in den Anmerkungen.
B21: =_xlfn.TEXTJOIN(" ",,Berechnungen!B21, Berechnungen!C21) -> 1.2 Wird Strom mit fossilem Anteil genutzt? Für welche zusätzliche Bruttogrundfläche (Berechnung für Wohngebäude siehe Hilfe)?
B22: =_xlfn.TEXTJOIN(" ",,Berechnungen!B22, Berechnungen!C22) -> 1.3 Werden für Prozesswärme zusätzlich fossile Brennstoffe verbraucht? In welcher Höhe (geschätzt)?
B23: =_xlfn.TEXTJOIN(" ",,Berechnungen!B23, Berechnungen!C23) -> 1.4 Wird für einen Prozess / ein Vorhaben zusätzlich Strom mit fossilen Anteilen verwendet? In welcher Höhe (geschätzt)?
B24: =_xlfn.TEXTJOIN(" ",,Berechnungen!B24, Berechnungen!C24) -> 
A25: =Berechnungen!A25 -> Anmerkungen | B25: =_xlfn.TEXTJOIN(" ",,Berechnungen!B25, Berechnungen!C25) -> 
B26: =_xlfn.TEXTJOIN(" ",,Berechnungen!B26, Berechnungen!C26) -> 
A27: =Berechnungen!A27 -> Das Vorhaben hat eine gewisse Klimarelevanz. Für die Fragen mit gelber oder roter Ampel wird eine Verbesserung im Bezug auf Klimaschutz empfohlen. | B27: =_xlfn.TEXTJOIN(" ",,Berechnungen!B27, Berechnungen!C27) -> 
A28: =Berechnungen!A28 -> Alternativen-prüfung | B28: =_xlfn.TEXTJOIN(" ",,Berechnungen!B28, Berechnungen!C28) -> Alternativen um das Vorhaben klimafreundlicher umzusetzen:
B29: =_xlfn.TEXTJOIN(" ",,Berechnungen!B29, Berechnungen!C29) -> ad 1.1) Heizen mit erneuerbarer Wärme z.B. Biomasse, Wärmepumpe mit Ökostrom | C29: =B29&CHAR(10)&B30&CHAR(10)&B31&CHAR(10)&B32&CHAR(10) -> ad 1.1) Heizen mit erneuerbarer Wärme z.B. Biomasse, Wärmepumpe mit Ökostrom ad 1.2) Nutzung von (zertifiziertem) Ökostrom oder eigene Erzeugung mit PV (als Kompensationsmaßnahme in Punkt 7.1. anrechenbar) ad 1.3) Technik für fossile Brennstoffe durch solche mit erneuerbarer Energie ersetzen ad 1.4) Ökostrom einkaufen oder erneuerbaren Strom selbst erzeugen
B30: =_xlfn.TEXTJOIN(" ",,Berechnungen!B30, Berechnungen!C30) -> ad 1.2) Nutzung von (zertifiziertem) Ökostrom oder eigene Erzeugung mit PV (als Kompensationsmaßnahme in Punkt 7.1. anrechenbar)
B31: =_xlfn.TEXTJOIN(" ",,Berechnungen!B31, Berechnungen!C31) -> ad 1.3) Technik für fossile Brennstoffe durch solche mit erneuerbarer Energie ersetzen
B32: =_xlfn.TEXTJOIN(" ",,Berechnungen!B32, Berechnungen!C32) -> ad 1.4) Ökostrom einkaufen oder erneuerbaren Strom selbst erzeugen
B33: =_xlfn.TEXTJOIN(" ",,Berechnungen!B33, Berechnungen!C33) -> Angabe der Alternativen in Stichworten:
B34: =_xlfn.TEXTJOIN(" ",,Berechnungen!B34, Berechnungen!C34) -> 
B35: =_xlfn.TEXTJOIN(" ",,Berechnungen!B35, Berechnungen!C35) -> Welche Werte ergeben sich unter Berücksichtigung der Alternativen?
B36: =_xlfn.TEXTJOIN(" ",,Berechnungen!B36, Berechnungen!C36) -> 1.1 Wird mit fossiler Energie (Öl, Gas) geheizt? Für welche zusätzliche Bruttogrundfläche? | C36: =B36&CHAR(10)&CHAR(10)&B37&CHAR(10)&CHAR(10)&CHAR(10)&B38&CHAR(10)&CHAR(10)&B39&CHAR(10)&CHAR(10)&B40 -> 1.1 Wird mit fossiler Energie (Öl, Gas) geheizt? Für welche zusätzliche Bruttogrundfläche? 1.2 Wird Strom mit fossilem Anteil genutzt? Für welche zusätzliche Bruttogrundfläche (Berechnung für Wohngebäude siehe Hilfe)? 1.3 Werden für Prozesswärme zusätzlich fossile Brennstoffe verbraucht? In welcher Höhe (geschätzt)? 1.4 Wird für einen Prozess / ein Vorhaben zusätzlich Strom mit fossilen Anteilen verwendet? In welcher Höhe (geschätzt)?
B37: =_xlfn.TEXTJOIN(" ",,Berechnungen!B37, Berechnungen!C37) -> 1.2 Wird Strom mit fossilem Anteil genutzt? Für welche zusätzliche Bruttogrundfläche (Berechnung für Wohngebäude siehe Hilfe)?
B38: =_xlfn.TEXTJOIN(" ",,Berechnungen!B38, Berechnungen!C38) -> 1.3 Werden für Prozesswärme zusätzlich fossile Brennstoffe verbraucht? In welcher Höhe (geschätzt)?
B39: =_xlfn.TEXTJOIN(" ",,Berechnungen!B39, Berechnungen!C39) -> 1.4 Wird für einen Prozess / ein Vorhaben zusätzlich Strom mit fossilen Anteilen verwendet? In welcher Höhe (geschätzt)?
B40: =_xlfn.TEXTJOIN(" ",,Berechnungen!B40, Berechnungen!C40) -> 
A41: =Berechnungen!A41 -> Kompensations-prüfung | B41: =_xlfn.TEXTJOIN(" ",,Berechnungen!B41, Berechnungen!C41) -> Wenn Alternativen nicht möglich sind: Mit welchen Kompensationsmaßnahmen kann das Vorhaben klimafreundlicher umgesetzt werden?
B42: =_xlfn.TEXTJOIN(" ",,Berechnungen!B42, Berechnungen!C42) -> Kompensationsmaßnahmen (auch an anderen Orten) sind in den Fragen 7 - 12 definiert. Beispiele: fossile Verbraucher entfernen, erneuerbare Energie nutzen, zusätzliche Ausgleichsflächen oder Rückwidmungen bei Baumaßnahmen, Aufforstungen, zusätzliche Mittel für Klimaschutzprojekte ...
B43: =_xlfn.TEXTJOIN(" ",,Berechnungen!B43, Berechnungen!C43) -> Angabe der Kompensationsmaßnahmen (deren Umsetzung beantragt werden muss):
B44: =_xlfn.TEXTJOIN(" ",,Berechnungen!B44, Berechnungen!C44) -> 
B45: =_xlfn.TEXTJOIN(" ",,Berechnungen!B45, Berechnungen!C45) -> 
B46: =_xlfn.TEXTJOIN(" ",,Berechnungen!B46, Berechnungen!C46) -> 
B47: =_xlfn.TEXTJOIN(" ",,Berechnungen!B47, Berechnungen!C47) -> 
B48: =_xlfn.TEXTJOIN(" ",,Berechnungen!B48, Berechnungen!C48) -> 
B49: =_xlfn.TEXTJOIN(" ",,Berechnungen!B49, Berechnungen!C49) -> 
B50: =_xlfn.TEXTJOIN(" ",,Berechnungen!B50, Berechnungen!C50) -> 
B51: =_xlfn.TEXTJOIN(" ",,Berechnungen!B51, Berechnungen!C51) -> 
B52: =_xlfn.TEXTJOIN(" ",,Berechnungen!B52, Berechnungen!C52) -> 
B53: =_xlfn.TEXTJOIN(" ",,Berechnungen!B53, Berechnungen!C53) -> 
B54: =_xlfn.TEXTJOIN(" ",,Berechnungen!B54, Berechnungen!C54) -> 
B55: =_xlfn.TEXTJOIN(" ",,Berechnungen!B55, Berechnungen!C55) -> 
A56: =Berechnungen!A56 -> Motorisierter Verkehr | B56: =_xlfn.TEXTJOIN(" ",,Berechnungen!B56, Berechnungen!C56) -> 2. Erzeugt das Vorhaben zusätzlichen motorisierten PKW- oder Güterverkehr?
A57: =Berechnungen!A57 -> 0 | B57: =_xlfn.TEXTJOIN(" ",,Berechnungen!B57, Berechnungen!C57) ->  | C57: Frage20Text | D57: Frage 21Hilfe | E57: Frage22Hilfe | F57: Frage 23Hilfe | G57: Frage24Hilfe | H57: Frage25Hilfe | I57: Alternativ21Hilfe | J57: Alternativ22Hilfe | K57: Alternativ23Hilfe | L57: Alternativ24Hilfe | M57: Alternativ25Hilfe
A58: =Berechnungen!A58 -> Detailfragen | B58: =_xlfn.TEXTJOIN(" ",,Berechnungen!B58, Berechnungen!C58) -> 2.1 Werden der motorisierte PKW- und Güterverkehr (> 3,5 t) durch die Maßnahme erhöht? Wie viele Fahrten werden pro Tag zusätzlich erzeugt (grobe Schätzung)? Beispiele: Widmung Gewerbegebiet mit voraussichtl. Verkehrszunahme, Errichtung Einkaufszentrum oder Freizeiteinrichtung, Veranstaltungen etc. | C58: =B58&CHAR(10)&CHAR(10)&B59&CHAR(10)&CHAR(10)&B60&CHAR(10)&CHAR(10)&B61&CHAR(10)&CHAR(10)&B62 -> 2.1 Werden der motorisierte PKW- und Güterverkehr (> 3,5 t) durch die Maßnahme erhöht? Wie viele Fahrten werden pro Tag zusätzlich erzeugt (grobe Schätzung)? Beispiele: Widmung Gewerbegebiet mit voraussichtl. Verkehrszunahme, Errichtung Einkaufszentrum oder Freizeiteinrichtung, Veranstaltungen etc. 2.2 Werden im Zuge des Projekts Stellplätze neu errichtet? Um wie viele zusätzliche Stellplätze handelt es sich? 2.3 Werden Straßen verbreitert, begradigt, saniert oder zusätzlich errichtet? Wie viele Laufmeter Straße werden für den PKW- oder Güterverkehr verbessert bzw. zusätzlich errichtet? 2.4 Führen Maßnahmen in der Parkraumbewirtschaftung zu mehr motorisiertem Verkehr? Beispiele: Gebührenreduzierung, Parkgebühr-Ausnahmen (zeitbezogen, Personen-/Fahrzeugbezogen) 2.5 Behindert die Maßnahme klimafreundlichen Verkehr (Radfahren, zu Fuß gehen, ÖFFIS), z.B. Unterbrechung oder Reduzierung eines Fußgängerwegs oder Fahrradwegs ? | D58: Grobe Abschätzung der Fahrten (Hessische Straßen- und Verkehrsverwaltung):  Wohnen = 0,7 PKW + 0,05 LKW-Fahrten je Einwohner und Werktag  Büro = 0,8 PKW + 0,1 LKW-Fahrten je Beschäftigtem und Werktag  Produktion = 0,6 PKW + 0,5 LKW-Fahrten je Beschäftigtem und Werktag  Einzelhandel (klein) = 20 PKW + 0,4 LKW-Fahrten je Werktag  Shopping Center (sehr groß) = 5000 PKW + 60 LKW-Fahrten je Werktag Bewertung: Zusätzliche Fahrten entstehen in der Regel dann, wenn die Liegenschaft  nicht zentrumsnah gelegen ist  einen schlechten öffentlichen Anschluß hat und  ein nicht lokales Einzugsgebiet hat (dh. Verkehr wird erzeugt aus anderen Gebieten) Treffen diese Punkte zu, dann die Fahrten der obigen Abschätzung aus dem entsprechenden Bereich einzutragen. Im anderen Fall , kann der geringste Wert angegeben werden (grüne Ampel). In den Anmerkungen ist dann der Grund dafür anzugeben z.B. "Liegenschaft liegt im Zentrum" Verbesserungsmaßnahmen: 1) Wenn Ort optimal für Einzugsgebiet der Einrichtung kann bis zu - 50% der Fahrten angegeben werden (in Anmerkungen begründen). 2) Wenn optimaler Anschluss an ÖFFIs und Rad-/Fußwegenetz kann bis zu -50% der Fahrten angegeben werden (in Anmerkungen begründen). 3) bei Widmungen neues RO-Gesetz (Beschluss Oktober 2020) berücksichtigen: - ab 100 Fahrten/Tag Hektar gibt es eine neue Widmungskategorie (entspricht z.B. 50 MitarbeiterInnen). | E58: Hier handelt es sich um zusätzlich errichtete Stellplätze, deren Effekt nicht in Frage 2.1 berücksichtigt worden ist. Weiters werden jene zusätzlichen öffentlichen Kfz-Stellplätze hinzugerechnet, die in den angrenzenden Straßenabschnitten und in den Wohnstraßen für das Vorhaben zusätzlich ausgewiesen werden. Wenn die Anzahl der geplanten Stellplätze niedriger ist als im Durchschnitt (siehe unten), ist diese Frage als nicht relevant zu bewerten. Bereits vorhandene Stellplätze (auch wenn sie örtlich verlegt werden) können von der Anzahl abgezogen werden. Durchschnittliche Werte von Stellplätzen:  Büro und Handel = 1 Stellplatz pro 30 m² Nutzfläche  Industrie- und Betriebsgebäude = 1 Stellplatz pro 3 Arbeitsplätze  Gaststätten und Veranstaltungsgebäude (Sporthallen, Kino) = 1 Stellplatz pro Kapazität von 7 Besuchern  Wohnhausanlage = 1,5 Stellplätze pro Wohneinheit Wenn Stellplätze bei einem Projekt wegfallen, können sie als Kompensationsmaßnahme in einem anderen Projekt verwendet werden. Diese Kompensation ist nur einmal anrechenbar. Die Anrechnung muss innerhalb eines Jahres geschehen. | F58: Der Ausbau von Straßen erzeugt zusätzlichen motorisierten PKW- oder Güterverkehr.  Straßensanierungen zum Erhalt der Verkehrssicherheit werden nicht bewertet.  Der Ausbau von klimafreundlicher Mobilität wird in Frage 8 "Klimafreundliche Mobilität" bewertet. | G58:  Geringe Auswirkungen haben kurzzeitige Gebührenbefreiung (1 Tag, 1 Wochenende), behindertengerechte Maßnahmen.  Teilweise Auswirkungen haben befristete Gebührenreduzierungen, Parkplatzerweiterungen oder Gebührenerlass für mehr als eine Woche, unbegrenzter Gebührenerlass für angrenzende Wirtschaftbetriebe.  Erhebliche Auswirkungen haben unbefristete Gebührenreduzierungen, Parkplatzerweiterungen oder allgemeine Gebührenerlässe. | H58:  Geringe Auswirkungen haben zeitlich begrenzte Behinderungen z.B. durch Baustellen, Umbaumaßnahmen  Erhebliche Auswirkungen haben z.B. bei stark befahrenen Straßen: Querungen über die Straße (keine Unter-/Überführungen). | I58: =D58 -> Grobe Abschätzung der Fahrten (Hessische Straßen- und Verkehrsverwaltung):  Wohnen = 0,7 PKW + 0,05 LKW-Fahrten je Einwohner und Werktag  Büro = 0,8 PKW + 0,1 LKW-Fahrten je Beschäftigtem und Werktag  Produktion = 0,6 PKW + 0,5 LKW-Fahrten je Beschäftigtem und Werktag  Einzelhandel (klein) = 20 PKW + 0,4 LKW-Fahrten je Werktag  Shopping Center (sehr groß) = 5000 PKW + 60 LKW-Fahrten je Werktag Bewertung: Zusätzliche Fahrten entstehen in der Regel dann, wenn die Liegenschaft  nicht zentrumsnah gelegen ist  einen schlechten öffentlichen Anschluß hat und  ein nicht lokales Einzugsgebiet hat (dh. Verkehr wird erzeugt aus anderen Gebieten) Treffen diese Punkte zu, dann die Fahrten der obigen Abschätzung aus dem entsprechenden Bereich einzutragen. Im anderen Fall , kann der geringste Wert angegeben werden (grüne Ampel). In den Anmerkungen ist dann der Grund dafür anzugeben z.B. "Liegenschaft liegt im Zentrum" Verbesserungsmaßnahmen: 1) Wenn Ort optimal für Einzugsgebiet der Einrichtung kann bis zu - 50% der Fahrten angegeben werden (in Anmerkungen begründen). 2) Wenn optimaler Anschluss an ÖFFIs und Rad-/Fußwegenetz kann bis zu -50% der Fahrten angegeben werden (in Anmerkungen begründen). 3) bei Widmungen neues RO-Gesetz (Beschluss Oktober 2020) berücksichtigen: - ab 100 Fahrten/Tag Hektar gibt es eine neue Widmungskategorie (entspricht z.B. 50 MitarbeiterInnen). | J58: =E58 -> Hier handelt es sich um zusätzlich errichtete Stellplätze, deren Effekt nicht in Frage 2.1 berücksichtigt worden ist. Weiters werden jene zusätzlichen öffentlichen Kfz-Stellplätze hinzugerechnet, die in den angrenzenden Straßenabschnitten und in den Wohnstraßen für das Vorhaben zusätzlich ausgewiesen werden. Wenn die Anzahl der geplanten Stellplätze niedriger ist als im Durchschnitt (siehe unten), ist diese Frage als nicht relevant zu bewerten. Bereits vorhandene Stellplätze (auch wenn sie örtlich verlegt werden) können von der Anzahl abgezogen werden. Durchschnittliche Werte von Stellplätzen:  Büro und Handel = 1 Stellplatz pro 30 m² Nutzfläche  Industrie- und Betriebsgebäude = 1 Stellplatz pro 3 Arbeitsplätze  Gaststätten und Veranstaltungsgebäude (Sporthallen, Kino) = 1 Stellplatz pro Kapazität von 7 Besuchern  Wohnhausanlage = 1,5 Stellplätze pro Wohneinheit Wenn Stellplätze bei einem Projekt wegfallen, können sie als Kompensationsmaßnahme in einem anderen Projekt verwendet werden. Diese Kompensation ist nur einmal anrechenbar. Die Anrechnung muss innerhalb eines Jahres geschehen. | K58: =F58 -> Der Ausbau von Straßen erzeugt zusätzlichen motorisierten PKW- oder Güterverkehr.  Straßensanierungen zum Erhalt der Verkehrssicherheit werden nicht bewertet.  Der Ausbau von klimafreundlicher Mobilität wird in Frage 8 "Klimafreundliche Mobilität" bewertet. | L58: =G58 ->  Geringe Auswirkungen haben kurzzeitige Gebührenbefreiung (1 Tag, 1 Wochenende), behindertengerechte Maßnahmen.  Teilweise Auswirkungen haben befristete Gebührenreduzierungen, Parkplatzerweiterungen oder Gebührenerlass für mehr als eine Woche, unbegrenzter Gebührenerlass für angrenzende Wirtschaftbetriebe.  Erhebliche Auswirkungen haben unbefristete Gebührenreduzierungen, Parkplatzerweiterungen oder allgemeine Gebührenerlässe. | M58: =H58 ->  Geringe Auswirkungen haben zeitlich begrenzte Behinderungen z.B. durch Baustellen, Umbaumaßnahmen  Erhebliche Auswirkungen haben z.B. bei stark befahrenen Straßen: Querungen über die Straße (keine Unter-/Überführungen).
B59: =_xlfn.TEXTJOIN(" ",,Berechnungen!B59, Berechnungen!C59) -> 2.2 Werden im Zuge des Projekts Stellplätze neu errichtet? Um wie viele zusätzliche Stellplätze handelt es sich?
B60: =_xlfn.TEXTJOIN(" ",,Berechnungen!B60, Berechnungen!C60) -> 2.3 Werden Straßen verbreitert, begradigt, saniert oder zusätzlich errichtet? Wie viele Laufmeter Straße werden für den PKW- oder Güterverkehr verbessert bzw. zusätzlich errichtet?
B61: =_xlfn.TEXTJOIN(" ",,Berechnungen!B61, Berechnungen!C61) -> 2.4 Führen Maßnahmen in der Parkraumbewirtschaftung zu mehr motorisiertem Verkehr? Beispiele: Gebührenreduzierung, Parkgebühr-Ausnahmen (zeitbezogen, Personen-/Fahrzeugbezogen)
B62: =_xlfn.TEXTJOIN(" ",,Berechnungen!B62, Berechnungen!C62) -> 2.5 Behindert die Maßnahme klimafreundlichen Verkehr (Radfahren, zu Fuß gehen, ÖFFIS), z.B. Unterbrechung oder Reduzierung eines Fußgängerwegs oder Fahrradwegs ?
B63: =_xlfn.TEXTJOIN(" ",,Berechnungen!B63, Berechnungen!C63) -> 
A64: =Berechnungen!A64 -> Anmerkungen | B64: =_xlfn.TEXTJOIN(" ",,Berechnungen!B64, Berechnungen!C64) -> 
B65: =_xlfn.TEXTJOIN(" ",,Berechnungen!B65, Berechnungen!C65) -> 
A66: =Berechnungen!A66 -> Das Vorhaben hat eine gewisse Klimarelevanz. Für die Fragen mit gelber oder roter Ampel wird eine Verbesserung im Bezug auf Klimaschutz empfohlen. | B66: =_xlfn.TEXTJOIN(" ",,Berechnungen!B66, Berechnungen!C66) -> 
A67: =Berechnungen!A67 -> Alternativen-prüfung | B67: =B28 -> Alternativen um das Vorhaben klimafreundlicher umzusetzen:
B68: =_xlfn.TEXTJOIN(" ",,Berechnungen!B68, Berechnungen!C68) -> ad 2.1) Einrichtungen an ÖFFI-Linien + Fuß- und Radwegenetz anbinden, mehr Zentrumsnähe. | C68: =B68&CHAR(10)&B69&CHAR(10)&B70&CHAR(10)&B71&CHAR(10)&B72 -> ad 2.1) Einrichtungen an ÖFFI-Linien + Fuß- und Radwegenetz anbinden, mehr Zentrumsnähe. ad 2.2) Reduktion von Stellplätzen im selben Gebiet (Zone) bzw. Kompensationsmaßnahmen laut Frage 8 planen und umsetzen z.B. Masterplan e-Ladeinfrastruktur ad 2.3) Rad-/Gehwege einrichten oder verbessern, Kreuzungen für Fuß-/Radverkehr verbessern, Vorrang für ÖFFIs z.B. eigene Spur, Busbuchten entfernen ad 2.4) Förderung von nichtfossilen Antrieben, gleichzeitige Förderung von OFFI's ad 2.5) Maßnahme nicht durchführen oder in klimafreundlicher Weise umsetzen (Hinweise in Alternativentipps von Frage 7)
B69: =_xlfn.TEXTJOIN(" ",,Berechnungen!B69, Berechnungen!C69) -> ad 2.2) Reduktion von Stellplätzen im selben Gebiet (Zone) bzw. Kompensationsmaßnahmen laut Frage 8 planen und umsetzen z.B. Masterplan e-Ladeinfrastruktur
B70: =_xlfn.TEXTJOIN(" ",,Berechnungen!B70, Berechnungen!C70) -> ad 2.3) Rad-/Gehwege einrichten oder verbessern, Kreuzungen für Fuß-/Radverkehr verbessern, Vorrang für ÖFFIs z.B. eigene Spur, Busbuchten entfernen
B71: =_xlfn.TEXTJOIN(" ",,Berechnungen!B71, Berechnungen!C71) -> ad 2.4) Förderung von nichtfossilen Antrieben, gleichzeitige Förderung von OFFI's
B72: =_xlfn.TEXTJOIN(" ",,Berechnungen!B72, Berechnungen!C72) -> ad 2.5) Maßnahme nicht durchführen oder in klimafreundlicher Weise umsetzen (Hinweise in Alternativentipps von Frage 7)
B73: =_xlfn.TEXTJOIN(" ",,Berechnungen!B73, Berechnungen!C73) -> Angabe der Alternativen in Stichworten:
B74: =_xlfn.TEXTJOIN(" ",,Berechnungen!B74, Berechnungen!C74) -> 
A75: =Berechnungen!A75 -> 0 | B75: =_xlfn.TEXTJOIN(" ",,Berechnungen!B75, Berechnungen!C75) -> Welche Werte ergeben sich unter Berücksichtigung der Alternativen?
A76: =Berechnungen!A76 -> 0 | B76: =_xlfn.TEXTJOIN(" ",,Berechnungen!B76, Berechnungen!C76) -> 2.1 Werden der motorisierte PKW- und Güterverkehr (> 3,5 t) durch die Maßnahme erhöht? Wie viele Fahrten werden pro Tag zusätzlich erzeugt (grobe Schätzung)? Beispiele: Widmung Gewerbegebiet mit voraussichtl. Verkehrszunahme, Errichtung Einkaufszentrum oder Freizeiteinrichtung, Veranstaltungen etc. | C76: =B76&CHAR(10)&CHAR(10)&B77&CHAR(10)&CHAR(10)&B78&CHAR(10)&CHAR(10)&B79&CHAR(10)&CHAR(10)&B80 -> 2.1 Werden der motorisierte PKW- und Güterverkehr (> 3,5 t) durch die Maßnahme erhöht? Wie viele Fahrten werden pro Tag zusätzlich erzeugt (grobe Schätzung)? Beispiele: Widmung Gewerbegebiet mit voraussichtl. Verkehrszunahme, Errichtung Einkaufszentrum oder Freizeiteinrichtung, Veranstaltungen etc. 2.2 Werden im Zuge des Projekts Stellplätze neu errichtet? Um wie viele zusätzliche Stellplätze handelt es sich? 2.3 Werden Straßen verbreitert, begradigt, saniert oder zusätzlich errichtet? Wie viele Laufmeter Straße werden für den PKW- oder Güterverkehr verbessert bzw. zusätzlich errichtet? 2.4 Führen Maßnahmen in der Parkraumbewirtschaftung zu mehr motorisiertem Verkehr? Beispiele: Gebührenreduzierung, Parkgebühr-Ausnahmen (zeitbezogen, Personen-/Fahrzeugbezogen) 2.5 Behindert die Maßnahme klimafreundlichen Verkehr (Radfahren, zu Fuß gehen, ÖFFIS), z.B. Unterbrechung oder Reduzierung eines Fußgängerwegs oder Fahrradwegs ?
B77: =_xlfn.TEXTJOIN(" ",,Berechnungen!B77, Berechnungen!C77) -> 2.2 Werden im Zuge des Projekts Stellplätze neu errichtet? Um wie viele zusätzliche Stellplätze handelt es sich?
B78: =_xlfn.TEXTJOIN(" ",,Berechnungen!B78, Berechnungen!C78) -> 2.3 Werden Straßen verbreitert, begradigt, saniert oder zusätzlich errichtet? Wie viele Laufmeter Straße werden für den PKW- oder Güterverkehr verbessert bzw. zusätzlich errichtet?
B79: =_xlfn.TEXTJOIN(" ",,Berechnungen!B79, Berechnungen!C79) -> 2.4 Führen Maßnahmen in der Parkraumbewirtschaftung zu mehr motorisiertem Verkehr? Beispiele: Gebührenreduzierung, Parkgebühr-Ausnahmen (zeitbezogen, Personen-/Fahrzeugbezogen)
B80: =_xlfn.TEXTJOIN(" ",,Berechnungen!B80, Berechnungen!C80) -> 2.5 Behindert die Maßnahme klimafreundlichen Verkehr (Radfahren, zu Fuß gehen, ÖFFIS), z.B. Unterbrechung oder Reduzierung eines Fußgängerwegs oder Fahrradwegs ?
B81: =_xlfn.TEXTJOIN(" ",,Berechnungen!B81, Berechnungen!C81) -> 
A82: =Berechnungen!A82 -> Kompensations-prüfung | B82: =_xlfn.TEXTJOIN(" ",,Berechnungen!B82, Berechnungen!C82) -> Wenn Alternativen nicht möglich sind: Mit welchen Kompensationsmaßnahmen kann das Vorhaben klimafreundlicher umgesetzt werden?
A83: =Berechnungen!A83 -> 0 | B83: =_xlfn.TEXTJOIN(" ",,Berechnungen!B83, Berechnungen!C83) -> Kompensationsmaßnahmen (auch an anderen Orten) sind in den Fragen 7 - 12 definiert. Beispiele: Verkehrsreduktion, Attraktivierung ÖFFIs, Shared Space oder Carsharing Projekte, Fahrradstreifen, Errichtung von Radständern (gute, funktionelle!), Aktionen/Mittel für zu Fuß gehen, Rad fahren, zusätzliche Mittel für Klimaschutzprojekte, Masterplan e-Ladeinfrastruktur ...
A84: =Berechnungen!A84 -> 0 | B84: =_xlfn.TEXTJOIN(" ",,Berechnungen!B84, Berechnungen!C84) -> Angabe der Kompensationsmaßnahmen (deren Umsetzung beantragt werden muss):
A85: =Berechnungen!A85 -> 0 | B85: =_xlfn.TEXTJOIN(" ",,Berechnungen!B85, Berechnungen!C85) -> 
A86: =Berechnungen!A86 -> 0 | B86: =_xlfn.TEXTJOIN(" ",,Berechnungen!B86, Berechnungen!C86) -> 
A87: =Berechnungen!A87 -> 0 | B87: =_xlfn.TEXTJOIN(" ",,Berechnungen!B87, Berechnungen!C87) -> 
A88: =Berechnungen!A88 -> 0 | B88: =_xlfn.TEXTJOIN(" ",,Berechnungen!B88, Berechnungen!C88) -> 
A89: =Berechnungen!A89 -> 0 | B89: =_xlfn.TEXTJOIN(" ",,Berechnungen!B89, Berechnungen!C89) -> 
A90: =Berechnungen!A90 -> 0 | B90: =_xlfn.TEXTJOIN(" ",,Berechnungen!B90, Berechnungen!C90) -> 
A91: =Berechnungen!A91 -> 0 | B91: =_xlfn.TEXTJOIN(" ",,Berechnungen!B91, Berechnungen!C91) -> 
A92: =Berechnungen!A92 -> 0 | B92: =_xlfn.TEXTJOIN(" ",,Berechnungen!B92, Berechnungen!C92) -> 
A93: =Berechnungen!A93 -> 0 | B93: =_xlfn.TEXTJOIN(" ",,Berechnungen!B93, Berechnungen!C93) -> 
A94: =Berechnungen!A94 -> 0 | B94: =_xlfn.TEXTJOIN(" ",,Berechnungen!B94, Berechnungen!C94) -> 
A95: =Berechnungen!A95 -> 0 | B95: =_xlfn.TEXTJOIN(" ",,Berechnungen!B95, Berechnungen!C95) -> 
A96: =Berechnungen!A96 -> Versiegelung | B96: =_xlfn.TEXTJOIN(" ",,Berechnungen!B96, Berechnungen!C96) -> 3. Werden durch das Projekt zusätzliche Flächen versiegelt und/oder gehen Naturräume verloren?
A97: =Berechnungen!A97 -> 0 | B97: =_xlfn.TEXTJOIN(" ",,Berechnungen!B97, Berechnungen!C97) ->  | C97: Frage30Text | D97: Frage 31Hilfe | E97: Frage 32Hilfe | F97: Frage 33Hilfe
A98: =Berechnungen!A98 -> Detailfragen | B98: =_xlfn.TEXTJOIN(" ",,Berechnungen!B98, Berechnungen!C98) -> 3.1 Wie viele m² Fläche gehen als biodiversitätsrelevante Flächen (z.B. Grünraum, Wälder) verloren? Für den Berechnungsschlüssel siehe Hilfe. | C98: =B98&CHAR(10)&CHAR(10)&B99&CHAR(10)&CHAR(10)&CHAR(10)&B100&CHAR(10)&CHAR(10)&CHAR(10)&B101 -> 3.1 Wie viele m² Fläche gehen als biodiversitätsrelevante Flächen (z.B. Grünraum, Wälder) verloren? Für den Berechnungsschlüssel siehe Hilfe. 3.2 Wie viele m² Fläche werden durch das Projekt zusätzlich versiegelt? 3.3 Wie viel Bäume gehen verloren? | D98: Hier jene Fläche angeben die durch das Projekt verändert wird. Biodiversitätsrelevante Flächen sind: Wälder und Waldränder, naturbelassene Wiesen und Gewässer, Hochstauden-Fluren, Parks, Moore und Feuchtwiesen, Trockenrasen, Naturdenkmäler. Berechnungsschlüssel:  Zusammenhängende Freiflächen > 1000 m² mit naturnaher Vegetation, die verloren gehen (Bäume, Wiesen, Sträuch- oder Gartenflächen, Biotop- oder Teichflächen) müssen mit dem Faktor 1,5 multipliziert werden.  Wasserflächen wie Teiche, Bäche und Biotope sind sehr wertvoll und müssen mit dem Faktor 3 multipliziert.  Moore und Feuchtwiesen sind sehr wertvoll und müssen mit dem Faktor 4 multipliziert Für die Einschätzung der Wertigkeit von Biodiversitätsflächen bitte einen fachlichen Berater hinzuziehen. Für sehr wertvolle Gebiete, wie Feuchtgebiete, Moore, Wasserflächen und sonstige wertvolle Biodiversitätsflächen bitte Alternativen suchen.“ Ist die ursprüngliche Fläche bereits teilweise verbaut oder versiegelt, so sind nur die durch das gegenständliche Vorhaben zusätzlich als biodiversitätsrelevant verloren gegangenen Flächen anzugeben.  Beispiel 1: Eine Freitzeitanlage wird erweitert. Der Zubau erfolgt auf bereits versiegeltem Parkplatz, zusätzlich werden auf einer angrenzenden Wiese 100 neue Parkplätze errichtet. Es wird nur die Fläche der zusätzlich errichteten Parkplätze berücksichtigt.  Beispiel 2: Ein Wohnhaus soll am Stadtrand neu errichtet werden. Dazu soll eine Gesamtfläche von 10.000 m² von Grünland auf Bauland umgewidmet werden. Es gehen dadurch 10.000 m² als biodiversitätsrelevante Fläche verloren. Auch dann, wenn bei der Bebauung Grünflächen ausgewiesen werden (Verbesserungsmöglichkeiten sind in der Alternativenprüfung angegeben). Reduktion der verlorenen Naturräume: Verlorene biodiversitätsrelevante Flächen können durch Naturbereiche und/oder Baumpflanzungen am Gelände verringert werden.  Zusammenhängende Freiflächen mit Vegetation wie Wiesen, Sträuch- oder Gartenflächen, Biotop- oder Teichflächen ab 1000 m² können von der Fläche abgezogen werden.  jeder Baum, der in versiegelten oder teilversiegelten Flächen gepflanzt wird, verringert die Versiegelungsfläche um 20m² | E98: Hier wird jene Fläche angegeben, die durch das Projekt tatsächlich versiegelt wird. Versiegelte Flächen sind alle verbauten Flächen (Gebäude), Verkehrswege, Parkplätze oder andere Flächen deren Wasseraufnahme verringert wurde. Nicht relevant sind Freiflächen mit Vegetation wie Wiesen, Strauch- oder Gartenflächen. Auch Biotop- oder Teichflächen werden nicht als Versiegelung gerechnet. Fassadenbegrünung und Bäume verringern die berechnete Versiegelungsfläche. Versiegelungsberechnung nach klimaaktiv-Kriterien:  Versiegelte Flächen werden vollständig als versiegelt gerechnet  Teilversiegelte Flächen (Schotter, Schotterrasen, Pflaster/Platten ungebunden, Drainagebelag, etc.) werden mit dem Faktor 0,6 multipliziert  Dächer mit Dachbegrünung werden mit dem Faktor 0,4 multipliziert  begrünte Fassadenflächen werden mit dem Faktor 0,6 multipliziert und von der Versiegelungsfläche abgezogen  jeder Baum, der in versiegelten oder teilversiegelten Flächen gepflanzt wird, verringert die Versiegelungsfläche um 20m² Reduktion der Versiegelung durch: Erhöhung von Flächen mit wasserdurchlässigen Fahrstreifen oder Parkplätzen, Dachbegrünung, Wandbegrünung, Baumpflanzungen, Biotopen oder Teichen. Mehr Vegetation durch Wiesen, Sträuch- oder Gartenflächen. | F98: Hier wird die Anzahl der Bäume angegeben, die durch das Projekt verloren gehen. Werden neue Bäume gepflanzt, so können sie vom Resultat abgezogen werden. Werden mehr Bäume gepflanzt als verloren gehen, so kann diese Maßnahme bei anderen Themen als Kompensationsmaßnahme verwendet werden. Die Fällung eines Baumes mit > 30 Jahren ist nur durch Neupflanzung von zwei Bäumen auszugleichen.  Beispiel: Es werden 5 alte Bäume (> 30 Jahre) und 10 junge Bäume abgeholzt und 40 Bäume neu gepflanzt. Für die 5 alten Bäume sind 10 neue Bäume als Ausgleich nötig + 10 für die jungen Bäume = 20 Bäume als Ausgleich. Damit bleiben zusätzliche 20 Bäume, die z.B. als Kompensationsmaßnahme in Frage 9 berücksichtigt werden können. Reduktion der verlorenen Bäume:  Das Thema "Bäume gesund erhalten" ist in Siedlungsräumen entscheidend. Wichtig dabei ist, dass der Baumbestand mit einem langfristigen Pflegekonzept erhalten wird. Für ein Pflegekonzept kann die Anzahl der verlorenen Bäume um 50% reduziert werden.  Obiges Beispiel mit Pflegekonzept: Anstelle der 20 neuen Bäume als Ausgleich sind nur 10 neue Bäume nötig. Es bleiben 30 neu gepflanzte Bäume, die als Kompensationsmaßnahme angegeben werden können.
A99: =Berechnungen!A99 -> 0 | B99: =_xlfn.TEXTJOIN(" ",,Berechnungen!B99, Berechnungen!C99) -> 3.2 Wie viele m² Fläche werden durch das Projekt zusätzlich versiegelt?
A100: =Berechnungen!A100 -> 0 | B100: =_xlfn.TEXTJOIN(" ",,Berechnungen!B100, Berechnungen!C100) -> 3.3 Wie viel Bäume gehen verloren?
A101: =Berechnungen!A101 -> 0 | B101: =_xlfn.TEXTJOIN(" ",,Berechnungen!B101, Berechnungen!C101) -> 
A102: =Berechnungen!A102 -> Anmerkungen | B102: =_xlfn.TEXTJOIN(" ",,Berechnungen!B102, Berechnungen!C102) -> 
A103: =Berechnungen!A103 -> 0 | B103: =_xlfn.TEXTJOIN(" ",,Berechnungen!B103, Berechnungen!C103) -> 
A104: =Berechnungen!A104 -> Das Vorhaben hat eine gewisse Klimarelevanz. Für die Fragen mit gelber oder roter Ampel wird eine Verbesserung im Bezug auf Klimaschutz empfohlen. | B104: =_xlfn.TEXTJOIN(" ",,Berechnungen!B104, Berechnungen!C104) -> 
A105: =Berechnungen!A105 -> Alternativen-prüfung | B105: =_xlfn.TEXTJOIN(" ",,Berechnungen!B105, Berechnungen!C105) -> Alternativen um das Vorhaben klimafreundlicher umzusetzen:
A106: =Berechnungen!A106 -> 0 | B106: =_xlfn.TEXTJOIN(" ",,Berechnungen!B106, Berechnungen!C106) -> ad 3.1) Ausgleich durch zusammenhängende Naturflächen > 1000 m² und/oder Baumpflanzungen am Gelände | C106: =B106&CHAR(10)&B107&CHAR(10)&B108 -> ad 3.1) Ausgleich durch zusammenhängende Naturflächen > 1000 m² und/oder Baumpflanzungen am Gelände ad 3.2) Ausgleich durch wasserdurchlässige Fahrstreifen/Parkplätze, oder Dachbegrünung, Wandbegrünung, Baumpflanzungen, Biotope etc. ad 3.3) Baumpflanzungen am Gelände oder den Baumbestand mit einem langfristigen Pflegekonzept erhalten
A107: =Berechnungen!A107 -> 0 | B107: =_xlfn.TEXTJOIN(" ",,Berechnungen!B107, Berechnungen!C107) -> ad 3.2) Ausgleich durch wasserdurchlässige Fahrstreifen/Parkplätze, oder Dachbegrünung, Wandbegrünung, Baumpflanzungen, Biotope etc.
A108: =Berechnungen!A108 -> 0 | B108: =_xlfn.TEXTJOIN(" ",,Berechnungen!B108, Berechnungen!C108) -> ad 3.3) Baumpflanzungen am Gelände oder den Baumbestand mit einem langfristigen Pflegekonzept erhalten
A109: =Berechnungen!A109 -> 0 | B109: =_xlfn.TEXTJOIN(" ",,Berechnungen!B109, Berechnungen!C109) -> Angabe der Alternativen in Stichworten:
A110: =Berechnungen!A110 -> 0 | B110: =_xlfn.TEXTJOIN(" ",,Berechnungen!B110, Berechnungen!C110) -> 
A111: =Berechnungen!A111 -> 0 | B111: =_xlfn.TEXTJOIN(" ",,Berechnungen!B111, Berechnungen!C111) -> Welche Werte ergeben sich unter Berücksichtigung der Alternativen?
A112: =Berechnungen!A112 -> 0 | B112: =_xlfn.TEXTJOIN(" ",,Berechnungen!B112, Berechnungen!C112) -> 3.1 Wie viele m² Fläche gehen als biodiversitätsrelevante Flächen (z.B. Grünraum, Wälder) verloren? Für den Berechnungsschlüssel siehe Hilfe. | C112: =B112&CHAR(10)&CHAR(10)&B113&CHAR(10)&CHAR(10)&CHAR(10)&B114 -> 3.1 Wie viele m² Fläche gehen als biodiversitätsrelevante Flächen (z.B. Grünraum, Wälder) verloren? Für den Berechnungsschlüssel siehe Hilfe. 3.2 Wie viele m² Fläche werden durch das Projekt zusätzlich versiegelt? 3.3 Wie viel Bäume gehen verloren?
A113: =Berechnungen!A113 -> 0 | B113: =_xlfn.TEXTJOIN(" ",,Berechnungen!B113, Berechnungen!C113) -> 3.2 Wie viele m² Fläche werden durch das Projekt zusätzlich versiegelt?
A114: =Berechnungen!A114 -> 0 | B114: =_xlfn.TEXTJOIN(" ",,Berechnungen!B114, Berechnungen!C114) -> 3.3 Wie viel Bäume gehen verloren?
A115: =Berechnungen!A115 -> 0 | B115: =_xlfn.TEXTJOIN(" ",,Berechnungen!B115, Berechnungen!C115) -> 
A116: =Berechnungen!A116 -> Kompensations-prüfung | B116: =_xlfn.TEXTJOIN(" ",,Berechnungen!B116, Berechnungen!C116) -> Wenn Alternativen nicht möglich sind: Mit welchen Kompensationsmaßnahmen kann das Vorhaben klimafreundlicher umgesetzt werden?
A117: =Berechnungen!A117 -> 0 | B117: =_xlfn.TEXTJOIN(" ",,Berechnungen!B117, Berechnungen!C117) -> Kompensationsmaßnahmen (auch an anderen Orten) sind in den Fragen 7 - 12 definiert. Beispiele: zusätzliche Grünflächen, Revitalisierung von Naturflächen, Aufforstungen, zusätzliche Mittel für Naturschutzprojekte, feuchteregulierende Maßnahmen, Biodiversität erhöhen ...
A118: =Berechnungen!A118 -> 0 | B118: =_xlfn.TEXTJOIN(" ",,Berechnungen!B118, Berechnungen!C118) -> Angabe der Kompensationsmaßnahmen (deren Umsetzung beantragt werden muss):
A119: =Berechnungen!A119 -> 0 | B119: =_xlfn.TEXTJOIN(" ",,Berechnungen!B119, Berechnungen!C119) -> 
A120: =Berechnungen!A120 -> 0 | B120: =_xlfn.TEXTJOIN(" ",,Berechnungen!B120, Berechnungen!C120) -> 
A121: =Berechnungen!A121 -> 0 | B121: =_xlfn.TEXTJOIN(" ",,Berechnungen!B121, Berechnungen!C121) -> 
A122: =Berechnungen!A122 -> 0 | B122: =_xlfn.TEXTJOIN(" ",,Berechnungen!B122, Berechnungen!C122) -> 
A123: =Berechnungen!A123 -> 0 | B123: =_xlfn.TEXTJOIN(" ",,Berechnungen!B123, Berechnungen!C123) -> 
A124: =Berechnungen!A124 -> 0 | B124: =_xlfn.TEXTJOIN(" ",,Berechnungen!B124, Berechnungen!C124) -> 
A125: =Berechnungen!A125 -> 0 | B125: =_xlfn.TEXTJOIN(" ",,Berechnungen!B125, Berechnungen!C125) -> 
A126: =Berechnungen!A126 -> 0 | B126: =_xlfn.TEXTJOIN(" ",,Berechnungen!B126, Berechnungen!C126) -> 
A127: =Berechnungen!A127 -> 0 | B127: =_xlfn.TEXTJOIN(" ",,Berechnungen!B127, Berechnungen!C127) -> 
A128: =Berechnungen!A128 -> 0 | B128: =_xlfn.TEXTJOIN(" ",,Berechnungen!B128, Berechnungen!C128) -> 
A129: =Berechnungen!A129 -> 0 | B129: =_xlfn.TEXTJOIN(" ",,Berechnungen!B129, Berechnungen!C129) -> 
A130: =Berechnungen!A130 -> 0 | B130: =_xlfn.TEXTJOIN(" ",,Berechnungen!B130, Berechnungen!C130) -> 
A131: =Berechnungen!A131 -> 0 | B131: =_xlfn.TEXTJOIN(" ",,Berechnungen!B131, Berechnungen!C131) -> 
A132: =Berechnungen!A132 -> Bauen | B132: =_xlfn.TEXTJOIN(" ",,Berechnungen!B132, Berechnungen!C132) -> 4. Werden beim Vorhaben Gebäude oder Anlagen neu gebaut oder saniert?
A133: =Berechnungen!A133 -> 0 | B133: =_xlfn.TEXTJOIN(" ",,Berechnungen!B133, Berechnungen!C133) ->  | C133: Frage40Text | D133: Frage41Hilfe | E133: Frage42Hilfe = Frage41Hilfe | F133: Frage43Hilfe | G133: Frage44Hilfe
A134: =Berechnungen!A134 -> Detailfragen | B134: =_xlfn.TEXTJOIN(" ",,Berechnungen!B134, Berechnungen!C134) -> 4.1 Wird beim Gebäude-Neubau nur nach dem Mindeststandard der Bauvorschriften gebaut? Nach welchem Baustandard wird das Gebäude errichtet? | C134: =B134&CHAR(10)&CHAR(10)&CHAR(10)&B135&CHAR(10)&CHAR(10)&B136&CHAR(10)&CHAR(10)&CHAR(10)&B137 -> 4.1 Wird beim Gebäude-Neubau nur nach dem Mindeststandard der Bauvorschriften gebaut? Nach welchem Baustandard wird das Gebäude errichtet? 4.2 Wird ein bestehendes Gebäude nur mit geringstem Aufwand saniert? Welchen Baustandard hat das Gebäude nach der Sanierung? 4.3 Werden größere Mengen an neuer Bausubstanz benötigt? Wieviele m² BGF werden neu errichtet? 4.4 Wird beim Neubau oder bei der Sanierung von Anlagen Wert auf Klimaschutzmaßnahmen gelegt? Z.B. Niedrigenergie-Bauweise, energieeffiziente Maschinen und Geräte, ökologische Baustoffe | D134:  Für die Angabe Niedrigenergiehaus darf bei Wohngebäuden kein Kühlbedarf notwendig sein (im Energieausweis angegeben). Die Energiekennzahl bitte unter 'Anmerkungen' angeben.  Wohnbaucheck: Link zur einfachen Bestimmung der klimaaktiv Baustandards  Link zu den klimaaktiv Kriterienkatalogen:  Link zur Passivhausdefinition: | F134: Hier die BGF (Bruttogrundfläche) des neu zu errichtenden Gebäudes oder Gebäudeteiles angeben. Eine Eingabe "nicht relevant" ist unter folgenden Voraussetzungen möglich:  der Neubau bzw. der neue Gebäudeteil liegt im Stadtkern bzw. in dicht verbauten Gebiet.  der Neubau bzw. die Sanierung wurde nach dem Standard "klimaaktiv gold" oder "klimaaktiv silber" ausgeführt.  der Neubau weist eine (für diesen Gebäudetyp) niedrige Energiekennzahl auf. Werden recyelte oder umweltgreundliche Baustoffe verwendet kann die BGF um bis zu 50% reduziert werden. | G134: Anlagen sind Bauwerke, in denen sich nur kurzfristig Personen aufhalten oder das nur fallweise beheizt wird. Beispiele sind Kläranlagen, Wasserversorgungsanlagen, Heizwerke, Stromerzeugungsanlagen, Sportstätten, Freibäder, Freizeiteinrichtungen etc. Verbesserung der Bewertung durch:  Maßnahmen zur Verringerung des Heizbedarfes oder des Strombedarfes  Maßnahmen zur Verringerung des Bedarfs an sonstiger Energie zum Betrieb  Maßnahmen zur Verringerung des Mobilitätsaufwandes  Verwendung von recyelten oder umweltfreundlichen Baustoffen  Ausarbeitung von Konzepten zur Optimierung der Arbeitsabläufe etc. Bewertung: gering: Maßnahmen in 0 - 1 der oben genannten Bereiche werden umgesetzt teilweise: Maßnahmen in mind. 2 der oben genannten Bereiche werden umgesetzt maßgeblich: Maßnahmen in mind. 3 der oben genannten Bereiche werden umgesetzt Maßnahmen unter Anmerkungen angeben
A135: =Berechnungen!A135 -> 0 | B135: =_xlfn.TEXTJOIN(" ",,Berechnungen!B135, Berechnungen!C135) -> 4.2 Wird ein bestehendes Gebäude nur mit geringstem Aufwand saniert? Welchen Baustandard hat das Gebäude nach der Sanierung?
A136: =Berechnungen!A136 -> 0 | B136: =_xlfn.TEXTJOIN(" ",,Berechnungen!B136, Berechnungen!C136) -> 4.3 Werden größere Mengen an neuer Bausubstanz benötigt? Wieviele m² BGF werden neu errichtet? | D136: Link41_1
A137: =Berechnungen!A137 -> 0 | B137: =_xlfn.TEXTJOIN(" ",,Berechnungen!B137, Berechnungen!C137) -> 4.4 Wird beim Neubau oder bei der Sanierung von Anlagen Wert auf Klimaschutzmaßnahmen gelegt? Z.B. Niedrigenergie-Bauweise, energieeffiziente Maschinen und Geräte, ökologische Baustoffe | D137: https://www.energie-noe.at/klimaaktiv-wohnbaucheck?h=83dfb9871ef7ae2bec7cd99ccd62f968
A138: =Berechnungen!A138 -> 0 | B138: =_xlfn.TEXTJOIN(" ",,Berechnungen!B138, Berechnungen!C138) ->  | D138: Link41_2
A139: =Berechnungen!A139 -> 0 | B139: =_xlfn.TEXTJOIN(" ",,Berechnungen!B139, Berechnungen!C139) ->  | D139: https://www.klimaaktiv.at/bauen-sanieren/gebaeudedeklaration/kriterienkatalog.html
A140: =Berechnungen!A140 -> 0 | B140: =_xlfn.TEXTJOIN(" ",,Berechnungen!B140, Berechnungen!C140) ->  | D140: Link41_3
A141: =Berechnungen!A141 -> Anmerkungen | B141: =_xlfn.TEXTJOIN(" ",,Berechnungen!B141, Berechnungen!C141) ->  | D141: https://passivhaus-austria.org/de/passivhaus/qualitatskriterien/
A142: =Berechnungen!A142 -> 0 | B142: =_xlfn.TEXTJOIN(" ",,Berechnungen!B142, Berechnungen!C142) -> 
A143: =Berechnungen!A143 -> Das Vorhaben hat eine gewisse Klimarelevanz. Für die Fragen mit gelber oder roter Ampel wird eine Verbesserung im Bezug auf Klimaschutz empfohlen. | B143: =_xlfn.TEXTJOIN(" ",,Berechnungen!B143, Berechnungen!C143) -> 
A144: =Berechnungen!A144 -> Alternativen-prüfung | B144: =_xlfn.TEXTJOIN(" ",,Berechnungen!B144, Berechnungen!C144) -> Alternativen um das Vorhaben klimafreundlicher umzusetzen:
A145: =Berechnungen!A145 -> 0 | B145: =_xlfn.TEXTJOIN(" ",,Berechnungen!B145, Berechnungen!C145) -> ad 4.1) Bauen nach einem hohen Klimastandard z.B. ka-gold, Passivhaus | C145: =B145&CHAR(10)&B146&CHAR(10)&B147&CHAR(10)&B148&CHAR(10) -> ad 4.1) Bauen nach einem hohen Klimastandard z.B. ka-gold, Passivhaus ad 4.2) Sanierung nach einem hohen Klimastandard, z.B. Erfüllung der ka-Basiskriterien, hohe Förderklasse Wohnbauförderung ad 4.3) Nutzung eines bestehenden Gebäude durch Ausbau, Zubau oder Mehrfachnutzung. Bauen mit recyelten oder umweltfreundlichen Baustoffen (Stroh, Holz etc.) ad 4.4) Maßnahmen zur Reduktion des Wärme- und Strombedarfs, Verwendung von recyelten oder ökologischen Baustoffen (Stroh, Holz etc.)
A146: =Berechnungen!A146 -> 0 | B146: =_xlfn.TEXTJOIN(" ",,Berechnungen!B146, Berechnungen!C146) -> ad 4.2) Sanierung nach einem hohen Klimastandard, z.B. Erfüllung der ka-Basiskriterien, hohe Förderklasse Wohnbauförderung
A147: =Berechnungen!A147 -> 0 | B147: =_xlfn.TEXTJOIN(" ",,Berechnungen!B147, Berechnungen!C147) -> ad 4.3) Nutzung eines bestehenden Gebäude durch Ausbau, Zubau oder Mehrfachnutzung. Bauen mit recyelten oder umweltfreundlichen Baustoffen (Stroh, Holz etc.)
A148: =Berechnungen!A148 -> 0 | B148: =_xlfn.TEXTJOIN(" ",,Berechnungen!B148, Berechnungen!C148) -> ad 4.4) Maßnahmen zur Reduktion des Wärme- und Strombedarfs, Verwendung von recyelten oder ökologischen Baustoffen (Stroh, Holz etc.)
A149: =Berechnungen!A149 -> 0 | B149: =_xlfn.TEXTJOIN(" ",,Berechnungen!B149, Berechnungen!C149) -> Angabe der Alternativen in Stichworten:
A150: =Berechnungen!A150 -> 0 | B150: =_xlfn.TEXTJOIN(" ",,Berechnungen!B150, Berechnungen!C150) -> 
A151: =Berechnungen!A151 -> 0 | B151: =_xlfn.TEXTJOIN(" ",,Berechnungen!B151, Berechnungen!C151) -> Welche Werte ergeben sich unter Berücksichtigung der Alternativen?
A152: =Berechnungen!A152 -> 0 | B152: =_xlfn.TEXTJOIN(" ",,Berechnungen!B152, Berechnungen!C152) -> 4.1 Wird beim Gebäude-Neubau nur nach dem Mindeststandard der Bauvorschriften gebaut? Nach welchem Baustandard wird das Gebäude errichtet? | C152: =B152&CHAR(10)&CHAR(10)&CHAR(10)&B153&CHAR(10)&CHAR(10)&B154&CHAR(10)&CHAR(10)&CHAR(10)&B155&CHAR(10)&CHAR(10)&CHAR(10)&B156 -> 4.1 Wird beim Gebäude-Neubau nur nach dem Mindeststandard der Bauvorschriften gebaut? Nach welchem Baustandard wird das Gebäude errichtet? 4.2 Wird ein bestehendes Gebäude nur mit geringstem Aufwand saniert? Welchen Baustandard hat das Gebäude nach der Sanierung? 4.3 Werden größere Mengen an neuer Bausubstanz benötigt? Wieviele m² BGF werden neu errichtet? 4.4 Wird beim Neubau oder bei der Sanierung von Anlagen Wert auf Klimaschutzmaßnahmen gelegt? Z.B. Niedrigenergie-Bauweise, energieeffiziente Maschinen und Geräte, ökologische Baustoffe
A153: =Berechnungen!A153 -> 0 | B153: =_xlfn.TEXTJOIN(" ",,Berechnungen!B153, Berechnungen!C153) -> 4.2 Wird ein bestehendes Gebäude nur mit geringstem Aufwand saniert? Welchen Baustandard hat das Gebäude nach der Sanierung?
A154: =Berechnungen!A154 -> 0 | B154: =_xlfn.TEXTJOIN(" ",,Berechnungen!B154, Berechnungen!C154) -> 4.3 Werden größere Mengen an neuer Bausubstanz benötigt? Wieviele m² BGF werden neu errichtet?
A155: =Berechnungen!A155 -> 0 | B155: =_xlfn.TEXTJOIN(" ",,Berechnungen!B155, Berechnungen!C155) -> 4.4 Wird beim Neubau oder bei der Sanierung von Anlagen Wert auf Klimaschutzmaßnahmen gelegt? Z.B. Niedrigenergie-Bauweise, energieeffiziente Maschinen und Geräte, ökologische Baustoffe
A156: =Berechnungen!A156 -> 0 | B156: =_xlfn.TEXTJOIN(" ",,Berechnungen!B156, Berechnungen!C156) -> 
A157: =Berechnungen!A157 -> Kompensations-prüfung | B157: =_xlfn.TEXTJOIN(" ",,Berechnungen!B157, Berechnungen!C157) -> Wenn Alternativen nicht möglich sind: Mit welchen Kompensationsmaßnahmen kann das Vorhaben klimafreundlicher umgesetzt werden?
A158: =Berechnungen!A158 -> 0 | B158: =_xlfn.TEXTJOIN(" ",,Berechnungen!B158, Berechnungen!C158) -> Kompensationsmaßnahmen (auch an anderen Orten) sind in den Fragen 7 - 12 definiert. Beispiele: zusätzliche Grünflächen, Sanierung anderer Gebäude, Anlagen für erneuerbare Energieerzeugung ...
A159: =Berechnungen!A159 -> 0 | B159: =_xlfn.TEXTJOIN(" ",,Berechnungen!B159, Berechnungen!C159) -> Angabe der Kompensationsmaßnahmen (deren Umsetzung beantragt werden muss):
A160: =Berechnungen!A160 -> 0 | B160: =_xlfn.TEXTJOIN(" ",,Berechnungen!B160, Berechnungen!C160) -> 
A161: =Berechnungen!A161 -> 0 | B161: =_xlfn.TEXTJOIN(" ",,Berechnungen!B161, Berechnungen!C161) -> 
A162: =Berechnungen!A162 -> 0 | B162: =_xlfn.TEXTJOIN(" ",,Berechnungen!B162, Berechnungen!C162) -> 
A163: =Berechnungen!A163 -> 0 | B163: =_xlfn.TEXTJOIN(" ",,Berechnungen!B163, Berechnungen!C163) -> 
A164: =Berechnungen!A164 -> 0 | B164: =_xlfn.TEXTJOIN(" ",,Berechnungen!B164, Berechnungen!C164) -> 
A165: =Berechnungen!A165 -> 0 | B165: =_xlfn.TEXTJOIN(" ",,Berechnungen!B165, Berechnungen!C165) -> 
A166: =Berechnungen!A166 -> 0 | B166: =_xlfn.TEXTJOIN(" ",,Berechnungen!B166, Berechnungen!C166) -> 
A167: =Berechnungen!A167 -> 0 | B167: =_xlfn.TEXTJOIN(" ",,Berechnungen!B167, Berechnungen!C167) -> 
A168: =Berechnungen!A168 -> 0 | B168: =_xlfn.TEXTJOIN(" ",,Berechnungen!B168, Berechnungen!C168) -> 
A169: =Berechnungen!A169 -> 0 | B169: =_xlfn.TEXTJOIN(" ",,Berechnungen!B169, Berechnungen!C169) -> 
A170: =Berechnungen!A170 -> 0 | B170: =_xlfn.TEXTJOIN(" ",,Berechnungen!B170, Berechnungen!C170) -> 
A171: =Berechnungen!A171 -> 0 | B171: =_xlfn.TEXTJOIN(" ",,Berechnungen!B171, Berechnungen!C171) -> 
A172: =Berechnungen!A172 -> 0 | B172: =_xlfn.TEXTJOIN(" ",,Berechnungen!B172, Berechnungen!C172) -> 
A173: =Berechnungen!A173 -> 0 | B173: =_xlfn.TEXTJOIN(" ",,Berechnungen!B173, Berechnungen!C173) -> 
A174: =Berechnungen!A174 -> Beschaffung, Subvention | B174: =_xlfn.TEXTJOIN(" ",,Berechnungen!B174, Berechnungen!C174) -> 5. Wird eine Beschaffung oder eine Ausschreibung vorgenommen? Wird eine Veranstaltung durchgeführt oder eine Organisation subventioniert?
A175: =Berechnungen!A175 -> 0 | B175: =_xlfn.TEXTJOIN(" ",,Berechnungen!B175, Berechnungen!C175) ->  | C175: Frage50Text | D175: Frage51Hilfe | E175: Frage52Hilfe | F175: Frage53Hilfe | G175: Frage54Hilfe | H175: Frage55Hilfe
A176: =Berechnungen!A176 -> Detailfragen | B176: =_xlfn.TEXTJOIN(" ",,Berechnungen!B176, Berechnungen!C176) -> 5.1 Werden Büromöbel, Textilien, Elektrogeräte, EDV/IT-Geräte, Beleuchtung, Reinigungsmittel, Büromaterial, Druckwerke und Lebensmittel nachhaltig beschafft? Wie hoch ist der Anteil dieser Produkte am Gesamtanteil (geschätzt)? | C176: =B176&CHAR(10)&CHAR(10)&B177&CHAR(10)&CHAR(10)&B178&CHAR(10)&CHAR(10)&B179&CHAR(10)&CHAR(10)&B180 -> 5.1 Werden Büromöbel, Textilien, Elektrogeräte, EDV/IT-Geräte, Beleuchtung, Reinigungsmittel, Büromaterial, Druckwerke und Lebensmittel nachhaltig beschafft? Wie hoch ist der Anteil dieser Produkte am Gesamtanteil (geschätzt)? 5.2 Werden bei der Fuhrparkbeschaffung Fahrzeuge mit alternativem Antrieb (0 g CO2-Ausstoß im Betrieb) angeschafft? 5.3 Werden klimaschonende Kriterien bei Ausschreibungen der Stadt berücksichtigt? Zum Beispiel naBe-Kriterien, Baubook-Kriterien, klimaaktiv-Kriterien, Handbuch zur Regionalvergabe … 5.4 Werden Veranstaltungen nachhaltig durchgeführt? Umsetzung z.B. nach den Kriterien von Sauberhafte Feste oder Green Event 5.5 Werden bei Subventionen an Vereine/Organisationen Nachhaltigkeitskriterien für die Verwendung des Geldes vorgegeben? Z.B. nabe-Kriterien, ökologische Baustoffe / Reinigungsmittel / Mobilität / Verpflegung. | D176: Nachhaltige Beschaffungsmöglichkeiten sind z.B.  die naBe-Kriterien bei BBG  das Nachaltige Beschaffungsservice NÖ  Produkte mit dem Österr. Umweltzeichen, dem EU ECO-Label, Blauer Engel, etc. Beschaffung von einzelnen Produkten:  >50% wenn nachhaltig beschafft  10 - 50% wenn regionale Beschaffung  <10% wenn keine Nachhaltigkeitskriterien vorgegeben Beschaffung von mehreren Produkten:  bewertet wird der Anteil am nachhaltigen Beschaffungswert in % vom Gesamtwert der Beschaffung. Beispiel: Eine Büroeinrichtung kostet 6.000 €. Davon wurden 4.000 € für Produkte verwendet, welche die naBe-Kriterien der BBG erfüllen. Die Bewertung ist >50%. Unter bestimmte Gründe höhere Bewertung möglich, wenn:  >50% + Angabe Gründe wenn trotz Nachfrage beim NÖ Beschaffungsservice kein nachhaltigeres Produkt gefunden wird, das den Anforderungen entspricht. | E176: Einen Ausstoß von 0 g CO2 kann angenommen werden für  Elektrofahrzeuge, die mit Ökostrom betrieben werden  Wasserstofffahrzeuge, wenn der verwendete Wasserstoff mit Ökostrom produziert wird  Fahrzeuge, die mit synthetischem Gas oder Flüssigtreibstoff angetrieben werden und das Gas bzw. der Treibstoff mit Ökostrom erzeugt wurde. Nachhaltige Fuhrparkbeschaffung: Nachhaltige Beschaffungsmöglichkeiten sind z.B.  Umstieg auf elektrisch betriebene Fahrzeuge  Umstieg auf wasserstoffbetriebene Fahrzeuge und Erzeugung mit Ökostrom Bewertung:  nicht möglich: wenn trotz Nachfrage beim NÖ Beschaffungsservice kein nachhaltigeres Produkt gefunden wird, das den Anforderungen entspricht | F176: Klimaschonende Kriterien sind enthalten in  naBe-Kriterien bei BBG Beschaffung  Baubook-Kriterien laut "ökologisch ausschreiben"  klimaaktiv-Kriterien  Handbuch zur Regionalvergabe Bewertung:  Vorgaben zur Regionalität können maximal als "teilweise" klimaschonend bewertet werden  Vorgaben zur Nachhaltigkeit, Energieeffizienz oder Ökologie können zu einer höheren Bewertung führen. Eine Auflistung der Vorgaben ist notwendig. | G176: Informationen:  Kriterien für Sauberhafte Feste:  Kriterien für Green Events: Bewertung:  vollständige Nachhaltigkeit wenn Umsetzung eines Sauberhaften Festes oder eines Green Events  teilweise Nachhaltigkeit + Angabe der Maßnahmen wenn Einzelmaßnahmen wie Anbindung an ÖFFIs, Mehrweggeschirr, Abfalltrennung etc. | H176: Bewertung:  vollständig wenn verpflichtende Nachhaltigkeitskriterien angegeben werden und ein Verwendungsnachweis verlangt wird. z.B. Veranstaltungen nach Kriterien Sauberhafte Festes oder Green Events, Beschaffungen nach naBe-Kriterien.  teilweise Nachhaltigkeit + Angabe der Maßnahmen wenn zumindest 1 nachhaltige Einzelmaßnahme vorgeschrieben ist. Nachhaltigkeitskriterien bei Subventionen:  Veranstaltungen: z.B. Sauberhafte Festes oder Green Events  Wirtschaft: z.B. Beschaffungen nach naBe-Kriterien, energiesparende Maßnahmen, Verkehrsreduzierende Maßnahmen, Steigerung Anteil an erneuerbarer Energie oder umweltfreundlicher Mobilität, Reduktion Versiegelung und Förderung Biodiversität  Vereine: z.B. Nutzung umweltfreundlicher Mobilität, nachhaltige Beschaffung, energiesparende Maßnahmen, Steigerung Anteil an erneuerbarer Energie
A177: =Berechnungen!A177 -> 0 | B177: =_xlfn.TEXTJOIN(" ",,Berechnungen!B177, Berechnungen!C177) -> 5.2 Werden bei der Fuhrparkbeschaffung Fahrzeuge mit alternativem Antrieb (0 g CO2-Ausstoß im Betrieb) angeschafft?
A178: =Berechnungen!A178 -> 0 | B178: =_xlfn.TEXTJOIN(" ",,Berechnungen!B178, Berechnungen!C178) -> 5.3 Werden klimaschonende Kriterien bei Ausschreibungen der Stadt berücksichtigt? Zum Beispiel naBe-Kriterien, Baubook-Kriterien, klimaaktiv-Kriterien, Handbuch zur Regionalvergabe … | F178: Link53_1 | G178: Link54_1
A179: =Berechnungen!A179 -> 0 | B179: =_xlfn.TEXTJOIN(" ",,Berechnungen!B179, Berechnungen!C179) -> 5.4 Werden Veranstaltungen nachhaltig durchgeführt? Umsetzung z.B. nach den Kriterien von Sauberhafte Feste oder Green Event | F179: https://www.baubook.info/ | G179: https://anmeldung.sauberhaftefeste.at/themen.htm
A180: =Berechnungen!A180 -> 0 | B180: =_xlfn.TEXTJOIN(" ",,Berechnungen!B180, Berechnungen!C180) -> 5.5 Werden bei Subventionen an Vereine/Organisationen Nachhaltigkeitskriterien für die Verwendung des Geldes vorgegeben? Z.B. nabe-Kriterien, ökologische Baustoffe / Reinigungsmittel / Mobilität / Verpflegung. | G180: Link54_2
A181: =Berechnungen!A181 -> 0 | B181: =_xlfn.TEXTJOIN(" ",,Berechnungen!B181, Berechnungen!C181) ->  | G181: https://www.klimakultur.at/green-events/
A182: =Berechnungen!A182 -> 0 | B182: =_xlfn.TEXTJOIN(" ",,Berechnungen!B182, Berechnungen!C182) -> 
A183: =Berechnungen!A183 -> 0 | B183: =_xlfn.TEXTJOIN(" ",,Berechnungen!B183, Berechnungen!C183) -> 
A184: =Berechnungen!A184 -> Anmerkungen | B184: =_xlfn.TEXTJOIN(" ",,Berechnungen!B184, Berechnungen!C184) -> 
A185: =Berechnungen!A185 -> 0 | B185: =_xlfn.TEXTJOIN(" ",,Berechnungen!B185, Berechnungen!C185) -> 
A186: =Berechnungen!A186 -> Das Vorhaben hat eine gewisse Klimarelevanz. Für die Fragen mit gelber oder roter Ampel wird eine Verbesserung im Bezug auf Klimaschutz empfohlen. | B186: =_xlfn.TEXTJOIN(" ",,Berechnungen!B186, Berechnungen!C186) -> 
A187: =Berechnungen!A187 -> Alternativen-prüfung | B187: =_xlfn.TEXTJOIN(" ",,Berechnungen!B187, Berechnungen!C187) -> Alternativen um das Vorhaben klimafreundlicher umzusetzen:
A188: =Berechnungen!A188 -> 0 | B188: =_xlfn.TEXTJOIN(" ",,Berechnungen!B188, Berechnungen!C188) -> ad 5.1) Produkte nach naBe-Kriterien beschaffen (soweit verfügbar). Zusammenarbeit mit Nachhaltige Beschaffung NÖ. | C188: =B188&CHAR(10)&B189&CHAR(10)&B190&CHAR(10)&B191&CHAR(10)&B192 -> ad 5.1) Produkte nach naBe-Kriterien beschaffen (soweit verfügbar). Zusammenarbeit mit Nachhaltige Beschaffung NÖ. ad 5.2) Produkte nach naBe-Kriterien beschaffen (soweit verfügbar). Zusammenarbeit mit Nachhaltige Beschaffung NÖ. ad 5.3) Möglichst viele Nachhaltigkeitskriterien bei Ausschreibungen definieren. ad 5.4) Veranstaltungen als Sauberhafte Feste oder green Events durchführen. ad 5.5) Vorgaben für umfassende Nachhaltigkeit bei der Verwendung der Subvention.
A189: =Berechnungen!A189 -> 0 | B189: =_xlfn.TEXTJOIN(" ",,Berechnungen!B189, Berechnungen!C189) -> ad 5.2) Produkte nach naBe-Kriterien beschaffen (soweit verfügbar). Zusammenarbeit mit Nachhaltige Beschaffung NÖ.
A190: =Berechnungen!A190 -> 0 | B190: =_xlfn.TEXTJOIN(" ",,Berechnungen!B190, Berechnungen!C190) -> ad 5.3) Möglichst viele Nachhaltigkeitskriterien bei Ausschreibungen definieren.
A191: =Berechnungen!A191 -> 0 | B191: =_xlfn.TEXTJOIN(" ",,Berechnungen!B191, Berechnungen!C191) -> ad 5.4) Veranstaltungen als Sauberhafte Feste oder green Events durchführen.
A192: =Berechnungen!A192 -> 0 | B192: =_xlfn.TEXTJOIN(" ",,Berechnungen!B192, Berechnungen!C192) -> ad 5.5) Vorgaben für umfassende Nachhaltigkeit bei der Verwendung der Subvention.
A193: =Berechnungen!A193 -> 0 | B193: =_xlfn.TEXTJOIN(" ",,Berechnungen!B193, Berechnungen!C193) -> Angabe der Alternativen in Stichworten:
A194: =Berechnungen!A194 -> 0 | B194: =_xlfn.TEXTJOIN(" ",,Berechnungen!B194, Berechnungen!C194) -> 
A195: =Berechnungen!A195 -> 0 | B195: =_xlfn.TEXTJOIN(" ",,Berechnungen!B195, Berechnungen!C195) -> Welche Werte ergeben sich unter Berücksichtigung der Alternativen?
A196: =Berechnungen!A196 -> 0 | B196: =_xlfn.TEXTJOIN(" ",,Berechnungen!B196, Berechnungen!C196) -> 5.1 Werden Büromöbel, Textilien, Elektrogeräte, EDV/IT-Geräte, Beleuchtung, Reinigungsmittel, Büromaterial, Druckwerke und Lebensmittel nachhaltig beschafft? Wie hoch ist der Anteil dieser Produkte am Gesamtanteil (geschätzt)? | C196: =B196&CHAR(10)&CHAR(10)&B197&CHAR(10)&CHAR(10)&B198&CHAR(10)&CHAR(10)&B199&CHAR(10)&CHAR(10)&B200 -> 5.1 Werden Büromöbel, Textilien, Elektrogeräte, EDV/IT-Geräte, Beleuchtung, Reinigungsmittel, Büromaterial, Druckwerke und Lebensmittel nachhaltig beschafft? Wie hoch ist der Anteil dieser Produkte am Gesamtanteil (geschätzt)? 5.2 Werden bei der Fuhrparkbeschaffung Fahrzeuge mit alternativem Antrieb (0 g CO2-Ausstoß im Betrieb) angeschafft? 5.3 Werden klimaschonende Kriterien bei Ausschreibungen der Stadt berücksichtigt? Zum Beispiel naBe-Kriterien, Baubook-Kriterien, klimaaktiv-Kriterien, Handbuch zur Regionalvergabe … 5.4 Werden Veranstaltungen nachhaltig durchgeführt? Umsetzung z.B. nach den Kriterien von Sauberhafte Feste oder Green Event 5.5 Werden bei Subventionen an Vereine/Organisationen Nachhaltigkeitskriterien für die Verwendung des Geldes vorgegeben? Z.B. nabe-Kriterien, ökologische Baustoffe / Reinigungsmittel / Mobilität / Verpflegung.
A197: =Berechnungen!A197 -> 0 | B197: =_xlfn.TEXTJOIN(" ",,Berechnungen!B197, Berechnungen!C197) -> 5.2 Werden bei der Fuhrparkbeschaffung Fahrzeuge mit alternativem Antrieb (0 g CO2-Ausstoß im Betrieb) angeschafft?
A198: =Berechnungen!A198 -> 0 | B198: =_xlfn.TEXTJOIN(" ",,Berechnungen!B198, Berechnungen!C198) -> 5.3 Werden klimaschonende Kriterien bei Ausschreibungen der Stadt berücksichtigt? Zum Beispiel naBe-Kriterien, Baubook-Kriterien, klimaaktiv-Kriterien, Handbuch zur Regionalvergabe …
A199: =Berechnungen!A199 -> 0 | B199: =_xlfn.TEXTJOIN(" ",,Berechnungen!B199, Berechnungen!C199) -> 5.4 Werden Veranstaltungen nachhaltig durchgeführt? Umsetzung z.B. nach den Kriterien von Sauberhafte Feste oder Green Event
A200: =Berechnungen!A200 -> 0 | B200: =_xlfn.TEXTJOIN(" ",,Berechnungen!B200, Berechnungen!C200) -> 5.5 Werden bei Subventionen an Vereine/Organisationen Nachhaltigkeitskriterien für die Verwendung des Geldes vorgegeben? Z.B. nabe-Kriterien, ökologische Baustoffe / Reinigungsmittel / Mobilität / Verpflegung.
A201: =Berechnungen!A201 -> 0 | B201: =_xlfn.TEXTJOIN(" ",,Berechnungen!B201, Berechnungen!C201) -> 
A202: =Berechnungen!A202 -> Kompensations-prüfung | B202: =_xlfn.TEXTJOIN(" ",,Berechnungen!B202, Berechnungen!C202) -> Wenn Alternativen nicht möglich sind: Mit welchen Kompensationsmaßnahmen kann das Vorhaben klimafreundlicher umgesetzt werden?
A203: =Berechnungen!A203 -> 0 | B203: =_xlfn.TEXTJOIN(" ",,Berechnungen!B203, Berechnungen!C203) -> Kompensationsmaßnahmen (auch an anderen Orten) sind in den Fragen 7 - 12 definiert. Beispiele: zusätzliche Grünflächen, Sanierung anderer Gebäude, Anlagen für erneuerbare Energieerzeugung, nachhaltige Beschaffung bei anderen Projekten ...
A204: =Berechnungen!A204 -> 0 | B204: =_xlfn.TEXTJOIN(" ",,Berechnungen!B204, Berechnungen!C204) -> Angabe der Kompensationsmaßnahmen (deren Umsetzung beantragt werden muss):
A205: =Berechnungen!A205 -> 0 | B205: =_xlfn.TEXTJOIN(" ",,Berechnungen!B205, Berechnungen!C205) -> 
A206: =Berechnungen!A206 -> 0 | B206: =_xlfn.TEXTJOIN(" ",,Berechnungen!B206, Berechnungen!C206) -> 
A207: =Berechnungen!A207 -> 0 | B207: =_xlfn.TEXTJOIN(" ",,Berechnungen!B207, Berechnungen!C207) -> 
A208: =Berechnungen!A208 -> 0 | B208: =_xlfn.TEXTJOIN(" ",,Berechnungen!B208, Berechnungen!C208) -> 
A209: =Berechnungen!A209 -> 0 | B209: =_xlfn.TEXTJOIN(" ",,Berechnungen!B209, Berechnungen!C209) -> 
A210: =Berechnungen!A210 -> 0 | B210: =_xlfn.TEXTJOIN(" ",,Berechnungen!B210, Berechnungen!C210) -> 
A211: =Berechnungen!A211 -> 0 | B211: =_xlfn.TEXTJOIN(" ",,Berechnungen!B211, Berechnungen!C211) -> 
A212: =Berechnungen!A212 -> 0 | B212: =_xlfn.TEXTJOIN(" ",,Berechnungen!B212, Berechnungen!C212) -> 
... 267 more rows
